Workbook

Sheet Main
B10: 2020-03-04
B12: Sheet No. | C12: Template Name | D12: Summary
B13: 1 | C13: Future Intra | D13: For Intraday trading in F&O segment
B14: 2 | C14: Cash Intra | D14: For Intraday trading in cash market segment
B15: 3 | C15: Mid-cap Intra | D15: For Intraday trading in Mid-cap stocks
B16: 4 | C16: Bulk Deals | D16: Reveals Bulk Deals carried on NSE & BSE
B17: 5 | C17: Call Tracker
K27: `

Sheet Future Intra
M5: Back to Main Page
A6: FOR INTRA DAY TRADING | L6: =Main!B10 -> 2020-03-04
A9: Sr.no | B9: Sector | C9: Scrip | D9: CLOSE RATE | E9: Pivot Point | F9: Supports | I9: Resistances
B10: Sector | D10: Point | E10: Point | F10: S1 | G10: S2 | H10: S3 | I10: R1 | J10: R2 | K10: R3 | L10: HIGH | M10: LOW | N10: OI | O10: % Change in OI
A11: 1 | B11: Index | C11: BANKNIFTY | D11: 29223.75 | E11: 29101.52 | F11: 28874.83 | G11: 28525.92 | H11: 28299.23 | I11: 29450.43 | J11: 29677.12 | K11: 30026.03 | L11: 29328.2 | M11: 28752.6 | N11: 1353680 | O11: 6.41%
A12: 2 | B12: Index | C12: NIFTY | D12: 11294.75 | E12: 11247.20 | F12: 11167.65 | G12: 11040.55 | H12: 10961.00 | I12: 11374.30 | J12: 11453.85 | K12: 11580.95 | L12: 11326.75 | M12: 11120.1 | N12: 15979650 | O12: 4.86%
A13: 3 | B13: Index | C13: NIFTYIT | D13: 15683.00 | E13: 15618.67 | F13: 15507.33 | G13: 15331.67 | H13: 15220.33 | I13: 15794.33 | J13: 15905.67 | K13: 16081.33 | L13: 15730 | M13: 15443 | N13: 4900 | O13: 7.69%
A14: 4 | B14: Cement | C14: ACC | D14: 1334.95 | E14: 1320.93 | F14: 1302.07 | G14: 1269.18 | H14: 1250.32 | I14: 1353.82 | J14: 1372.68 | K14: 1405.57 | L14: 1339.8 | M14: 1288.05 | N14: 3486000 | O14: -3.84%
A15: 5 | B15: Others | C15: ADANIENT | D15: 225.70 | E15: 224.10 | F15: 221.00 | G15: 216.30 | H15: 213.20 | I15: 228.80 | J15: 231.90 | K15: 236.60 | L15: 227.2 | M15: 219.4 | N15: 27360000 | O15: -2.37%
A16: 6 | B16: Others | C16: ADANIPORTS | D16: 347.20 | E16: 345.75 | F16: 342.70 | G16: 338.20 | H16: 335.15 | I16: 350.25 | J16: 353.30 | K16: 357.80 | L16: 348.8 | M16: 341.25 | N16: 32975000 | O16: 2.73%
A17: 7 | B17: Power | C17: ADANIPOWER | D17: 48.95 | E17: 48.83 | F17: 47.92 | G17: 46.88 | H17: 45.97 | I17: 49.87 | J17: 50.78 | K17: 51.82 | L17: 49.75 | M17: 47.8 | N17: 72870000 | O17: -0.51%
A18: 8 | B18: Automobile | C18: AMARAJABAT | D18: 643.60 | E18: 638.67 | F18: 630.43 | G18: 617.27 | H18: 609.03 | I18: 651.83 | J18: 660.07 | K18: 673.23 | L18: 646.9 | M18: 625.5 | N18: 2140000 | O18: -2.09%
A19: 9 | B19: Cement | C19: AMBUJACEM | D19: 211.75 | E19: 209.40 | F19: 206.25 | G19: 200.75 | H19: 197.60 | I19: 214.90 | J19: 218.05 | K19: 223.55 | L19: 212.55 | M19: 203.9 | N19: 19947500 | O19: 1.06%
A20: 10 | B20: Others | C20: APOLLOHOSP | D20: 1732.15 | E20: 1727.62 | F20: 1705.53 | G20: 1678.92 | H20: 1656.83 | I20: 1754.23 | J20: 1776.32 | K20: 1802.93 | L20: 1749.7 | M20: 1701 | N20: 1835000 | O20: 1.49%
A21: 11 | B21: Automobile | C21: APOLLOTYRE | D21: 138.70 | E21: 137.32 | F21: 135.08 | G21: 131.47 | H21: 129.23 | I21: 140.93 | J21: 143.17 | K21: 146.78 | L21: 139.55 | M21: 133.7 | N21: 16527000 | O21: -6.39%
A22: 12 | B22: Automobile | C22: ASHOKLEY | D22: 74.70 | E22: 73.85 | F22: 72.60 | G22: 70.50 | H22: 69.25 | I22: 75.95 | J22: 77.20 | K22: 79.30 | L22: 75.1 | M22: 71.75 | N22: 58560000 | O22: -1.59%
A23: 13 | B23: FMCG | C23: ASIANPAINT | D23: 1805.65 | E23: 1797.23 | F23: 1775.47 | G23: 1745.28 | H23: 1723.52 | I23: 1827.42 | J23: 1849.18 | K23: 1879.37 | L23: 1819 | M23: 1767.05 | N23: 7428600 | O23: 0.39%
A24: 14 | B24: Pharma | C24: AUROPHARMA | D24: 513.20 | E24: 509.60 | F24: 502.35 | G24: 491.50 | H24: 484.25 | I24: 520.45 | J24: 527.70 | K24: 538.55 | L24: 516.85 | M24: 498.75 | N24: 12774000 | O24: -1.94%
A25: 15 | B25: Banking | C25: AXISBANK | D25: 690.20 | E25: 688.00 | F25: 678.70 | G25: 667.20 | H25: 657.90 | I25: 699.50 | J25: 708.80 | K25: 720.30 | L25: 697.3 | M25: 676.5 | N25: 53277600 | O25: 0.22%
A26: 16 | B26: Automobile | C26: BAJAJ-AUTO | D26: 2703.50 | E26: 2695.35 | F26: 2661.75 | G26: 2620.00 | H26: 2586.40 | I26: 2737.10 | J26: 2770.70 | K26: 2812.45 | L26: 2728.95 | M26: 2653.6 | N26: 2013250 | O26: -4.66%
A27: 17 | B27: Finance | C27: BAJAJFINSV | D27: 8978.65 | E27: 8945.48 | F27: 8745.97 | G27: 8513.28 | H27: 8313.77 | I27: 9178.17 | J27: 9377.68 | K27: 9610.37 | L27: 9145 | M27: 8712.8 | N27: 1042875 | O27: -0.96%
A28: 18 | B28: Finance | C28: BAJFINANCE | D28: 4457.25 | E28: 4415.60 | F28: 4357.20 | G28: 4257.15 | H28: 4198.75 | I28: 4515.65 | J28: 4574.05 | K28: 4674.10 | L28: 4474 | M28: 4315.55 | N28: 6160750 | O28: -1.36%
A29: 19 | B29: Automobile | C29: BALKRISIND | D29: 1116.50 | E29: 1104.63 | F29: 1082.07 | G29: 1047.63 | H29: 1025.07 | I29: 1139.07 | J29: 1161.63 | K29: 1196.07 | L29: 1127.2 | M29: 1070.2 | N29: 1669600 | O29: -0.62%
A30: 20 | B30: Banking | C30: BANDHANBNK | D30: 402.65 | E30: 404.05 | F30: 395.70 | G30: 388.75 | H30: 380.40 | I30: 411.00 | J30: 419.35 | K30: 426.30 | L30: 412.4 | M30: 397.1 | N30: 3592800 | O30: 13.11%
A31: 21 | B31: Banking | C31: BANKBARODA | D31: 73.25 | E31: 72.70 | F31: 71.65 | G31: 70.05 | H31: 69.00 | I31: 74.30 | J31: 75.35 | K31: 76.95 | L31: 73.75 | M31: 71.1 | N31: 70016400 | O31: -4.02%
A32: 22 | B32: FMCG | C32: BATAINDIA | D32: 1622.40 | E32: 1628.48 | F32: 1590.72 | G32: 1559.03 | H32: 1521.27 | I32: 1660.17 | J32: 1697.93 | K32: 1729.62 | L32: 1666.25 | M32: 1596.8 | N32: 2478850 | O32: -2.91%
A33: 23 | B33: Capital_Goods | C33: BEL | D33: 74.70 | E33: 73.88 | F33: 72.62 | G33: 70.53 | H33: 69.27 | I33: 75.97 | J33: 77.23 | K33: 79.32 | L33: 75.15 | M33: 71.8 | N33: 40092000 | O33: 0.81%
A34: 24 | B34: FMCG | C34: BERGEPAINT | D34: 544.40 | E34: 548.28 | F34: 535.22 | G34: 526.03 | H34: 512.97 | I34: 557.47 | J34: 570.53 | K34: 579.72 | L34: 561.35 | M34: 539.1 | N34: 6331600 | O34: -1.67%
A35: 25 | B35: Automobile | C35: BHARATFORG | D35: 444.05 | E35: 443.33 | F35: 430.72 | G35: 417.38 | H35: 404.77 | I35: 456.67 | J35: 469.28 | K35: 482.62 | L35: 455.95 | M35: 430 | N35: 7529600 | O35: -1.40%
A36: 26 | B36: Telecom | C36: BHARTIARTL | D36: 523.05 | E36: 524.18 | F36: 514.42 | G36: 505.78 | H36: 496.02 | I36: 532.82 | J36: 542.58 | K36: 551.22 | L36: 533.95 | M36: 515.55 | N36: 54347211 | O36: 1.51%
A37: 27 | B37: Capital_Goods | C37: BHEL | D37: 31.15 | E37: 30.82 | F37: 30.23 | G37: 29.32 | H37: 28.73 | I37: 31.73 | J37: 32.32 | K37: 33.23 | L37: 31.4 | M37: 29.9 | N37: 83231200 | O37: 2.05%
A38: 28 | B38: Pharma | C38: BIOCON | D38: 302.35 | E38: 296.78 | F38: 288.87 | G38: 275.38 | H38: 267.47 | I38: 310.27 | J38: 318.18 | K38: 331.67 | L38: 304.7 | M38: 283.3 | N38: 10973300 | O38: 2.96%
A39: 29 | B39: Automobile | C39: BOSCHLTD | D39: 13190.95 | E39: 12948.37 | F39: 12642.93 | G39: 12094.92 | H39: 11789.48 | I39: 13496.38 | J39: 13801.82 | K39: 14349.83 | L39: 13253.8 | M39: 12400.35 | N39: 139040 | O39: 2.96%
A40: 30 | B40: Oil_Gas | C40: BPCL | D40: 417.65 | E40: 414.58 | F40: 409.37 | G40: 401.08 | H40: 395.87 | I40: 422.87 | J40: 428.08 | K40: 436.37 | L40: 419.8 | M40: 406.3 | N40: 26170200 | O40: -4.12%
A41: 31 | B41: FMCG | C41: BRITANNIA | D41: 3037.35 | E41: 3003.52 | F41: 2953.03 | G41: 2868.72 | H41: 2818.23 | I41: 3087.83 | J41: 3138.32 | K41: 3222.63 | L41: 3054 | M41: 2919.2 | N41: 1761200 | O41: -0.29%
A42: 32 | B42: Pharma | C42: CADILAHC | D42: 258.65 | E42: 253.02 | F42: 245.18 | G42: 231.72 | H42: 223.88 | I42: 266.48 | J42: 274.32 | K42: 287.78 | L42: 260.85 | M42: 239.55 | N42: 5332800 | O42: 4.30%
A43: 33 | B43: Banking | C43: CANBK | D43: 142.10 | E43: 141.00 | F43: 139.10 | G43: 136.10 | H43: 134.20 | I43: 144.00 | J43: 145.90 | K43: 148.90 | L43: 142.9 | M43: 138 | N43: 17362800 | O43: 1.29%
A44: 34 | B44: Textile | C44: CENTURYTEX | D44: 529.25 | E44: 521.63 | F44: 509.12 | G44: 488.98 | H44: 476.47 | I44: 541.77 | J44: 554.28 | K44: 574.42 | L44: 534.15 | M44: 501.5 | N44: 3480000 | O44: -5.40%
A45: 35 | B45: Power | C45: CESC | D45: 634.55 | E45: 637.28 | F45: 623.57 | G45: 612.58 | H45: 598.87 | I45: 648.27 | J45: 661.98 | K45: 672.97 | L45: 651 | M45: 626.3 | N45: 1746400 | O45: 1.96%
A46: 36 | B46: Finance | C46: CHOLAFIN | D46: 306.95 | E46: 305.57 | F46: 300.63 | G46: 294.32 | H46: 289.38 | I46: 311.88 | J46: 316.82 | K46: 323.13 | L46: 310.5 | M46: 299.25 | N46: 5677500 | O46: 3.98%
A47: 37 | B47: Pharma | C47: CIPLA | D47: 422.55 | E47: 415.98 | F47: 406.67 | G47: 390.78 | H47: 381.47 | I47: 431.87 | J47: 441.18 | K47: 457.07 | L47: 425.3 | M47: 400.1 | N47: 12892650 | O47: -1.70%
A48: 38 | B48: Others | C48: COALINDIA | D48: 173.15 | E48: 171.42 | F48: 168.68 | G48: 164.22 | H48: 161.48 | I48: 175.88 | J48: 178.62 | K48: 183.08 | L48: 174.15 | M48: 166.95 | N48: 44890200 | O48: 5.95%
A49: 39 | B49: FMCG | C49: COLPAL | D49: 1325.45 | E49: 1314.72 | F49: 1296.73 | G49: 1268.02 | H49: 1250.03 | I49: 1343.43 | J49: 1361.42 | K49: 1390.13 | L49: 1332.7 | M49: 1286 | N49: 2449300 | O49: -2.45%
A50: 40 | B50: Others | C50: CONCOR | D50: 491.15 | E50: 494.72 | F50: 480.43 | G50: 469.72 | H50: 455.43 | I50: 505.43 | J50: 519.72 | K50: 530.43 | L50: 509 | M50: 484 | N50: 4784343 | O50: -5.50%
A51: 41 | B51: Capital_Goods | C51: CUMMINSIND | D51: 508.30 | E51: 505.30 | F51: 499.75 | G51: 491.20 | H51: 485.65 | I51: 513.85 | J51: 519.40 | K51: 527.95 | L51: 510.85 | M51: 496.75 | N51: 1359900 | O51: 0.27%
A52: 42 | B52: FMCG | C52: DABUR | D52: 508.10 | E52: 506.87 | F52: 501.58 | G52: 495.07 | H52: 489.78 | I52: 513.38 | J52: 518.67 | K52: 525.18 | L52: 512.15 | M52: 500.35 | N52: 10371250 | O52: 8.26%
A53: 43 | B53: Pharma | C53: DIVISLAB | D53: 2186.00 | E53: 2156.07 | F53: 2100.13 | G53: 2014.27 | H53: 1958.33 | I53: 2241.93 | J53: 2297.87 | K53: 2383.73 | L53: 2212 | M53: 2070.2 | N53: 2172800 | O53: 13.47%
A54: 44 | B54: Realty | C54: DLF | D54: 207.80 | E54: 207.63 | F54: 203.52 | G54: 199.23 | H54: 195.12 | I54: 211.92 | J54: 216.03 | K54: 220.32 | L54: 211.75 | M54: 203.35 | N54: 38359200 | O54: -1.65%
A55: 45 | B55: Pharma | C55: DRREDDY | D55: 3048.95 | E55: 3017.28 | F55: 2957.02 | G55: 2865.08 | H55: 2804.82 | I55: 3109.22 | J55: 3169.48 | K55: 3261.42 | L55: 3077.55 | M55: 2925.35 | N55: 2296000 | O55: -2.60%
A56: 46 | B56: Automobile | C56: EICHERMOT | D56: 17788.90 | E56: 17670.57 | F56: 17421.13 | G56: 17053.37 | H56: 16803.93 | I56: 18038.33 | J56: 18287.77 | K56: 18655.53 | L56: 17920 | M56: 17302.8 | N56: 216870 | O56: -14.67%
A57: 47 | B57: Finance | C57: EQUITAS | D57: 105.40 | E57: 105.15 | F57: 101.25 | G57: 97.10 | H57: 93.20 | I57: 109.30 | J57: 113.20 | K57: 117.35 | L57: 109.05 | M57: 101 | N57: 17826200 | O57: 5.76%
A58: 48 | B58: Automobile | C58: ESCORTS | D58: 855.15 | E58: 856.38 | F58: 835.77 | G58: 816.38 | H58: 795.77 | I58: 875.77 | J58: 896.38 | K58: 915.77 | L58: 877 | M58: 837 | N58: 4808100 | O58: -5.55%
A59: 49 | B59: Automobile | C59: EXIDEIND | D59: 159.75 | E59: 159.20 | F59: 156.75 | G59: 153.75 | H59: 151.30 | I59: 162.20 | J59: 164.65 | K59: 167.65 | L59: 161.65 | M59: 156.2 | N59: 10625600 | O59: 2.20%
A60: 50 | B60: Banking | C60: FEDERALBNK | D60: 84.70 | E60: 84.25 | F60: 82.95 | G60: 81.20 | H60: 79.90 | I60: 86.00 | J60: 87.30 | K60: 89.05 | L60: 85.55 | M60: 82.5 | N60: 64071000 | O60: -2.26%
A61: 51 | B61: Oil_Gas | C61: GAIL | D61: 103.50 | E61: 102.28 | F61: 100.67 | G61: 97.83 | H61: 96.22 | I61: 105.12 | J61: 106.73 | K61: 109.57 | L61: 103.9 | M61: 99.45 | N61: 36905946 | O61: -6.44%
A62: 52 | B62: Pharma | C62: GLENMARK | D62: 282.80 | E62: 280.72 | F62: 275.83 | G62: 268.87 | H62: 263.98 | I62: 287.68 | J62: 292.57 | K62: 299.53 | L62: 285.6 | M62: 273.75 | N62: 7984200 | O62: -0.16%
A63: 53 | B63: Infrastructure | C63: GMRINFRA | D63: 20.25 | E63: 20.27 | F63: 19.78 | G63: 19.32 | H63: 18.83 | I63: 20.73 | J63: 21.22 | K63: 21.68 | L63: 20.75 | M63: 19.8 | N63: 206370000 | O63: 0.37%
A64: 54 | B64: FMCG | C64: GODREJCP | D64: 620.25 | E64: 613.95 | F64: 600.30 | G64: 580.35 | H64: 566.70 | I64: 633.90 | J64: 647.55 | K64: 667.50 | L64: 627.6 | M64: 594 | N64: 7650400 | O64: 0.77%
A65: 55 | B65: Cement | C65: GRASIM | D65: 701.20 | E65: 692.23 | F65: 679.97 | G65: 658.73 | H65: 646.47 | I65: 713.47 | J65: 725.73 | K65: 746.97 | L65: 704.5 | M65: 671 | N65: 27604500 | O65: -1.76%
A66: 56 | B66: Others | C66: HAVELLS | D66: 637.40 | E66: 631.60 | F66: 621.30 | G66: 605.20 | H66: 594.90 | I66: 647.70 | J66: 658.00 | K66: 674.10 | L66: 641.9 | M66: 615.5 | N66: 6022000 | O66: 1.19%
A67: 57 | B67: Technology | C67: HCLTECH | D67: 565.00 | E67: 562.97 | F67: 557.03 | G67: 549.07 | H67: 543.13 | I67: 570.93 | J67: 576.87 | K67: 584.83 | L67: 568.9 | M67: 555 | N67: 21382200 | O67: 1.79%
A68: 58 | B68: Finance | C68: HDFC | D68: 2198.40 | E68: 2202.20 | F68: 2172.60 | G68: 2146.80 | H68: 2117.20 | I68: 2228.00 | J68: 2257.60 | K68: 2283.40 | L68: 2231.8 | M68: 2176.4 | N68: 34772500 | O68: 2.31%
A69: 59 | B69: Banking | C69: HDFCBANK | D69: 1184.95 | E69: 1181.62 | F69: 1174.33 | G69: 1163.72 | H69: 1156.43 | I69: 1192.23 | J69: 1199.52 | K69: 1210.13 | L69: 1188.9 | M69: 1171 | N69: 32815500 | O69: 2.77%
A70: 60 | B70: Finance | C70: HDFCLIFE | D70: 565.40 | E70: 566.93 | F70: 559.17 | G70: 552.93 | H70: 545.17 | I70: 573.17 | J70: 580.93 | K70: 587.17 | L70: 574.7 | M70: 560.7 | N70: 1469700 | O70: 16.73%
A71: 61 | B71: Automobile | C71: HEROMOTOCO | D71: 2054.65 | E71: 2035.85 | F71: 2008.05 | G71: 1961.45 | H71: 1933.65 | I71: 2082.45 | J71: 2110.25 | K71: 2156.85 | L71: 2063.65 | M71: 1989.25 | N71: 3736600 | O71: -4.44%
A72: 62 | B72: Metals | C72: HINDALCO | D72: 159.90 | E72: 157.38 | F72: 154.02 | G72: 148.13 | H72: 144.77 | I72: 163.27 | J72: 166.63 | K72: 172.52 | L72: 160.75 | M72: 151.5 | N72: 48338500 | O72: 3.87%
A73: 63 | B73: Oil_Gas | C73: HINDPETRO | D73: 201.75 | E73: 198.58 | F73: 193.17 | G73: 184.58 | H73: 179.17 | I73: 207.17 | J73: 212.58 | K73: 221.17 | L73: 204 | M73: 190 | N73: 16772700 | O73: -4.14%
A74: 64 | B74: FMCG | C74: HINDUNILVR | D74: 2176.55 | E74: 2174.15 | F74: 2150.50 | G74: 2124.45 | H74: 2100.80 | I74: 2200.20 | J74: 2223.85 | K74: 2249.90 | L74: 2197.8 | M74: 2148.1 | N74: 11168400 | O74: 1.85%
A75: 65 | B75: Finance | C75: IBULHSGFIN | D75: 293.30 | E75: 292.72 | F75: 281.58 | G75: 269.87 | H75: 258.73 | I75: 304.43 | J75: 315.57 | K75: 327.28 | L75: 303.85 | M75: 281 | N75: 23756400 | O75: 3.79%
A76: 66 | B76: Banking | C76: ICICIBANK | D76: 515.55 | E76: 514.97 | F76: 509.43 | G76: 503.32 | H76: 497.78 | I76: 521.08 | J76: 526.62 | K76: 532.73 | L76: 520.5 | M76: 508.85 | N76: 100252625 | O76: -0.02%
A77: 67 | B77: Finance | C77: ICICIPRULI | D77: 457.45 | E77: 456.30 | F77: 449.35 | G77: 441.25 | H77: 434.30 | I77: 464.40 | J77: 471.35 | K77: 479.45 | L77: 463.25 | M77: 448.2 | N77: 8404500 | O77: 1.06%
A78: 68 | B78: Telecom | C78: IDEA | D78: 3.70 | E78: 3.67 | F78: 3.38 | G78: 3.07 | H78: 2.78 | I78: 3.98 | J78: 4.27 | K78: 4.58 | L78: 3.95 | M78: 3.35 | N78: 470400000 | O78: 2.43%
A79: 69 | B79: Banking | C79: IDFCFIRSTB | D79: 37.95 | E79: 37.90 | F79: 37.30 | G79: 36.65 | H79: 36.05 | I79: 38.55 | J79: 39.15 | K79: 39.80 | L79: 38.5 | M79: 37.25 | N79: 205104000 | O79: 0.21%
A80: 70 | B80: Oil_Gas | C80: IGL | D80: 449.20 | E80: 445.95 | F80: 439.90 | G80: 430.60 | H80: 424.55 | I80: 455.25 | J80: 461.30 | K80: 470.60 | L80: 452 | M80: 436.65 | N80: 11269500 | O80: -1.23%
A81: 71 | B81: Others | C81: INDIGO | D81: 1226.60 | E81: 1236.07 | F81: 1197.13 | G81: 1167.67 | H81: 1128.73 | I81: 1265.53 | J81: 1304.47 | K81: 1333.93 | L81: 1275 | M81: 1206.6 | N81: 3315600 | O81: -1.75%
A82: 72 | B82: Banking | C82: INDUSINDBK | D82: 1108.40 | E82: 1100.92 | F82: 1080.73 | G82: 1053.07 | H82: 1032.88 | I82: 1128.58 | J82: 1148.77 | K82: 1176.43 | L82: 1121.1 | M82: 1073.25 | N82: 12347200 | O82: -0.48%
A83: 73 | B83: Telecom | C83: INFRATEL | D83: 214.15 | E83: 214.12 | F83: 208.33 | G83: 202.52 | H83: 196.73 | I83: 219.93 | J83: 225.72 | K83: 231.53 | L83: 219.9 | M83: 208.3 | N83: 9278000 | O83: 1.87%
A84: 74 | B84: Technology | C84: INFY | D84: 749.85 | E84: 750.30 | F84: 741.25 | G84: 732.65 | H84: 723.60 | I84: 758.90 | J84: 767.95 | K84: 776.55 | L84: 759.35 | M84: 741.7 | N84: 25058400 | O84: 4.80%
A85: 75 | B85: Oil_Gas | C85: IOC | D85: 103.80 | E85: 102.95 | F85: 101.55 | G85: 99.30 | H85: 97.90 | I85: 105.20 | J85: 106.60 | K85: 108.85 | L85: 104.35 | M85: 100.7 | N85: 46488000 | O85: 0.28%
A86: 76 | B86: FMCG | C86: ITC | D86: 194.70 | E86: 195.43 | F86: 192.62 | G86: 190.53 | H86: 187.72 | I86: 197.52 | J86: 200.33 | K86: 202.42 | L86: 198.25 | M86: 193.35 | N86: 149320800 | O86: 3.00%
A87: 77 | B87: Metals | C87: JINDALSTEL | D87: 161.50 | E87: 160.02 | F87: 157.18 | G87: 152.87 | H87: 150.03 | I87: 164.33 | J87: 167.17 | K87: 171.48 | L87: 162.85 | M87: 155.7 | N87: 37975000 | O87: 4.06%
A88: 78 | B88: Metals | C88: JSWSTEEL | D88: 246.20 | E88: 244.78 | F88: 241.12 | G88: 236.03 | H88: 232.37 | I88: 249.87 | J88: 253.53 | K88: 258.62 | L88: 248.45 | M88: 239.7 | N88: 41779500 | O88: -1.48%
A89: 79 | B89: Others | C89: JUBLFOOD | D89: 1688.95 | E89: 1671.72 | F89: 1640.58 | G89: 1592.22 | H89: 1561.08 | I89: 1720.08 | J89: 1751.22 | K89: 1799.58 | L89: 1702.85 | M89: 1623.35 | N89: 2823500 | O89: 14.03%
A90: 80 | B90: Others | C90: JUSTDIAL | D90: 495.50 | E90: 489.23 | F90: 478.67 | G90: 461.83 | H90: 451.27 | I90: 506.07 | J90: 516.63 | K90: 533.47 | L90: 499.8 | M90: 472.4 | N90: 2991800 | O90: -0.84%
A91: 81 | B91: Banking | C91: KOTAKBANK | D91: 1630.40 | E91: 1619.78 | F91: 1601.92 | G91: 1573.43 | H91: 1555.57 | I91: 1648.27 | J91: 1666.13 | K91: 1694.62 | L91: 1637.65 | M91: 1591.3 | N91: 9165200 | O91: 3.65%
A92: 82 | B92: Finance | C92: L&TFH | D92: 106.80 | E92: 105.92 | F92: 104.18 | G92: 101.57 | H92: 99.83 | I92: 108.53 | J92: 110.27 | K92: 112.88 | L92: 107.65 | M92: 103.3 | N92: 20182400 | O92: 6.34%
A93: 83 | B93: Finance | C93: LICHSGFIN | D93: 331.60 | E93: 328.57 | F93: 323.03 | G93: 314.47 | H93: 308.93 | I93: 337.13 | J93: 342.67 | K93: 351.23 | L93: 334.1 | M93: 320 | N93: 12914200 | O93: -0.88%
A94: 84 | B94: Capital_Goods | C94: LT | D94: 1184.85 | E94: 1178.60 | F94: 1168.50 | G94: 1152.15 | H94: 1142.05 | I94: 1194.95 | J94: 1205.05 | K94: 1221.40 | L94: 1188.7 | M94: 1162.25 | N94: 20353875 | O94: 0.09%
A95: 85 | B95: Pharma | C95: LUPIN | D95: 651.95 | E95: 649.75 | F95: 637.55 | G95: 623.15 | H95: 610.95 | I95: 664.15 | J95: 676.35 | K95: 690.75 | L95: 661.95 | M95: 635.35 | N95: 6571600 | O95: 0.37%
A96: 86 | B96: Automobile | C96: M&M | D96: 463.70 | E96: 462.17 | F96: 455.53 | G96: 447.37 | H96: 440.73 | I96: 470.33 | J96: 476.97 | K96: 485.13 | L96: 468.8 | M96: 454 | N96: 13654000 | O96: 1.49%
A97: 87 | B97: Finance | C97: M&MFIN | D97: 341.35 | E97: 341.57 | F97: 334.98 | G97: 328.62 | H97: 322.03 | I97: 347.93 | J97: 354.52 | K97: 360.88 | L97: 348.15 | M97: 335.2 | N97: 9592000 | O97: -2.69%
A98: 88 | B98: Finance | C98: MANAPPURAM | D98: 162.00 | E98: 161.42 | F98: 157.98 | G98: 153.97 | H98: 150.53 | I98: 165.43 | J98: 168.87 | K98: 172.88 | L98: 164.85 | M98: 157.4 | N98: 21258000 | O98: 4.76%
A99: 89 | B99: FMCG | C99: MARICO | D99: 295.55 | E99: 295.25 | F99: 291.60 | G99: 287.65 | H99: 284.00 | I99: 299.20 | J99: 302.85 | K99: 306.80 | L99: 298.9 | M99: 291.3 | N99: 11144900 | O99: 1.16%
A100: 90 | B100: Automobile | C100: MARUTI | D100: 6391.00 | E100: 6365.00 | F100: 6306.00 | G100: 6221.00 | H100: 6162.00 | I100: 6450.00 | J100: 6509.00 | K100: 6594.00 | L100: 6424 | M100: 6280 | N100: 3277300 | O100: -3.48%
A101: 91 | B101: FMCG | C101: MCDOWELL-N | D101: 670.70 | E101: 674.25 | F101: 660.35 | G101: 650.00 | H101: 636.10 | I101: 684.60 | J101: 698.50 | K101: 708.85 | L101: 688.15 | M101: 663.9 | N101: 14942500 | O101: 0.78%
A102: 92 | B102: Finance | C102: MFSL | D102: 591.95 | E102: 587.63 | F102: 581.07 | G102: 570.18 | H102: 563.62 | I102: 598.52 | J102: 605.08 | K102: 615.97 | L102: 594.2 | M102: 576.75 | N102: 2380300 | O102: -6.87%
A103: 93 | B103: Oil_Gas | C103: MGL | D103: 1027.45 | E103: 1031.22 | F103: 1000.23 | G103: 973.02 | H103: 942.03 | I103: 1058.43 | J103: 1089.42 | K103: 1116.63 | L103: 1062.2 | M103: 1004 | N103: 2576400 | O103: 0.87%
A104: 94 | B104: Technology | C104: MINDTREE | D104: 984.45 | E104: 965.48 | F104: 943.32 | G104: 902.18 | H104: 880.02 | I104: 1006.62 | J104: 1028.78 | K104: 1069.92 | L104: 987.65 | M104: 924.35 | N104: 1186400 | O104: 0.14%
A105: 95 | B105: Automobile | C105: MOTHERSUMI | D105: 105.20 | E105: 104.45 | F105: 102.30 | G105: 99.40 | H105: 97.25 | I105: 107.35 | J105: 109.50 | K105: 112.40 | L105: 106.6 | M105: 101.55 | N105: 23610000 | O105: -2.88%
A106: 96 | B106: Automobile | C106: MRF | D106: 67834.05 | E106: 67344.48 | F106: 66239.57 | G106: 64645.08 | H106: 63540.17 | I106: 68938.97 | J106: 70043.88 | K106: 71638.37 | L106: 68449.4 | M106: 65750 | N106: 21730 | O106: 0.84%
A107: 97 | B107: Finance | C107: MUTHOOTFIN | D107: 865.40 | E107: 861.22 | F107: 849.18 | G107: 832.97 | H107: 820.93 | I107: 877.43 | J107: 889.47 | K107: 905.68 | L107: 873.25 | M107: 845 | N107: 4647000 | O107: 2.99%
A108: 98 | B108: Metals | C108: NATIONALUM | D108: 34.35 | E108: 33.85 | F108: 32.90 | G108: 31.45 | H108: 30.50 | I108: 35.30 | J108: 36.25 | K108: 37.70 | L108: 34.8 | M108: 32.4 | N108: 36188100 | O108: 0.19%
A109: 99 | B109: Others | C109: NAUKRI | D109: 2799.85 | E109: 2777.87 | F109: 2741.98 | G109: 2684.12 | H109: 2648.23 | I109: 2835.73 | J109: 2871.62 | K109: 2929.48 | L109: 2813.75 | M109: 2720 | N109: 314400 | O109: 18.11%
A110: 100 | B110: Infrastructure | C110: NCC | D110: 37.55 | E110: 37.15 | F110: 35.95 | G110: 34.35 | H110: 33.15 | I110: 38.75 | J110: 39.95 | K110: 41.55 | L110: 38.35 | M110: 35.55 | N110: 43281000 | O110: 7.37%
A111: 101 | B111: FMCG | C111: NESTLEIND | D111: 16366.75 | E111: 16336.72 | F111: 16193.43 | G111: 16020.12 | H111: 15876.83 | I111: 16510.03 | J111: 16653.32 | K111: 16826.63 | L111: 16480 | M111: 16163.4 | N111: 479900 | O111: -0.38%
A112: 102 | B112: Technology | C112: NIITTECH | D112: 1855.85 | E112: 1834.73 | F112: 1804.52 | G112: 1753.18 | H112: 1722.97 | I112: 1886.07 | J112: 1916.28 | K112: 1967.62 | L112: 1864.95 | M112: 1783.4 | N112: 592125 | O112: 4.50%
A113: 103 | B113: Metals | C113: NMDC | D113: 92.85 | E113: 91.63 | F113: 89.77 | G113: 86.68 | H113: 84.82 | I113: 94.72 | J113: 96.58 | K113: 99.67 | L113: 93.5 | M113: 88.55 | N113: 32814000 | O113: 0.13%
A114: 104 | B114: Power | C114: NTPC | D114: 105.30 | E114: 104.37 | F114: 102.63 | G114: 99.97 | H114: 98.23 | I114: 107.03 | J114: 108.77 | K114: 111.43 | L114: 106.1 | M114: 101.7 | N114: 67401600 | O114: -11.09%
A115: 105 | B115: Oil_Gas | C115: OIL | D115: 103.10 | E115: 101.37 | F115: 98.98 | G115: 94.87 | H115: 92.48 | I115: 105.48 | J115: 107.87 | K115: 111.98 | L115: 103.75 | M115: 97.25 | N115: 10995765 | O115: 13.19%
A116: 106 | B116: Oil_Gas | C116: ONGC | D116: 90.05 | E116: 89.13 | F116: 87.62 | G116: 85.18 | H116: 83.67 | I116: 91.57 | J116: 93.08 | K116: 95.52 | L116: 90.65 | M116: 86.7 | N116: 75296500 | O116: -0.09%
A117: 107 | B117: Textile | C117: PAGEIND | D117: 22053.90 | E117: 21886.70 | F117: 21528.75 | G117: 21003.60 | H117: 20645.65 | I117: 22411.85 | J117: 22769.80 | K117: 23294.95 | L117: 22244.65 | M117: 21361.55 | N117: 186550 | O117: -1.30%
A118: 108 | B118: Pharma | C118: PEL | D118: 1434.15 | E118: 1418.67 | F118: 1392.18 | G118: 1350.22 | H118: 1323.73 | I118: 1460.63 | J118: 1487.12 | K118: 1529.08 | L118: 1445.15 | M118: 1376.7 | N118: 3306300 | O118: -3.37%
A119: 109 | B119: Oil_Gas | C119: PETRONET | D119: 249.55 | E119: 247.63 | F119: 244.47 | G119: 239.38 | H119: 236.22 | I119: 252.72 | J119: 255.88 | K119: 260.97 | L119: 250.8 | M119: 242.55 | N119: 7767000 | O119: 0.98%
A120: 110 | B120: Finance | C120: PFC | D120: 113.65 | E120: 113.15 | F120: 111.10 | G120: 108.55 | H120: 106.50 | I120: 115.70 | J120: 117.75 | K120: 120.30 | L120: 115.2 | M120: 110.6 | N120: 45799400 | O120: 0.09%
A121: 111 | B121: FMCG | C121: PIDILITIND | D121: 1539.25 | E121: 1535.90 | F121: 1518.80 | G121: 1498.35 | H121: 1481.25 | I121: 1556.35 | J121: 1573.45 | K121: 1593.90 | L121: 1553 | M121: 1515.45 | N121: 1782500 | O121: -0.39%
A122: 112 | B122: Banking | C122: PNB | D122: 44.60 | E122: 44.18 | F122: 43.27 | G122: 41.93 | H122: 41.02 | I122: 45.52 | J122: 46.43 | K122: 47.77 | L122: 45.1 | M122: 42.85 | N122: 117171100 | O122: -0.01%
A123: 113 | B123: Power | C123: POWERGRID | D123: 179.60 | E123: 177.83 | F123: 174.32 | G123: 169.03 | H123: 165.52 | I123: 183.12 | J123: 186.63 | K123: 191.92 | L123: 181.35 | M123: 172.55 | N123: 49176000 | O123: 9.88%
A124: 114 | B124: Media | C124: PVR | D124: 1721.60 | E124: 1719.87 | F124: 1670.73 | G124: 1619.87 | H124: 1570.73 | I124: 1770.73 | J124: 1819.87 | K124: 1870.73 | L124: 1769 | M124: 1669 | N124: 1420400 | O124: 27.41%
A125: 115 | B125: Cement | C125: RAMCOCEM | D125: 776.65 | E125: 769.45 | F125: 747.90 | G125: 719.15 | H125: 697.60 | I125: 798.20 | J125: 819.75 | K125: 848.50 | L125: 791 | M125: 740.7 | N125: 1010400 | O125: 1.04%
A126: 116 | B126: Banking | C126: RBLBANK | D126: 290.45 | E126: 289.80 | F126: 282.70 | G126: 274.95 | H126: 267.85 | I126: 297.55 | J126: 304.65 | K126: 312.40 | L126: 296.9 | M126: 282.05 | N126: 15892500 | O126: 0.60%
A127: 117 | B127: Power | C127: RECLTD | D127: 120.25 | E127: 119.40 | F127: 117.55 | G127: 114.85 | H127: 113.00 | I127: 122.10 | J127: 123.95 | K127: 126.65 | L127: 121.25 | M127: 116.7 | N127: 18774000 | O127: -0.41%
A128: 118 | B128: Oil_Gas | C128: RELIANCE | D128: 1344.30 | E128: 1338.63 | F128: 1325.92 | G128: 1307.53 | H128: 1294.82 | I128: 1357.02 | J128: 1369.73 | K128: 1388.12 | L128: 1351.35 | M128: 1320.25 | N128: 35491500 | O128: 1.14%
A129: 119 | B129: Metals | C129: SAIL | D129: 36.15 | E129: 35.95 | F129: 35.35 | G129: 34.55 | H129: 33.95 | I129: 36.75 | J129: 37.35 | K129: 38.15 | L129: 36.55 | M129: 35.15 | N129: 70006300 | O129: -1.59%
A130: 120 | B130: Banking | C130: SBIN | D130: 290.20 | E130: 290.12 | F130: 285.63 | G130: 281.07 | H130: 276.58 | I130: 294.68 | J130: 299.17 | K130: 303.73 | L130: 294.6 | M130: 285.55 | N130: 139926000 | O130: -0.38%
A131: 121 | B131: Cement | C131: SHREECEM | D131: 23762.25 | E131: 23563.30 | F131: 23198.95 | G131: 22635.65 | H131: 22271.30 | I131: 24126.60 | J131: 24490.95 | K131: 25054.25 | L131: 23927.65 | M131: 23000 | N131: 163900 | O131: 0.71%
A132: 122 | B132: Capital_Goods | C132: SIEMENS | D132: 1361.15 | E132: 1344.87 | F132: 1322.23 | G132: 1283.32 | H132: 1260.68 | I132: 1383.78 | J132: 1406.42 | K132: 1445.33 | L132: 1367.5 | M132: 1305.95 | N132: 1966800 | O132: -4.33%
A133: 123 | B133: Textile | C133: SRF | D133: 4008.00 | E133: 3971.00 | F133: 3922.05 | G133: 3836.10 | H133: 3787.15 | I133: 4056.95 | J133: 4105.90 | K133: 4191.85 | L133: 4019.95 | M133: 3885.05 | N133: 780500 | O133: -1.01%
A134: 124 | B134: Finance | C134: SRTRANSFIN | D134: 1247.95 | E134: 1252.77 | F134: 1223.78 | G134: 1199.62 | H134: 1170.63 | I134: 1276.93 | J134: 1305.92 | K134: 1330.08 | L134: 1281.75 | M134: 1228.6 | N134: 4354200 | O134: -3.54%
A135: 125 | B135: Pharma | C135: SUNPHARMA | D135: 393.80 | E135: 388.37 | F135: 380.03 | G135: 366.27 | H135: 357.93 | I135: 402.13 | J135: 410.47 | K135: 424.23 | L135: 396.7 | M135: 374.6 | N135: 70965000 | O135: -2.27%
A136: 126 | B136: Media | C136: SUNTV | D136: 430.95 | E136: 426.68 | F136: 417.92 | G136: 404.88 | H136: 396.12 | I136: 439.72 | J136: 448.48 | K136: 461.52 | L136: 435.45 | M136: 413.65 | N136: 6441600 | O136: 2.54%
A137: 127 | B137: Fertilisers | C137: TATACHEM | D137: 722.55 | E137: 718.83 | F137: 707.97 | G137: 693.38 | H137: 682.52 | I137: 733.42 | J137: 744.28 | K137: 758.87 | L137: 729.7 | M137: 704.25 | N137: 402300 | O137: -63.48%
A138: 128 | B138: Others | C138: TATACONSUM | D138: 355.20 | E138: 350.92 | F138: 345.33 | G138: 335.47 | H138: 329.88 | I138: 360.78 | J138: 366.37 | K138: 376.23 | L138: 356.5 | M138: 341.05 | N138: 17147700 | O138: -1.37%
A139: 129 | B139: Automobile | C139: TATAMOTORS | D139: 130.90 | E139: 129.52 | F139: 127.23 | G139: 123.57 | H139: 121.28 | I139: 133.18 | J139: 135.47 | K139: 139.13 | L139: 131.8 | M139: 125.85 | N139: 89968900 | O139: 4.88%
A140: 130 | B140: Power | C140: TATAPOWER | D140: 44.60 | E140: 44.45 | F140: 43.70 | G140: 42.80 | H140: 42.05 | I140: 45.35 | J140: 46.10 | K140: 47.00 | L140: 45.2 | M140: 43.55 | N140: 65565000 | O140: -0.57%
A141: 131 | B141: Metals | C141: TATASTEEL | D141: 388.30 | E141: 383.78 | F141: 375.97 | G141: 363.63 | H141: 355.82 | I141: 396.12 | J141: 403.93 | K141: 416.27 | L141: 391.6 | M141: 371.45 | N141: 20616000 | O141: -6.36%
A142: 132 | B142: Technology | C142: TCS | D142: 2028.70 | E142: 2021.90 | F142: 2000.90 | G142: 1973.10 | H142: 1952.10 | I142: 2049.70 | J142: 2070.70 | K142: 2098.50 | L142: 2042.9 | M142: 1994.1 | N142: 6672250 | O142: 5.95%
A143: 133 | B143: Technology | C143: TECHM | D143: 755.85 | E143: 752.67 | F143: 745.18 | G143: 734.52 | H143: 727.03 | I143: 763.33 | J143: 770.82 | K143: 781.48 | L143: 760.15 | M143: 742 | N143: 14498400 | O143: 0.00%
A144: 134 | B144: FMCG | C144: TITAN | D144: 1249.10 | E144: 1246.63 | F144: 1225.52 | G144: 1201.93 | H144: 1180.82 | I144: 1270.22 | J144: 1291.33 | K144: 1314.92 | L144: 1267.75 | M144: 1223.05 | N144: 5745750 | O144: 6.68%
A145: 135 | B145: Pharma | C145: TORNTPHARM | D145: 2151.75 | E145: 2132.52 | F145: 2109.28 | G145: 2066.82 | H145: 2043.58 | I145: 2174.98 | J145: 2198.22 | K145: 2240.68 | L145: 2155.75 | M145: 2090.05 | N145: 355000 | O145: 8.73%
A146: 136 | B146: Power | C146: TORNTPOWER | D146: 319.65 | E146: 317.73 | F146: 313.77 | G146: 307.88 | H146: 303.92 | I146: 323.62 | J146: 327.58 | K146: 333.47 | L146: 321.7 | M146: 311.85 | N146: 3969000 | O146: 6.95%
A147: 137 | B147: Automobile | C147: TVSMOTOR | D147: 420.45 | E147: 416.28 | F147: 408.77 | G147: 397.08 | H147: 389.57 | I147: 427.97 | J147: 435.48 | K147: 447.17 | L147: 423.8 | M147: 404.6 | N147: 4604850 | O147: -0.90%
A148: 138 | B148: FMCG | C148: UBL | D148: 1232.75 | E148: 1227.08 | F148: 1211.67 | G148: 1190.58 | H148: 1175.17 | I148: 1248.17 | J148: 1263.58 | K148: 1284.67 | L148: 1242.5 | M148: 1206 | N148: 1587600 | O148: -2.41%
A149: 139 | B149: Finance | C149: UJJIVAN | D149: 340.80 | E149: 338.60 | F149: 334.45 | G149: 328.10 | H149: 323.95 | I149: 344.95 | J149: 349.10 | K149: 355.45 | L149: 342.75 | M149: 332.25 | N149: 5319300 | O149: -9.28%
A150: 140 | B150: Cement | C150: ULTRACEMCO | D150: 4299.25 | E150: 4258.77 | F150: 4193.58 | G150: 4087.92 | H150: 4022.73 | I150: 4364.43 | J150: 4429.62 | K150: 4535.28 | L150: 4323.95 | M150: 4153.1 | N150: 2325600 | O150: 2.56%
A151: 141 | B151: Fertilisers | C151: UPL | D151: 523.60 | E151: 521.30 | F151: 515.10 | G151: 506.60 | H151: 500.40 | I151: 529.80 | J151: 536.00 | K151: 544.50 | L151: 527.5 | M151: 512.8 | N151: 13914000 | O151: 2.55%
A152: 142 | B152: Metals | C152: VEDL | D152: 116.15 | E152: 114.60 | F152: 111.70 | G152: 107.25 | H152: 104.35 | I152: 119.05 | J152: 121.95 | K152: 126.40 | L152: 117.5 | M152: 110.15 | N152: 63826000 | O152: 0.67%
A153: 143 | B153: Capital_Goods | C153: VOLTAS | D153: 688.85 | E153: 681.97 | F153: 672.93 | G153: 657.02 | H153: 647.98 | I153: 697.88 | J153: 706.92 | K153: 722.83 | L153: 691 | M153: 666.05 | N153: 2963000 | O153: -1.07%
A154: 144 | B154: Technology | C154: WIPRO | D154: 224.50 | E154: 223.80 | F154: 221.70 | G154: 218.90 | H154: 216.80 | I154: 226.60 | J154: 228.70 | K154: 231.50 | L154: 225.9 | M154: 221 | N154: 16899200 | O154: -1.89%
A155: 145 | B155: Banking | C155: YESBANK | D155: 26.50 | E155: 26.88 | F155: 25.17 | G155: 23.83 | H155: 22.12 | I155: 28.22 | J155: 29.93 | K155: 31.27 | L155: 28.6 | M155: 25.55 | N155: 312875200 | O155: 2.71%
A156: 146 | B156: Media | C156: ZEEL | D156: 251.95 | E156: 246.92 | F156: 237.28 | G156: 222.62 | H156: 212.98 | I156: 261.58 | J156: 271.22 | K156: 285.88 | L156: 256.55 | M156: 232.25 | N156: 23834000 | O156: -2.86%
A157: 147
A175: Pivot Point: This is trigger point for intra day buy/sell based on the price range of the previous day
A176: As per the tool,the trader should take BUY position just above Pivot and keep the stop loss of pivot point and the first target would be Resistance 1(R1)
A177: If R1 is crossed then R2 becomes the next target with stop loss of at R1
A178: Similarly if price goes below pivot point then the trader should sell and keep a stop loss of pivot point and the first target would be S1
A179: If S1 is crossed then S2 becomes the next target with stop loss of at S1
A181: Disclaimer:
A182: This document has been prepared by the Retail Research Desk of Asit C Mehta
A183: Investment Intermediates Ltd. and is meant for use of the recipient only
A184: and is not for circulation. This document is not to be reported or
A185: copied or made available to others. It should not be considered to be
A186: taken as an offer to sell or a solicitation to buy any security. The
A187: information contained herein is from sources believed reliable. We do
A188: not represent that it is accurate or complete and it should not be
A189: relied upon as such. We may from time to time have positions in and buy
A190: and sell securities referred to herein

Sheet Cash Intra
M5: Back to Main Page
A6: FOR INTRA DAY TRADING | K6: =Main!B10 -> 2020-03-04
A8: Sr.no | B8: Scrip | C8: CLOSE RATE | D8: Pivot Point | E8: Supports | H8: Resistances
C9: Point | E9: S1 | F9: S2 | G9: S3 | H9: R1 | I9: R2 | J9: R3 | K9: HIGH | L9: LOW | M9: Total Trade Quanity in Lakhs
A10: 1 | B10: Nifty 50 | C10: 11303.3 | D10: 11266.03 | E10: 11189.82 | F10: 11076.33 | G10: 11000.12 | H10: 11379.52 | I10: 11455.73 | J10: 11569.22 | K10: 11342.25 | L10: 11152.55
A11: 2 | B11: Nifty Bank | C11: 29177.05 | D11: 29070.65 | E11: 28855.95 | F11: 28534.85 | G11: 28320.15 | H11: 29391.75 | I11: 29606.45 | J11: 29927.55 | K11: 29285.35 | L11: 28749.55
A12: 3 | B12: Nifty CPSE | C12: 1601.2 | D12: 1585.23 | E12: 1554.47 | F12: 1507.73 | G12: 1476.97 | H12: 1631.97 | I12: 1662.73 | J12: 1709.47 | K12: 1616 | L12: 1538.5
A13: 4 | B13: Nifty Infra | C13: 3044.8 | D13: 3031.42 | E13: 3005.98 | F13: 2967.17 | G13: 2941.73 | H13: 3070.23 | I13: 3095.67 | J13: 3134.48 | K13: 3056.85 | L13: 2992.6
A14: 5 | B14: Nifty IT | C14: 15723.2 | D14: 15670.67 | E14: 15548.23 | F14: 15373.27 | G14: 15250.83 | H14: 15845.63 | I14: 15968.07 | J14: 16143.03 | K14: 15793.1 | L14: 15495.7
A15: 6 | B15: Nifty PSE | C15: 2777.25 | D15: 2757.87 | E15: 2719.43 | F15: 2661.62 | G15: 2623.18 | H15: 2815.68 | I15: 2854.12 | J15: 2911.93 | K15: 2796.3 | L15: 2700.05
A16: 7 | B16: Nifty Midcap 50 | C16: 4562.2 | D16: 4538.43 | E16: 4493.72 | F16: 4425.23 | G16: 4380.52 | H16: 4606.92 | I16: 4651.63 | J16: 4720.12 | K16: 4583.15 | L16: 4469.95
A17: 8 | B17: ACC | C17: 1335.25 | D17: 1321.75 | E17: 1301.50 | F17: 1267.75 | G17: 1247.50 | H17: 1355.50 | I17: 1375.75 | J17: 1409.50 | K17: 1342 | L17: 1288 | M17: 5.14199
A18: 9 | B18: AUBANK | C18: 1174.2 | D18: 1171.40 | E18: 1152.80 | F18: 1131.40 | G18: 1112.80 | H18: 1192.80 | I18: 1211.40 | J18: 1232.80 | K18: 1190 | L18: 1150 | M18: 4.21839
A19: 10 | B19: ADANIPORTS | C19: 347.3 | D19: 346.12 | E19: 343.18 | F19: 339.07 | G19: 336.13 | H19: 350.23 | I19: 353.17 | J19: 357.28 | K19: 349.05 | L19: 342 | M19: 29.12256
A20: 11 | B20: ADANIPOWER | C20: 48.9 | D20: 48.77 | E20: 47.88 | F20: 46.87 | G20: 45.98 | H20: 49.78 | I20: 50.67 | J20: 51.68 | K20: 49.65 | L20: 47.75 | M20: 57.54033
A21: 12 | B21: ABCAPITAL | C21: 77.85 | D21: 77.83 | E21: 76.82 | F21: 75.78 | G21: 74.77 | H21: 78.87 | I21: 79.88 | J21: 80.92 | K21: 78.85 | L21: 76.8 | M21: 21.59998
A22: 13 | B22: ABFRL | C22: 254.25 | D22: 251.08 | E22: 242.17 | F22: 230.08 | G22: 221.17 | H22: 263.17 | I22: 272.08 | J22: 284.17 | K22: 260 | L22: 239 | M22: 2.71489
A23: 14 | B23: AJANTPHARM | C23: 1477.5 | D23: 1467.93 | E23: 1404.87 | F23: 1332.23 | G23: 1269.17 | H23: 1540.57 | I23: 1603.63 | J23: 1676.27 | K23: 1531 | L23: 1395.3 | M23: 0.73403
A24: 15 | B24: ALKEM | C24: 2642.35 | D24: 2640.78 | E24: 2611.57 | F24: 2580.78 | G24: 2551.57 | H24: 2671.57 | I24: 2700.78 | J24: 2731.57 | K24: 2670 | L24: 2610 | M24: 1.31984
A25: 16 | B25: AMARAJABAT | C25: 644.75 | D25: 639.12 | E25: 629.33 | F25: 613.92 | G25: 604.13 | H25: 654.53 | I25: 664.32 | J25: 679.73 | K25: 648.9 | L25: 623.7 | M25: 5.92956
A26: 17 | B26: AMBUJACEM | C26: 211.15 | D26: 209.00 | E26: 205.80 | F26: 200.45 | G26: 197.25 | H26: 214.35 | I26: 217.55 | J26: 222.90 | K26: 212.2 | L26: 203.65 | M26: 29.06515
A27: 18 | B27: APOLLOHOSP | C27: 1725.7 | D27: 1724.63 | E27: 1696.07 | F27: 1666.43 | G27: 1637.87 | H27: 1754.27 | I27: 1782.83 | J27: 1812.47 | K27: 1753.2 | L27: 1695 | M27: 3.77299
A28: 19 | B28: APOLLOTYRE | C28: 141.75 | D28: 140.40 | E28: 137.90 | F28: 134.05 | G28: 131.55 | H28: 144.25 | I28: 146.75 | J28: 150.60 | K28: 142.9 | L28: 136.55 | M28: 20.59074
A29: 20 | B29: ASHOKLEY | C29: 75.45 | D29: 75.03 | E29: 73.07 | F29: 70.68 | G29: 68.72 | H29: 77.42 | I29: 79.38 | J29: 81.77 | K29: 77 | L29: 72.65 | M29: 119.77376
A30: 21 | B30: ASIANPAINT | C30: 1800.55 | D30: 1795.18 | E30: 1772.37 | F30: 1744.18 | G30: 1721.37 | H30: 1823.37 | I30: 1846.18 | J30: 1874.37 | K30: 1818 | L30: 1767 | M30: 11.69614
A31: 22 | B31: AUROPHARMA | C31: 511.3 | D31: 508.32 | E31: 501.23 | F31: 491.17 | G31: 484.08 | H31: 518.38 | I31: 525.47 | J31: 535.53 | K31: 515.4 | L31: 498.25 | M31: 31.79653
A32: 23 | B32: DMART | C32: 2233.05 | D32: 2226.67 | E32: 2179.33 | F32: 2125.62 | G32: 2078.28 | H32: 2280.38 | I32: 2327.72 | J32: 2381.43 | K32: 2274 | L32: 2172.95 | M32: 15.72997
A33: 24 | B33: AXISBANK | C33: 687.15 | D33: 685.98 | E33: 676.17 | F33: 665.18 | G33: 655.37 | H33: 696.97 | I33: 706.78 | J33: 717.77 | K33: 695.8 | L33: 675 | M33: 83.45819
A34: 25 | B34: BAJAJ-AUTO | C34: 2692.25 | D34: 2691.75 | E34: 2653.50 | F34: 2614.75 | G34: 2576.50 | H34: 2730.50 | I34: 2768.75 | J34: 2807.50 | K34: 2730 | L34: 2653 | M34: 11.41144
A35: 26 | B35: BAJFINANCE | C35: 4454.1 | D35: 4416.37 | E35: 4357.78 | F35: 4261.47 | G35: 4202.88 | H35: 4512.68 | I35: 4571.27 | J35: 4667.58 | K35: 4474.95 | L35: 4320.05 | M35: 17.36927
A36: 27 | B36: BAJAJFINSV | C36: 8963.65 | D36: 8920.10 | E36: 8723.55 | F36: 8483.45 | G36: 8286.90 | H36: 9160.20 | I36: 9356.75 | J36: 9596.85 | K36: 9116.65 | L36: 8680 | M36: 3.29541
A37: 28 | B37: BAJAJHLDNG | C37: 3368.3 | D37: 3385.40 | E37: 3332.90 | F37: 3297.50 | G37: 3245.00 | H37: 3420.80 | I37: 3473.30 | J37: 3508.70 | K37: 3437.9 | L37: 3350 | M37: 0.80743
A38: 29 | B38: BALKRISIND | C38: 1116.6 | D38: 1111.82 | E38: 1071.63 | F38: 1026.67 | G38: 986.48 | H38: 1156.78 | I38: 1196.97 | J38: 1241.93 | K38: 1152 | L38: 1066.85 | M38: 2.71802
A39: 30 | B39: BANDHANBNK | C39: 400.8 | D39: 402.23 | E39: 393.77 | F39: 386.73 | G39: 378.27 | H39: 409.27 | I39: 417.73 | J39: 424.77 | K39: 410.7 | L39: 395.2 | M39: 27.62309
A40: 31 | B40: BANKBARODA | C40: 72.9 | D40: 72.43 | E40: 71.47 | F40: 70.03 | G40: 69.07 | H40: 73.87 | I40: 74.83 | J40: 76.27 | K40: 73.4 | L40: 71 | M40: 224.98038
A41: 32 | B41: BANKINDIA | C41: 49.35 | D41: 49.78 | E41: 48.57 | F41: 47.78 | G41: 46.57 | H41: 50.57 | I41: 51.78 | J41: 52.57 | K41: 51 | L41: 49 | M41: 67.267
A42: 33 | B42: BATAINDIA | C42: 1618.6 | D42: 1624.57 | E42: 1589.18 | F42: 1559.77 | G42: 1524.38 | H42: 1653.98 | I42: 1689.37 | J42: 1718.78 | K42: 1659.95 | L42: 1595.15 | M42: 2.78726
A43: 34 | B43: BERGEPAINT | C43: 541.65 | D43: 547.93 | E43: 532.87 | F43: 524.08 | G43: 509.02 | H43: 556.72 | I43: 571.78 | J43: 580.57 | K43: 563 | L43: 539.15 | M43: 12.10461
A44: 35 | B44: BEL | C44: 74.5 | D44: 73.97 | E44: 72.78 | F44: 71.07 | G44: 69.88 | H44: 75.68 | I44: 76.87 | J44: 78.58 | K44: 75.15 | L44: 72.25 | M44: 565.82665
A45: 36 | B45: BHARATFORG | C45: 443.85 | D45: 446.93 | E45: 432.67 | F45: 421.48 | G45: 407.22 | H45: 458.12 | I45: 472.38 | J45: 483.57 | K45: 461.2 | L45: 435.75 | M45: 7.00915
A46: 37 | B46: BHEL | C46: 31 | D46: 30.73 | E46: 30.12 | F46: 29.23 | G46: 28.62 | H46: 31.62 | I46: 32.23 | J46: 33.12 | K46: 31.35 | L46: 29.85 | M46: 140.87306
A47: 38 | B47: BPCL | C47: 425 | D47: 421.88 | E47: 416.62 | F47: 408.23 | G47: 402.97 | H47: 430.27 | I47: 435.53 | J47: 443.92 | K47: 427.15 | L47: 413.5 | M47: 69.46475
A48: 39 | B48: BHARTIARTL | C48: 520.8 | D48: 522.77 | E48: 512.18 | F48: 503.57 | G48: 492.98 | H48: 531.38 | I48: 541.97 | J48: 550.58 | K48: 533.35 | L48: 514.15 | M48: 180.17965
A49: 40 | B49: INFRATEL | C49: 219.35 | D49: 219.13 | E49: 213.27 | F49: 207.18 | G49: 201.32 | H49: 225.22 | I49: 231.08 | J49: 237.17 | K49: 225 | L49: 213.05 | M49: 58.11965
A50: 41 | B50: BIOCON | C50: 304 | D50: 298.77 | E50: 290.53 | F50: 277.07 | G50: 268.83 | H50: 312.23 | I50: 320.47 | J50: 333.93 | K50: 307 | L50: 285.3 | M50: 19.49668
A51: 42 | B51: BBTC | C51: 1102.45 | D51: 1105.82 | E51: 1081.63 | F51: 1060.82 | G51: 1036.63 | H51: 1126.63 | I51: 1150.82 | J51: 1171.63 | K51: 1130 | L51: 1085 | M51: 0.58867
A52: 43 | B52: BOSCHLTD | C52: 13155.6 | D52: 13022.65 | E52: 12752.95 | F52: 12350.30 | G52: 12080.60 | H52: 13425.30 | I52: 13695.00 | J52: 14097.65 | K52: 13292.35 | L52: 12620 | M52: 0.24677
A53: 44 | B53: BRITANNIA | C53: 3026.5 | D53: 3012.33 | E53: 2979.17 | F53: 2931.83 | G53: 2898.67 | H53: 3059.67 | I53: 3092.83 | J53: 3140.17 | K53: 3045.5 | L53: 2965 | M53: 4.6885
A54: 45 | B54: CESC | C54: 631.4 | D54: 635.93 | E54: 620.82 | F54: 610.23 | G54: 595.12 | H54: 646.52 | I54: 661.63 | J54: 672.22 | K54: 651.05 | L54: 625.35 | M54: 3.39974
A55: 46 | B55: CADILAHC | C55: 260.35 | D55: 254.77 | E55: 246.08 | F55: 231.82 | G55: 223.13 | H55: 269.03 | I55: 277.72 | J55: 291.98 | K55: 263.45 | L55: 240.5 | M55: 11.03855
A56: 47 | B56: CANBK | C56: 141.75 | D56: 141.02 | E56: 138.53 | F56: 135.32 | G56: 132.83 | H56: 144.23 | I56: 146.72 | J56: 149.93 | K56: 143.5 | L56: 137.8 | M56: 70.14346
A57: 48 | B57: CASTROLIND | C57: 146.85 | D57: 148.12 | E57: 142.73 | F57: 138.62 | G57: 133.23 | H57: 152.23 | I57: 157.62 | J57: 161.73 | K57: 153.5 | L57: 144 | M57: 34.61075
A58: 49 | B58: CHOLAFIN | C58: 306.2 | D58: 305.02 | E58: 300.08 | F58: 293.97 | G58: 289.03 | H58: 311.13 | I58: 316.07 | J58: 322.18 | K58: 309.95 | L58: 298.9 | M58: 16.87153
A59: 50 | B59: CIPLA | C59: 425.3 | D59: 418.83 | E59: 408.47 | F59: 391.63 | G59: 381.27 | H59: 435.67 | I59: 446.03 | J59: 462.87 | K59: 429.2 | L59: 402 | M59: 21.84609
A60: 51 | B60: CUB | C60: 217.15 | D60: 215.77 | E60: 213.53 | F60: 209.92 | G60: 207.68 | H60: 219.38 | I60: 221.62 | J60: 225.23 | K60: 218 | L60: 212.15 | M60: 10.62871
A61: 52 | B61: COALINDIA | C61: 178.2 | D61: 176.25 | E61: 172.85 | F61: 167.50 | G61: 164.10 | H61: 181.60 | I61: 185.00 | J61: 190.35 | K61: 179.65 | L61: 170.9 | M61: 352.81395
A62: 53 | B62: COLPAL | C62: 1319.85 | D62: 1314.95 | E62: 1300.95 | F62: 1282.05 | G62: 1268.05 | H62: 1333.85 | I62: 1347.85 | J62: 1366.75 | K62: 1328.95 | L62: 1296.05 | M62: 24.53672
A63: 54 | B63: CONCOR | C63: 489.55 | D63: 494.97 | E63: 479.58 | F63: 469.62 | G63: 454.23 | H63: 504.93 | I63: 520.32 | J63: 530.28 | K63: 510.35 | L63: 485 | M63: 6.92547
A64: 55 | B64: COROMANDEL | C64: 619.25 | D64: 618.45 | E64: 604.05 | F64: 588.85 | G64: 574.45 | H64: 633.65 | I64: 648.05 | J64: 663.25 | K64: 632.85 | L64: 603.25 | M64: 7.17405
A65: 56 | B65: CROMPTON | C65: 277.85 | D65: 278.02 | E65: 273.03 | F65: 268.22 | G65: 263.23 | H65: 282.83 | I65: 287.82 | J65: 292.63 | K65: 283 | L65: 273.2 | M65: 30.8845
A66: 57 | B66: CUMMINSIND | C66: 506.25 | D66: 518.92 | E66: 487.43 | F66: 468.62 | G66: 437.13 | H66: 537.73 | I66: 569.22 | J66: 588.03 | K66: 550.4 | L66: 500.1 | M66: 9.9194
A67: 58 | B67: DLF | C67: 206.8 | D67: 207.42 | E67: 202.78 | F67: 198.77 | G67: 194.13 | H67: 211.43 | I67: 216.07 | J67: 220.08 | K67: 212.05 | L67: 203.4 | M67: 108.10838
A68: 59 | B68: DABUR | C68: 506.6 | D68: 506.63 | E68: 500.27 | F68: 493.93 | G68: 487.57 | H68: 512.97 | I68: 519.33 | J68: 525.67 | K68: 513 | L68: 500.3 | M68: 74.62427
A69: 60 | B69: DALBHARAT | C69: 750.7 | D69: 756.53 | E69: 734.47 | F69: 718.23 | G69: 696.17 | H69: 772.77 | I69: 794.83 | J69: 811.07 | K69: 778.6 | L69: 740.3 | M69: 1.62129
A70: 61 | B70: DIVISLAB | C70: 2183.1 | D70: 2152.22 | E70: 2094.43 | F70: 2005.77 | G70: 1947.98 | H70: 2240.88 | I70: 2298.67 | J70: 2387.33 | K70: 2210 | L70: 2063.55 | M70: 3.22232
A71: 62 | B71: DRREDDY | C71: 3043.7 | D71: 3017.65 | E71: 2957.30 | F71: 2870.90 | G71: 2810.55 | H71: 3104.05 | I71: 3164.40 | J71: 3250.80 | K71: 3078 | L71: 2931.25 | M71: 6.68235
A72: 63 | B72: EDELWEISS | C72: 86.8 | D72: 87.57 | E72: 85.63 | F72: 84.47 | G72: 82.53 | H72: 88.73 | I72: 90.67 | J72: 91.83 | K72: 89.5 | L72: 86.4 | M72: 7.90032
A73: 64 | B73: EICHERMOT | C73: 17888.45 | D73: 17776.48 | E73: 17511.97 | F73: 17135.48 | G73: 16870.97 | H73: 18152.97 | I73: 18417.48 | J73: 18793.97 | K73: 18041 | L73: 17400 | M73: 1.02123
A74: 65 | B74: EMAMILTD | C74: 257 | D74: 258.45 | E74: 253.90 | F74: 250.80 | G74: 246.25 | H74: 261.55 | I74: 266.10 | J74: 269.20 | K74: 263 | L74: 255.35 | M74: 25.57313
A75: 66 | B75: ENDURANCE | C75: 975.5 | D75: 979.78 | E75: 951.57 | F75: 927.63 | G75: 899.42 | H75: 1003.72 | I75: 1031.93 | J75: 1055.87 | K75: 1008 | L75: 955.85 | M75: 0.47896
A76: 67 | B76: ENGINERSIN | C76: 75.7 | D76: 74.73 | E76: 73.47 | F76: 71.23 | G76: 69.97 | H76: 76.97 | I76: 78.23 | J76: 80.47 | K76: 76 | L76: 72.5 | M76: 17.04006
A77: 68 | B77: ESCORTS | C77: 853 | D77: 854.00 | E77: 833.00 | F77: 813.00 | G77: 792.00 | H77: 874.00 | I77: 895.00 | J77: 915.00 | K77: 875 | L77: 834 | M77: 70.11082
A78: 69 | B78: EXIDEIND | C78: 161.7 | D78: 161.30 | E78: 158.85 | F78: 156.00 | G78: 153.55 | H78: 164.15 | I78: 166.60 | J78: 169.45 | K78: 163.75 | L78: 158.45 | M78: 14.66191
A79: 70 | B79: FEDERALBNK | C79: 84.5 | D79: 84.17 | E79: 82.83 | F79: 81.17 | G79: 79.83 | H79: 85.83 | I79: 87.17 | J79: 88.83 | K79: 85.5 | L79: 82.5 | M79: 102.70614
A80: 71 | B80: FORTIS | C80: 153.8 | D80: 153.63 | E80: 151.17 | F80: 148.53 | G80: 146.07 | H80: 156.27 | I80: 158.73 | J80: 161.37 | K80: 156.1 | L80: 151 | M80: 19.33119
A81: 72 | B81: FCONSUMER | C81: 13.9 | D81: 13.57 | E81: 13.23 | F81: 12.57 | G81: 12.23 | H81: 14.23 | I81: 14.57 | J81: 15.23 | K81: 13.9 | L81: 12.9 | M81: 15.70645
A82: 73 | B82: FRETAIL | C82: 304.5 | D82: 303.68 | E82: 293.62 | F82: 282.73 | G82: 272.67 | H82: 314.57 | I82: 324.63 | J82: 335.52 | K82: 313.75 | L82: 292.8 | M82: 10.27307
A83: 74 | B83: GAIL | C83: 103.2 | D83: 102.17 | E83: 100.53 | F83: 97.87 | G83: 96.23 | H83: 104.83 | I83: 106.47 | J83: 109.13 | K83: 103.8 | L83: 99.5 | M83: 153.91445
A84: 75 | B84: GMRINFRA | C84: 20.2 | D84: 20.25 | E84: 19.70 | F84: 19.20 | G84: 18.65 | H84: 20.75 | I84: 21.30 | J84: 21.80 | K84: 20.8 | L84: 19.75 | M84: 105.71558
A85: 76 | B85: GICRE | C85: 166.75 | D85: 167.15 | E85: 164.35 | F85: 161.95 | G85: 159.15 | H85: 169.55 | I85: 172.35 | J85: 174.75 | K85: 169.95 | L85: 164.75 | M85: 2.09376
A86: 77 | B86: GLENMARK | C86: 282.3 | D86: 280.78 | E86: 274.97 | F86: 267.63 | G86: 261.82 | H86: 288.12 | I86: 293.93 | J86: 301.27 | K86: 286.6 | L86: 273.45 | M86: 26.37001
A87: 78 | B87: GODREJAGRO | C87: 465.45 | D87: 460.18 | E87: 450.37 | F87: 435.28 | G87: 425.47 | H87: 475.27 | I87: 485.08 | J87: 500.17 | K87: 470 | L87: 445.1 | M87: 0.4871
A88: 79 | B88: GODREJCP | C88: 618.7 | D88: 612.68 | E88: 599.62 | F88: 580.53 | G88: 567.47 | H88: 631.77 | I88: 644.83 | J88: 663.92 | K88: 625.75 | L88: 593.6 | M88: 18.59249
A89: 80 | B89: GODREJIND | C89: 414.95 | D89: 411.02 | E89: 394.03 | F89: 373.12 | G89: 356.13 | H89: 431.93 | I89: 448.92 | J89: 469.83 | K89: 428 | L89: 390.1 | M89: 0.88259
A90: 81 | B90: GODREJPROP | C90: 1000.05 | D90: 1005.17 | E90: 975.38 | F90: 950.72 | G90: 920.93 | H90: 1029.83 | I90: 1059.62 | J90: 1084.28 | K90: 1034.95 | L90: 980.5 | M90: 1.78002
A91: 82 | B91: GRAPHITE | C91: 236.05 | D91: 234.17 | E91: 228.43 | F91: 220.82 | G91: 215.08 | H91: 241.78 | I91: 247.52 | J91: 255.13 | K91: 239.9 | L91: 226.55 | M91: 8.51755
A92: 83 | B92: GRASIM | C92: 700.05 | D92: 691.88 | E92: 679.17 | F92: 658.28 | G92: 645.57 | H92: 712.77 | I92: 725.48 | J92: 746.37 | K92: 704.6 | L92: 671 | M92: 12.99292
A93: 84 | B93: GSPL | C93: 235.75 | D93: 233.38 | E93: 228.87 | F93: 221.98 | G93: 217.47 | H93: 240.27 | I93: 244.78 | J93: 251.67 | K93: 237.9 | L93: 226.5 | M93: 4.26398
A94: 85 | B94: HEG | C94: 952.3 | D94: 943.23 | E94: 920.57 | F94: 888.83 | G94: 866.17 | H94: 974.97 | I94: 997.63 | J94: 1029.37 | K94: 965.9 | L94: 911.5 | M94: 1.68582
A95: 86 | B95: HCLTECH | C95: 565.05 | D95: 562.93 | E95: 557.12 | F95: 549.18 | G95: 543.37 | H95: 570.87 | I95: 576.68 | J95: 584.62 | K95: 568.75 | L95: 555 | M95: 35.90768
A96: 87 | B96: HDFCAMC | C96: 3062.1 | D96: 3063.65 | E96: 3025.30 | F96: 2988.50 | G96: 2950.15 | H96: 3100.45 | I96: 3138.80 | J96: 3175.60 | K96: 3102 | L96: 3026.85 | M96: 1.96125
A97: 88 | B97: HDFCBANK | C97: 1181.8 | D97: 1178.38 | E97: 1171.42 | F97: 1161.03 | G97: 1154.07 | H97: 1188.77 | I97: 1195.73 | J97: 1206.12 | K97: 1185.35 | L97: 1168 | M97: 55.89134
A98: 89 | B98: HDFCLIFE | C98: 563.5 | D98: 565.38 | E98: 557.77 | F98: 552.03 | G98: 544.42 | H98: 571.12 | I98: 578.73 | J98: 584.47 | K98: 573 | L98: 559.65 | M98: 12.60667
A99: 90 | B99: HAVELLS | C99: 638.55 | D99: 633.85 | E99: 622.70 | F99: 606.85 | G99: 595.70 | H99: 649.70 | I99: 660.85 | J99: 676.70 | K99: 645 | L99: 618 | M99: 11.71667
A100: 91 | B100: HEROMOTOCO | C100: 2054.85 | D100: 2031.57 | E100: 1999.28 | F100: 1943.72 | G100: 1911.43 | H100: 2087.13 | I100: 2119.42 | J100: 2174.98 | K100: 2063.85 | L100: 1976 | M100: 5.74957
A101: 92 | B101: HEXAWARE | C101: 365.8 | D101: 365.43 | E101: 358.97 | F101: 352.13 | G101: 345.67 | H101: 372.27 | I101: 378.73 | J101: 385.57 | K101: 371.9 | L101: 358.6 | M101: 3.23817
A102: 93 | B102: HINDALCO | C102: 159.3 | D102: 156.85 | E102: 153.25 | F102: 147.20 | G102: 143.60 | H102: 162.90 | I102: 166.50 | J102: 172.55 | K102: 160.45 | L102: 150.8 | M102: 60.08376
A103: 94 | B103: HINDPETRO | C103: 205.55 | D103: 203.13 | E103: 198.42 | F103: 191.28 | G103: 186.57 | H103: 210.27 | I103: 214.98 | J103: 222.12 | K103: 207.85 | L103: 196 | M103: 45.95587
A104: 95 | B104: HINDUNILVR | C104: 2166.65 | D104: 2165.98 | E104: 2142.37 | F104: 2118.08 | G104: 2094.47 | H104: 2190.27 | I104: 2213.88 | J104: 2238.17 | K104: 2189.6 | L104: 2141.7 | M104: 19.30834
A105: 96 | B105: HINDZINC | C105: 172.9 | D105: 171.57 | E105: 169.13 | F105: 165.37 | G105: 162.93 | H105: 175.33 | I105: 177.77 | J105: 181.53 | K105: 174 | L105: 167.8 | M105: 7.24986
A106: 97 | B106: HUDCO | C106: 30.2 | D106: 30.18 | E106: 29.62 | F106: 29.03 | G106: 28.47 | H106: 30.77 | I106: 31.33 | J106: 31.92 | K106: 30.75 | L106: 29.6 | M106: 10.06963
A107: 98 | B107: HDFC | C107: 2191.4 | D107: 2197.20 | E107: 2167.50 | F107: 2143.60 | G107: 2113.90 | H107: 2221.10 | I107: 2250.80 | J107: 2274.70 | K107: 2226.9 | L107: 2173.3 | M107: 28.28509
A108: 99 | B108: ICICIBANK | C108: 514.75 | D108: 514.25 | E108: 509.00 | F108: 503.25 | G108: 498.00 | H108: 520.00 | I108: 525.25 | J108: 531.00 | K108: 519.5 | L108: 508.5 | M108: 162.92578
A109: 100 | B109: ICICIGI | C109: 1210.95 | D109: 1215.65 | E109: 1193.30 | F109: 1175.65 | G109: 1153.30 | H109: 1233.30 | I109: 1255.65 | J109: 1273.30 | K109: 1238 | L109: 1198 | M109: 2.01621
A110: 101 | B110: ICICIPRULI | C110: 455.65 | D110: 455.52 | E110: 448.13 | F110: 440.62 | G110: 433.23 | H110: 463.03 | I110: 470.42 | J110: 477.93 | K110: 462.9 | L110: 448 | M110: 10.53162
A111: 102 | B111: IDBI | C111: 29.45 | D111: 29.65 | E111: 28.90 | F111: 28.35 | G111: 27.60 | H111: 30.20 | I111: 30.95 | J111: 31.50 | K111: 30.4 | L111: 29.1 | M111: 6.52812
A112: 103 | B112: IDFCFIRSTB | C112: 37.8 | D112: 38.00 | E112: 37.25 | F112: 36.70 | G112: 35.95 | H112: 38.55 | I112: 39.30 | J112: 39.85 | K112: 38.75 | L112: 37.45 | M112: 209.67183
A113: 104 | B113: ITC | C113: 193.85 | D113: 194.62 | E113: 191.78 | F113: 189.72 | G113: 186.88 | H113: 196.68 | I113: 199.52 | J113: 201.58 | K113: 197.45 | L113: 192.55 | M113: 184.5588
A114: 105 | B114: IBULHSGFIN | C114: 292.55 | D114: 293.25 | E114: 282.70 | F114: 272.85 | G114: 262.30 | H114: 303.10 | I114: 313.65 | J114: 323.50 | K114: 303.8 | L114: 283.4 | M114: 169.75776
A115: 106 | B115: IBVENTURES | C115: 198.25 | D115: 193.60 | E115: 188.65 | F115: 179.05 | G115: 174.10 | H115: 203.20 | I115: 208.15 | J115: 217.75 | K115: 198.55 | L115: 184 | M115: 38.76523
A116: 107 | B116: INDIANB | C116: 69.85 | D116: 70.62 | E116: 68.48 | F116: 67.12 | G116: 64.98 | H116: 71.98 | I116: 74.12 | J116: 75.48 | K116: 72.75 | L116: 69.25 | M116: 14.06266
A117: 108 | B117: INDHOTEL | C117: 133 | D117: 132.27 | E117: 128.78 | F117: 124.57 | G117: 121.08 | H117: 136.48 | I117: 139.97 | J117: 144.18 | K117: 135.75 | L117: 128.05 | M117: 7.1894
A118: 109 | B118: IOC | C118: 106.65 | D118: 106.25 | E118: 104.70 | F118: 102.75 | G118: 101.20 | H118: 108.20 | I118: 109.75 | J118: 111.70 | K118: 107.8 | L118: 104.3 | M118: 367.42641
A119: 110 | B119: IGL | C119: 448 | D119: 445.00 | E119: 439.00 | F119: 430.00 | G119: 424.00 | H119: 454.00 | I119: 460.00 | J119: 469.00 | K119: 451 | L119: 436 | M119: 21.83118
A120: 111 | B120: INDUSINDBK | C120: 1108.05 | D120: 1099.67 | E120: 1081.38 | F120: 1054.72 | G120: 1036.43 | H120: 1126.33 | I120: 1144.62 | J120: 1171.28 | K120: 1117.95 | L120: 1073 | M120: 83.91172
A121: 112 | B121: NAUKRI | C121: 2788.8 | D121: 2769.43 | E121: 2733.87 | F121: 2678.93 | G121: 2643.37 | H121: 2824.37 | I121: 2859.93 | J121: 2914.87 | K121: 2805 | L121: 2714.5 | M121: 2.45742
A122: 113 | B122: INFY | C122: 747 | D122: 749.08 | E122: 739.17 | F122: 731.33 | G122: 721.42 | H122: 756.92 | I122: 766.83 | J122: 774.67 | K122: 759 | L122: 741.25 | M122: 60.92028
A123: 114 | B123: INDIGO | C123: 1228.45 | D123: 1243.12 | E123: 1201.73 | F123: 1175.02 | G123: 1133.63 | H123: 1269.83 | I123: 1311.22 | J123: 1337.93 | K123: 1284.5 | L123: 1216.4 | M123: 18.09304
A124: 115 | B124: IPCALAB | C124: 1506.1 | D124: 1486.68 | E124: 1444.37 | F124: 1382.63 | G124: 1340.32 | H124: 1548.42 | I124: 1590.73 | J124: 1652.47 | K124: 1529 | L124: 1424.95 | M124: 0.82039
A125: 116 | B125: JSWENERGY | C125: 57.35 | D125: 56.63 | E125: 55.22 | F125: 53.08 | G125: 51.67 | H125: 58.77 | I125: 60.18 | J125: 62.32 | K125: 58.05 | L125: 54.5 | M125: 3.42262
A126: 117 | B126: JSWSTEEL | C126: 246.45 | D126: 244.73 | E126: 240.37 | F126: 234.28 | G126: 229.92 | H126: 250.82 | I126: 255.18 | J126: 261.27 | K126: 249.1 | L126: 238.65 | M126: 63.29214
A127: 118 | B127: JINDALSTEL | C127: 160.65 | D127: 159.40 | E127: 156.60 | F127: 152.55 | G127: 149.75 | H127: 163.45 | I127: 166.25 | J127: 170.30 | K127: 162.2 | L127: 155.35 | M127: 152.07085
A128: 119 | B128: JUBLFOOD | C128: 1696.45 | D128: 1681.10 | E128: 1641.40 | F128: 1586.35 | G128: 1546.65 | H128: 1736.15 | I128: 1775.85 | J128: 1830.90 | K128: 1720.8 | L128: 1626.05 | M128: 22.23606
A129: 120 | B129: JUBILANT | C129: 499.75 | D129: 497.40 | E129: 485.95 | F129: 472.15 | G129: 460.70 | H129: 511.20 | I129: 522.65 | J129: 536.45 | K129: 508.85 | L129: 483.6 | M129: 4.33124
A130: 121 | B130: KOTAKBANK | C130: 1626.3 | D130: 1616.55 | E130: 1596.75 | F130: 1567.20 | G130: 1547.40 | H130: 1646.10 | I130: 1665.90 | J130: 1695.45 | K130: 1636.35 | L130: 1587 | M130: 94.95046
A131: 122 | B131: L&TFH | C131: 107.3 | D131: 106.25 | E131: 104.20 | F131: 101.10 | G131: 99.05 | H131: 109.35 | I131: 111.40 | J131: 114.50 | K131: 108.3 | L131: 103.15 | M131: 77.86477
A132: 123 | B132: LTTS | C132: 1675.6 | D132: 1668.17 | E132: 1627.38 | F132: 1579.17 | G132: 1538.38 | H132: 1716.38 | I132: 1757.17 | J132: 1805.38 | K132: 1708.95 | L132: 1619.95 | M132: 0.39962
A133: 124 | B133: LICHSGFIN | C133: 330 | D133: 328.83 | E133: 323.67 | F133: 317.33 | G133: 312.17 | H133: 335.17 | I133: 340.33 | J133: 346.67 | K133: 334 | L133: 322.5 | M133: 75.80796
A134: 125 | B134: LTI | C134: 1961.1 | D134: 1957.38 | E134: 1929.77 | F134: 1898.43 | G134: 1870.82 | H134: 1988.72 | I134: 2016.33 | J134: 2047.67 | K134: 1985 | L134: 1926.05 | M134: 0.36496
A135: 126 | B135: LT | C135: 1181.3 | D135: 1176.72 | E135: 1166.63 | F135: 1151.97 | G135: 1141.88 | H135: 1191.38 | I135: 1201.47 | J135: 1216.13 | K135: 1186.8 | L135: 1162.05 | M135: 39.39306
A136: 127 | B136: LUPIN | C136: 649.6 | D136: 648.48 | E136: 636.42 | F136: 623.23 | G136: 611.17 | H136: 661.67 | I136: 673.73 | J136: 686.92 | K136: 660.55 | L136: 635.3 | M136: 11.17946
A137: 128 | B137: MRF | C137: 67740.7 | D137: 67299.68 | E137: 66041.02 | F137: 64341.33 | G137: 63082.67 | H137: 68999.37 | I137: 70258.03 | J137: 71957.72 | K137: 68558.35 | L137: 65600 | M137: 0.04805
A138: 129 | B138: MGL | C138: 1033.5 | D138: 1037.50 | E138: 1006.00 | F138: 978.50 | G138: 947.00 | H138: 1065.00 | I138: 1096.50 | J138: 1124.00 | K138: 1069 | L138: 1010 | M138: 13.51299
A139: 130 | B139: M&MFIN | C139: 341.1 | D139: 342.52 | E139: 336.33 | F139: 331.57 | G139: 325.38 | H139: 347.28 | I139: 353.47 | J139: 358.23 | K139: 348.7 | L139: 337.75 | M139: 23.06322
A140: 131 | B140: M&M | C140: 466.25 | D140: 464.17 | E140: 457.33 | F140: 448.42 | G140: 441.58 | H140: 473.08 | I140: 479.92 | J140: 488.83 | K140: 471 | L140: 455.25 | M140: 23.52196
A141: 132 | B141: MANAPPURAM | C141: 162.05 | D141: 161.45 | E141: 157.85 | F141: 153.65 | G141: 150.05 | H141: 165.65 | I141: 169.25 | J141: 173.45 | K141: 165.05 | L141: 157.25 | M141: 28.02932
A142: 133 | B142: MRPL | C142: 38.05 | D142: 38.03 | E142: 37.42 | F142: 36.78 | G142: 36.17 | H142: 38.67 | I142: 39.28 | J142: 39.92 | K142: 38.65 | L142: 37.4 | M142: 8.09305
A143: 134 | B143: MARICO | C143: 296.1 | D143: 294.90 | E143: 291.70 | F143: 287.30 | G143: 284.10 | H143: 299.30 | I143: 302.50 | J143: 306.90 | K143: 298.1 | L143: 290.5 | M143: 69.41813
A144: 135 | B144: MARUTI | C144: 6386.05 | D144: 6362.90 | E144: 6303.65 | F144: 6221.25 | G144: 6162.00 | H144: 6445.30 | I144: 6504.55 | J144: 6586.95 | K144: 6422.15 | L144: 6280.5 | M144: 8.68935
A145: 136 | B145: MFSL | C145: 591.4 | D145: 586.88 | E145: 579.62 | F145: 567.83 | G145: 560.57 | H145: 598.67 | I145: 605.93 | J145: 617.72 | K145: 594.15 | L145: 575.1 | M145: 16.72907
A146: 137 | B146: MINDTREE | C146: 989.05 | D146: 988.02 | E146: 955.03 | F146: 921.02 | G146: 888.03 | H146: 1022.03 | I146: 1055.02 | J146: 1089.03 | K146: 1021 | L146: 954 | M146: 4.76824
A147: 138 | B147: MOTHERSUMI | C147: 106.2 | D147: 105.47 | E147: 103.08 | F147: 99.97 | G147: 97.58 | H147: 108.58 | I147: 110.97 | J147: 114.08 | K147: 107.85 | L147: 102.35 | M147: 275.35769
A148: 139 | B148: MPHASIS | C148: 873.45 | D148: 876.38 | E148: 859.22 | F148: 844.98 | G148: 827.82 | H148: 890.62 | I148: 907.78 | J148: 922.02 | K148: 893.55 | L148: 862.15 | M148: 0.51751
A149: 140 | B149: MUTHOOTFIN | C149: 866 | D149: 863.03 | E149: 849.17 | F149: 832.33 | G149: 818.47 | H149: 879.87 | I149: 893.73 | J149: 910.57 | K149: 876.9 | L149: 846.2 | M149: 5.3477
A150: 141 | B150: NATCOPHARM | C150: 618.5 | D150: 613.85 | E150: 602.70 | F150: 586.90 | G150: 575.75 | H150: 629.65 | I150: 640.80 | J150: 656.60 | K150: 625 | L150: 598.05 | M150: 0.70644
A151: 142 | B151: NBCC | C151: 26.9 | D151: 26.80 | E151: 26.20 | F151: 25.50 | G151: 24.90 | H151: 27.50 | I151: 28.10 | J151: 28.80 | K151: 27.4 | L151: 26.1 | M151: 131.59247
A152: 143 | B152: NHPC | C152: 22.85 | D152: 22.45 | E152: 21.50 | F152: 20.15 | G152: 19.20 | H152: 23.80 | I152: 24.75 | J152: 26.10 | K152: 23.4 | L152: 21.1 | M152: 169.98025
A153: 144 | B153: NMDC | C153: 93.45 | D153: 92.27 | E153: 90.18 | F153: 86.92 | G153: 84.83 | H153: 95.53 | I153: 97.62 | J153: 100.88 | K153: 94.35 | L153: 89 | M153: 115.54574
A154: 145 | B154: NTPC | C154: 108.9 | D154: 107.72 | E154: 105.48 | F154: 102.07 | G154: 99.83 | H154: 111.13 | I154: 113.37 | J154: 116.78 | K154: 109.95 | L154: 104.3 | M154: 645.18347
A155: 146 | B155: NATIONALUM | C155: 34.45 | D155: 33.97 | E155: 32.88 | F155: 31.32 | G155: 30.23 | H155: 35.53 | I155: 36.62 | J155: 38.18 | K155: 35.05 | L155: 32.4 | M155: 182.52296
A156: 147 | B156: NESTLEIND | C156: 16359.4 | D156: 16329.55 | E156: 16160.10 | F156: 15960.80 | G156: 15791.35 | H156: 16528.85 | I156: 16698.30 | J156: 16897.60 | K156: 16499 | L156: 16130.25 | M156: 0.59649
A157: 148 | B157: NAM-INDIA | C157: 405.05 | D157: 404.67 | E157: 395.38 | F157: 385.72 | G157: 376.43 | H157: 414.33 | I157: 423.62 | J157: 433.28 | K157: 413.95 | L157: 395 | M157: 1.68229
A158: 149 | B158: OBEROIRLTY | C158: 516.6 | D158: 516.00 | E158: 507.30 | F158: 498.00 | G158: 489.30 | H158: 525.30 | I158: 534.00 | J158: 543.30 | K158: 524.7 | L158: 506.7 | M158: 833.60147
A159: 150 | B159: ONGC | C159: 93.35 | D159: 92.33 | E159: 90.67 | F159: 87.98 | G159: 86.32 | H159: 95.02 | I159: 96.68 | J159: 99.37 | K159: 94 | L159: 89.65 | M159: 95.97439
A160: 151 | B160: OIL | C160: 106.9 | D160: 105.55 | E160: 103.05 | F160: 99.20 | G160: 96.70 | H160: 109.40 | I160: 111.90 | J160: 115.75 | K160: 108.05 | L160: 101.7 | M160: 0.2199
A161: 152 | B161: OFSS | C161: 2660.55 | D161: 2673.55 | E161: 2627.10 | F161: 2593.65 | G161: 2547.20 | H161: 2707.00 | I161: 2753.45 | J161: 2786.90 | K161: 2720 | L161: 2640.1 | M161: 3.09452
A162: 153 | B162: PIIND | C162: 1548.1 | D162: 1551.70 | E162: 1523.40 | F162: 1498.70 | G162: 1470.40 | H162: 1576.40 | I162: 1604.70 | J162: 1629.40 | K162: 1580 | L162: 1527 | M162: 7.15716
A163: 154 | B163: PNBHOUSING | C163: 341.75 | D163: 341.92 | E163: 334.83 | F163: 327.92 | G163: 320.83 | H163: 348.83 | I163: 355.92 | J163: 362.83 | K163: 349 | L163: 335 | M163: 0.22781
A164: 155 | B164: PAGEIND | C164: 22091 | D164: 22064.38 | E164: 21828.77 | F164: 21566.53 | G164: 21330.92 | H164: 22326.62 | I164: 22562.23 | J164: 22824.47 | K164: 22300 | L164: 21802.15 | M164: 23.08304
A165: 156 | B165: PETRONET | C165: 248.25 | D165: 246.53 | E165: 243.27 | F165: 238.28 | G165: 235.02 | H165: 251.52 | I165: 254.78 | J165: 259.77 | K165: 249.8 | L165: 241.55 | M165: 0.12497
A166: 157 | B166: PFIZER | C166: 4422.85 | D166: 4531.65 | E166: 4138.30 | F166: 3853.75 | G166: 3460.40 | H166: 4816.20 | I166: 5209.55 | J166: 5494.10 | K166: 4925 | L166: 4247.1 | M166: 7.69665
A167: 158 | B167: PIDILITIND | C167: 1538.6 | D167: 1536.87 | E167: 1518.78 | F167: 1498.97 | G167: 1480.88 | H167: 1556.68 | I167: 1574.77 | J167: 1594.58 | K167: 1554.95 | L167: 1517.05 | M167: 29.79765
A168: 159 | B168: PEL | C168: 1447 | D168: 1429.67 | E168: 1397.33 | F168: 1347.67 | G168: 1315.33 | H168: 1479.33 | I168: 1511.67 | J168: 1561.33 | K168: 1462 | L168: 1380 | M168: 94.55973
A169: 160 | B169: PFC | C169: 113.25 | D169: 112.82 | E169: 110.78 | F169: 108.32 | G169: 106.28 | H169: 115.28 | I169: 117.32 | J169: 119.78 | K169: 114.85 | L169: 110.35 | M169: 359.92338
A170: 161 | B170: POWERGRID | C170: 191.7 | D170: 189.48 | E170: 184.27 | F170: 176.83 | G170: 171.62 | H170: 196.92 | I170: 202.13 | J170: 209.57 | K170: 194.7 | L170: 182.05 | M170: 3.99518
A171: 162 | B171: PRESTIGE | C171: 318.85 | D171: 318.90 | E171: 305.80 | F171: 292.75 | G171: 279.65 | H171: 331.95 | I171: 345.05 | J171: 358.10 | K171: 332 | L171: 305.85 | M171: 0.02985
A172: 163 | B172: PGHH | C172: 10852 | D172: 10895.47 | E172: 10707.63 | F172: 10563.27 | G172: 10375.43 | H172: 11039.83 | I172: 11227.67 | J172: 11372.03 | K172: 11083.3 | L172: 10751.1 | M172: 154.49355
A173: 164 | B173: PNB | C173: 44.5 | D173: 44.08 | E173: 43.17 | F173: 41.83 | G173: 40.92 | H173: 45.42 | I173: 46.33 | J173: 47.67 | K173: 45 | L173: 42.75 | M173: 5.40845
A174: 165 | B174: QUESS | C174: 514.2 | D174: 511.65 | E174: 505.85 | F174: 497.50 | G174: 491.70 | H174: 520.00 | I174: 525.80 | J174: 534.15 | K174: 517.45 | L174: 503.3 | M174: 58.43485
A175: 166 | B175: RBLBANK | C175: 292.1 | D175: 290.73 | E175: 284.97 | F175: 277.83 | G175: 272.07 | H175: 297.87 | I175: 303.63 | J175: 310.77 | K175: 296.5 | L175: 283.6 | M175: 70.38131
A176: 167 | B176: RECLTD | C176: 119.75 | D176: 119.20 | E176: 117.00 | F176: 114.25 | G176: 112.05 | H176: 121.95 | I176: 124.15 | J176: 126.90 | K176: 121.4 | L176: 116.45 | M176: 1.23317
A177: 168 | B177: RAJESHEXPO | C177: 675.7 | D177: 674.90 | E177: 667.80 | F177: 659.90 | G177: 652.80 | H177: 682.80 | I177: 689.90 | J177: 697.80 | K177: 682 | L177: 667 | M177: 158.86673
A178: 169 | B178: RELIANCE | C178: 1342.85 | D178: 1339.58 | E178: 1325.27 | F178: 1307.68 | G178: 1293.37 | H178: 1357.17 | I178: 1371.48 | J178: 1389.07 | K178: 1353.9 | L178: 1322 | M178: 4.4517
A179: 170 | B179: SBILIFE | C179: 899.85 | D179: 901.97 | E179: 889.93 | F179: 880.02 | G179: 867.98 | H179: 911.88 | I179: 923.92 | J179: 933.83 | K179: 914 | L179: 892.05 | M179: 3.14532
A180: 171 | B180: SRF | C180: 3996.95 | D180: 3959.28 | E180: 3912.67 | F180: 3828.38 | G180: 3781.77 | H180: 4043.57 | I180: 4090.18 | J180: 4174.47 | K180: 4005.9 | L180: 3875 | M180: 0.26041
A181: 172 | B181: SHREECEM | C181: 23593.15 | D181: 23496.03 | E181: 23147.12 | F181: 22701.08 | G181: 22352.17 | H181: 23942.07 | I181: 24290.98 | J181: 24737.02 | K181: 23844.95 | L181: 23050 | M181: 19.83266
A182: 173 | B182: SRTRANSFIN | C182: 1257.1 | D182: 1270.95 | E182: 1237.15 | F182: 1217.20 | G182: 1183.40 | H182: 1290.90 | I182: 1324.70 | J182: 1344.65 | K182: 1304.75 | L182: 1251 | M182: 3.34263
A183: 174 | B183: SIEMENS | C183: 1356.45 | D183: 1340.12 | E183: 1317.48 | F183: 1278.52 | G183: 1255.88 | H183: 1379.08 | I183: 1401.72 | J183: 1440.68 | K183: 1362.75 | L183: 1301.15 | M183: 926.56638
A184: 175 | B184: SBIN | C184: 289.85 | D184: 289.85 | E184: 285.30 | F184: 280.75 | G184: 276.20 | H184: 294.40 | I184: 298.95 | J184: 303.50 | K184: 294.4 | L184: 285.3 | M184: 179.54383
A185: 176 | B185: SAIL | C185: 36 | D185: 35.87 | E185: 35.23 | F185: 34.47 | G185: 33.83 | H185: 36.63 | I185: 37.27 | J185: 38.03 | K185: 36.5 | L185: 35.1 | M185: 8.07575
A186: 177 | B186: STRTECH | C186: 92.05 | D186: 91.02 | E186: 88.23 | F186: 84.42 | G186: 81.63 | H186: 94.83 | I186: 97.62 | J186: 101.43 | K186: 93.8 | L186: 87.2 | M186: 37.57229
A187: 178 | B187: SUNPHARMA | C187: 393.55 | D187: 387.73 | E187: 379.07 | F187: 364.58 | G187: 355.92 | H187: 402.22 | I187: 410.88 | J187: 425.37 | K187: 396.4 | L187: 373.25 | M187: 15.5546
A188: 179 | B188: SUNTV | C188: 431.85 | D188: 427.08 | E188: 418.17 | F188: 404.48 | G188: 395.57 | H188: 440.77 | I188: 449.68 | J188: 463.37 | K188: 436 | L188: 413.4 | M188: 0.78761
A189: 180 | B189: SYNGENE | C189: 293.85 | D189: 292.32 | E189: 287.23 | F189: 280.62 | G189: 275.53 | H189: 298.93 | I189: 304.02 | J189: 310.63 | K189: 297.4 | L189: 285.7 | M189: 8.43524
A190: 181 | B190: TVSMOTOR | C190: 422.15 | D190: 420.22 | E190: 410.43 | F190: 398.72 | G190: 388.93 | H190: 431.93 | I190: 441.72 | J190: 453.43 | K190: 430 | L190: 408.5 | M190: 32.87223
A191: 182 | B191: TCS | C191: 2036.2 | D191: 2036.07 | E191: 2012.13 | F191: 1988.07 | G191: 1964.13 | H191: 2060.13 | I191: 2084.07 | J191: 2108.13 | K191: 2060 | L191: 2012 | M191: 26.8123
A192: 183 | B192: TATACONSUM | C192: 355.3 | D192: 351.20 | E192: 344.70 | F192: 334.10 | G192: 327.60 | H192: 361.80 | I192: 368.30 | J192: 378.90 | K192: 357.7 | L192: 340.6 | M192: 38.13549
A193: 184 | B193: TATAMTRDVR | C193: 55.95 | D193: 55.85 | E193: 54.80 | F193: 53.65 | G193: 52.60 | H193: 57.00 | I193: 58.05 | J193: 59.20 | K193: 56.9 | L193: 54.7 | M193: 756.21897
A194: 185 | B194: TATAMOTORS | C194: 130.35 | D194: 129.00 | E194: 126.60 | F194: 122.85 | G194: 120.45 | H194: 132.75 | I194: 135.15 | J194: 138.90 | K194: 131.4 | L194: 125.25 | M194: 79.77888
A195: 186 | B195: TATAPOWER | C195: 44.4 | D195: 44.28 | E195: 43.52 | F195: 42.63 | G195: 41.87 | H195: 45.17 | I195: 45.93 | J195: 46.82 | K195: 45.05 | L195: 43.4 | M195: 107.38727
A196: 187 | B196: TATASTEEL | C196: 387.55 | D196: 382.88 | E196: 374.77 | F196: 361.98 | G196: 353.87 | H196: 395.67 | I196: 403.78 | J196: 416.57 | K196: 391 | L196: 370.1 | M196: 30.81521
A197: 188 | B197: TECHM | C197: 752.3 | D197: 750.68 | E197: 743.72 | F197: 735.13 | G197: 728.17 | H197: 759.27 | I197: 766.23 | J197: 774.82 | K197: 757.65 | L197: 742.1 | M197: 1.68669
A198: 189 | B198: NIACL | C198: 109.6 | D198: 109.43 | E198: 107.17 | F198: 104.73 | G198: 102.47 | H198: 111.87 | I198: 114.13 | J198: 116.57 | K198: 111.7 | L198: 107 | M198: 5.867
A199: 190 | B199: RAMCOCEM | C199: 776.3 | D199: 771.27 | E199: 750.23 | F199: 724.17 | G199: 703.13 | H199: 797.33 | I199: 818.37 | J199: 844.43 | K199: 792.3 | L199: 745.2 | M199: 18.09101
A200: 191 | B200: TITAN | C200: 1247 | D200: 1248.00 | E200: 1224.00 | F200: 1201.00 | G200: 1177.00 | H200: 1271.00 | I200: 1295.00 | J200: 1318.00 | K200: 1272 | L200: 1225 | M200: 1.67763
A201: 192 | B201: TORNTPHARM | C201: 2145.75 | D201: 2131.03 | E201: 2105.22 | F201: 2064.68 | G201: 2038.87 | H201: 2171.57 | I201: 2197.38 | J201: 2237.92 | K201: 2156.85 | L201: 2090.5 | M201: 11.09871
A202: 193 | B202: TORNTPOWER | C202: 318.6 | D202: 317.53 | E202: 313.07 | F202: 307.53 | G202: 303.07 | H202: 323.07 | I202: 327.53 | J202: 333.07 | K202: 322 | L202: 312 | M202: 43.40034
A203: 194 | B203: UPL | C203: 521.55 | D203: 520.25 | E203: 513.85 | F203: 506.15 | G203: 499.75 | H203: 527.95 | I203: 534.35 | J203: 542.05 | K203: 526.65 | L203: 512.55 | M203: 4.5163
A204: 195 | B204: ULTRACEMCO | C204: 4299.9 | D204: 4262.15 | E204: 4195.30 | F204: 4090.70 | G204: 4023.85 | H204: 4366.75 | I204: 4433.60 | J204: 4538.20 | K204: 4329 | L204: 4157.55 | M204: 21.60583
A205: 196 | B205: UNIONBANK | C205: 36.3 | D205: 36.03 | E205: 35.32 | F205: 34.33 | G205: 33.62 | H205: 37.02 | I205: 37.73 | J205: 38.72 | K205: 36.75 | L205: 35.05 | M205: 3.17811
... 30 more rows

Sheet MidCap Intra
L5: Back To Main Page
A6: FOR INTRA DAY TRADING | K6: =Main!B10 -> 2020-03-04
A9: Sr.no | B9: Scrip | C9: CLOSE RATE | D9: Pivot Point | E9: Supports | H9: Resistances
C10: Point | E10: S1 | F10: S2 | G10: S3 | H10: R1 | I10: R2 | J10: R3 | K10: HIGH | L10: LOW | M10: Total Trade Quanity in Lakhs
A11: 1 | B11: 3MINDIA | C11: 20632.95 | D11: 20646.65 | E11: 20298.30 | F11: 19963.65 | G11: 19615.30 | H11: 20981.30 | I11: 21329.65 | J11: 21664.30 | K11: 20995 | L11: 20312 | M11: 0.07108
A12: 2 | B12: AARTIIND | C12: 983.45 | D12: 981.58 | E12: 968.17 | F12: 952.88 | G12: 939.47 | H12: 996.87 | I12: 1010.28 | J12: 1025.57 | K12: 995 | L12: 966.3 | M12: 2.25422
A13: 3 | B13: AAVAS | C13: 1918.2 | D13: 1907.17 | E13: 1869.33 | F13: 1820.47 | G13: 1782.63 | H13: 1956.03 | I13: 1993.87 | J13: 2042.73 | K13: 1945 | L13: 1858.3 | M13: 0.31876
A14: 4 | B14: ABBOTINDIA | C14: 15427.65 | D14: 15502.88 | E14: 15225.77 | F14: 15023.88 | G14: 14746.77 | H14: 15704.77 | I14: 15981.88 | J14: 16183.77 | K14: 15780 | L14: 15301 | M14: 0.18862
A15: 5 | B15: ABCAPITAL | C15: 77.85 | D15: 77.83 | E15: 76.82 | F15: 75.78 | G15: 74.77 | H15: 78.87 | I15: 79.88 | J15: 80.92 | K15: 78.85 | L15: 76.8 | M15: 13.04622
A16: 6 | B16: ABFRL | C16: 254.25 | D16: 251.08 | E16: 242.17 | F16: 230.08 | G16: 221.17 | H16: 263.17 | I16: 272.08 | J16: 284.17 | K16: 260 | L16: 239 | M16: 11.12115
A17: 7 | B17: ACC | C17: 1335.25 | D17: 1321.75 | E17: 1301.50 | F17: 1267.75 | G17: 1247.50 | H17: 1355.50 | I17: 1375.75 | J17: 1409.50 | K17: 1342 | L17: 1288 | M17: 7.01334
A18: 8 | B18: ADANIGAS | C18: 134.25 | D18: 134.68 | E18: 130.37 | F18: 126.48 | G18: 122.17 | H18: 138.57 | I18: 142.88 | J18: 146.77 | K18: 139 | L18: 130.8 | M18: 36.40772
A19: 9 | B19: ADANIGREEN | C19: 159.5 | D19: 159.83 | E19: 156.67 | F19: 153.83 | G19: 150.67 | H19: 162.67 | I19: 165.83 | J19: 168.67 | K19: 163 | L19: 157 | M19: 5.34459
A20: 10 | B20: ADANIPORTS | C20: 347.3 | D20: 346.12 | E20: 343.18 | F20: 339.07 | G20: 336.13 | H20: 350.23 | I20: 353.17 | J20: 357.28 | K20: 349.05 | L20: 342 | M20: 36.71071
A21: 11 | B21: ADANIPOWER | C21: 48.9 | D21: 48.77 | E21: 47.88 | F21: 46.87 | G21: 45.98 | H21: 49.78 | I21: 50.67 | J21: 51.68 | K21: 49.65 | L21: 47.75 | M21: 77.74434
A22: 12 | B22: ADANITRANS | C22: 256.4 | D22: 257.23 | E22: 251.97 | F22: 247.53 | G22: 242.27 | H22: 261.67 | I22: 266.93 | J22: 271.37 | K22: 262.5 | L22: 252.8 | M22: 1.91427
A23: 13 | B23: ADVENZYMES | C23: 152.85 | D23: 151.62 | E23: 149.43 | F23: 146.02 | G23: 143.83 | H23: 155.03 | I23: 157.22 | J23: 160.63 | K23: 153.8 | L23: 148.2 | M23: 0.52968
A24: 14 | B24: AEGISCHEM | C24: 214.95 | D24: 214.77 | E24: 207.23 | F24: 199.52 | G24: 191.98 | H24: 222.48 | I24: 230.02 | J24: 237.73 | K24: 222.3 | L24: 207.05 | M24: 3.02441
A25: 15 | B25: AFFLE | C25: 1817.15 | D25: 1832.45 | E25: 1765.90 | F25: 1714.65 | G25: 1648.10 | H25: 1883.70 | I25: 1950.25 | J25: 2001.50 | K25: 1899 | L25: 1781.2 | M25: 1.33522
A26: 16 | B26: AIAENG | C26: 1790.8 | D26: 1790.60 | E26: 1731.20 | F26: 1671.60 | G26: 1612.20 | H26: 1850.20 | I26: 1909.60 | J26: 1969.20 | K26: 1850 | L26: 1731 | M26: 0.9197
A27: 17 | B27: AJANTPHARM | C27: 1477.5 | D27: 1467.93 | E27: 1404.87 | F27: 1332.23 | G27: 1269.17 | H27: 1540.57 | I27: 1603.63 | J27: 1676.27 | K27: 1531 | L27: 1395.3 | M27: 1.89534
A28: 18 | B28: AKZOINDIA | C28: 2402 | D28: 2405.32 | E28: 2351.68 | F28: 2301.37 | G28: 2247.73 | H28: 2455.63 | I28: 2509.27 | J28: 2559.58 | K28: 2458.95 | L28: 2355 | M28: 0.21149
A29: 19 | B29: ALKEM | C29: 2642.35 | D29: 2640.78 | E29: 2611.57 | F29: 2580.78 | G29: 2551.57 | H29: 2671.57 | I29: 2700.78 | J29: 2731.57 | K29: 2670 | L29: 2610 | M29: 0.5517
A30: 20 | B30: ALLCARGO | C30: 109.9 | D30: 109.87 | E30: 107.83 | F30: 105.77 | G30: 103.73 | H30: 111.93 | I30: 113.97 | J30: 116.03 | K30: 111.9 | L30: 107.8 | M30: 2.05304
A31: 21 | B31: AMARAJABAT | C31: 644.75 | D31: 639.12 | E31: 629.33 | F31: 613.92 | G31: 604.13 | H31: 654.53 | I31: 664.32 | J31: 679.73 | K31: 648.9 | L31: 623.7 | M31: 8.27545
A32: 22 | B32: AMBER | C32: 1418.85 | D32: 1408.00 | E32: 1386.00 | F32: 1353.15 | G32: 1331.15 | H32: 1440.85 | I32: 1462.85 | J32: 1495.70 | K32: 1430 | L32: 1375.15 | M32: 0.32195
A33: 23 | B33: AMBUJACEM | C33: 211.15 | D33: 209.00 | E33: 205.80 | F33: 200.45 | G33: 197.25 | H33: 214.35 | I33: 217.55 | J33: 222.90 | K33: 212.2 | L33: 203.65 | M33: 45.49626
A34: 24 | B34: APLAPOLLO | C34: 1907.5 | D34: 1885.78 | E34: 1841.57 | F34: 1775.63 | G34: 1731.42 | H34: 1951.72 | I34: 1995.93 | J34: 2061.87 | K34: 1930 | L34: 1819.85 | M34: 0.70258
A35: 25 | B35: APLLTD | C35: 661.2 | D35: 659.37 | E35: 641.83 | F35: 622.47 | G35: 604.93 | H35: 678.73 | I35: 696.27 | J35: 715.63 | K35: 676.9 | L35: 640 | M35: 1.91933
A36: 26 | B36: APOLLOHOSP | C36: 1725.7 | D36: 1724.63 | E36: 1696.07 | F36: 1666.43 | G36: 1637.87 | H36: 1754.27 | I36: 1782.83 | J36: 1812.47 | K36: 1753.2 | L36: 1695 | M36: 6.72514
A37: 27 | B37: APOLLOTYRE | C37: 141.75 | D37: 140.40 | E37: 137.90 | F37: 134.05 | G37: 131.55 | H37: 144.25 | I37: 146.75 | J37: 150.60 | K37: 142.9 | L37: 136.55 | M37: 40.06039
A38: 28 | B38: ARVINDFASN | C38: 354.3 | D38: 354.02 | E38: 349.28 | F38: 344.27 | G38: 339.53 | H38: 359.03 | I38: 363.77 | J38: 368.78 | K38: 358.75 | L38: 349 | M38: 0.1113
A39: 29 | B39: ASAHIINDIA | C39: 243 | D39: 239.05 | E39: 233.10 | F39: 223.20 | G39: 217.25 | H39: 248.95 | I39: 254.90 | J39: 264.80 | K39: 245 | L39: 229.15 | M39: 0.26991
A40: 30 | B40: ASHOKA | C40: 87.8 | D40: 87.67 | E40: 85.63 | F40: 83.47 | G40: 81.43 | H40: 89.83 | I40: 91.87 | J40: 94.03 | K40: 89.7 | L40: 85.5 | M40: 1.61707
A41: 31 | B41: ASHOKLEY | C41: 75.45 | D41: 75.03 | E41: 73.07 | F41: 70.68 | G41: 68.72 | H41: 77.42 | I41: 79.38 | J41: 81.77 | K41: 77 | L41: 72.65 | M41: 239.98122
A42: 32 | B42: ASIANPAINT | C42: 1800.55 | D42: 1795.18 | E42: 1772.37 | F42: 1744.18 | G42: 1721.37 | H42: 1823.37 | I42: 1846.18 | J42: 1874.37 | K42: 1818 | L42: 1767 | M42: 13.92463
A43: 33 | B43: ASTERDM | C43: 164.85 | D43: 164.40 | E43: 162.00 | F43: 159.15 | G43: 156.75 | H43: 167.25 | I43: 169.65 | J43: 172.50 | K43: 166.8 | L43: 161.55 | M43: 0.54429
A44: 34 | B44: ASTRAL | C44: 1147.4 | D44: 1147.00 | E44: 1124.00 | F44: 1100.60 | G44: 1077.60 | H44: 1170.40 | I44: 1193.40 | J44: 1216.80 | K44: 1170 | L44: 1123.6 | M44: 0.3475
A45: 35 | B45: ASTRAZEN | C45: 2659.65 | D45: 2659.68 | E45: 2605.97 | F45: 2552.28 | G45: 2498.57 | H45: 2713.37 | I45: 2767.08 | J45: 2820.77 | K45: 2713.4 | L45: 2606 | M45: 0.1944
A46: 36 | B46: ATUL | C46: 5358.75 | D46: 5335.33 | E46: 5225.67 | F46: 5092.58 | G46: 4982.92 | H46: 5468.42 | I46: 5578.08 | J46: 5711.17 | K46: 5445 | L46: 5202.25 | M46: 0.64489
A47: 37 | B47: AUBANK | C47: 1174.2 | D47: 1171.40 | E47: 1152.80 | F47: 1131.40 | G47: 1112.80 | H47: 1192.80 | I47: 1211.40 | J47: 1232.80 | K47: 1190 | L47: 1150 | M47: 5.05336
A48: 38 | B48: AUROPHARMA | C48: 511.3 | D48: 508.32 | E48: 501.23 | F48: 491.17 | G48: 484.08 | H48: 518.38 | I48: 525.47 | J48: 535.53 | K48: 515.4 | L48: 498.25 | M48: 30.12316
A49: 39 | B49: AVANTIFEED | C49: 443.95 | D49: 436.53 | E49: 423.07 | F49: 402.18 | G49: 388.72 | H49: 457.42 | I49: 470.88 | J49: 491.77 | K49: 450 | L49: 415.65 | M49: 10.0659
A50: 40 | B50: AXISBANK | C50: 687.15 | D50: 685.98 | E50: 676.17 | F50: 665.18 | G50: 655.37 | H50: 696.97 | I50: 706.78 | J50: 717.77 | K50: 695.8 | L50: 675 | M50: 111.98145
A51: 41 | B51: BAJAJ-AUTO | C51: 2692.25 | D51: 2691.75 | E51: 2653.50 | F51: 2614.75 | G51: 2576.50 | H51: 2730.50 | I51: 2768.75 | J51: 2807.50 | K51: 2730 | L51: 2653 | M51: 14.59848
A52: 42 | B52: BAJAJCON | C52: 182.9 | D52: 184.63 | E52: 179.27 | F52: 175.63 | G52: 170.27 | H52: 188.27 | I52: 193.63 | J52: 197.27 | K52: 190 | L52: 181 | M52: 1.41426
A53: 43 | B53: BAJAJELEC | C53: 414.55 | D53: 415.33 | E53: 404.77 | F53: 394.98 | G53: 384.42 | H53: 425.12 | I53: 435.68 | J53: 445.47 | K53: 425.9 | L53: 405.55 | M53: 1.37047
A54: 44 | B54: BAJAJFINSV | C54: 8963.65 | D54: 8920.10 | E54: 8723.55 | F54: 8483.45 | G54: 8286.90 | H54: 9160.20 | I54: 9356.75 | J54: 9596.85 | K54: 9116.65 | L54: 8680 | M54: 5.50729
A55: 45 | B55: BAJAJHLDNG | C55: 3368.3 | D55: 3385.40 | E55: 3332.90 | F55: 3297.50 | G55: 3245.00 | H55: 3420.80 | I55: 3473.30 | J55: 3508.70 | K55: 3437.9 | L55: 3350 | M55: 0.17842
A56: 46 | B56: BAJFINANCE | C56: 4454.1 | D56: 4416.37 | E56: 4357.78 | F56: 4261.47 | G56: 4202.88 | H56: 4512.68 | I56: 4571.27 | J56: 4667.58 | K56: 4474.95 | L56: 4320.05 | M56: 20.23503
A57: 47 | B57: BALKRISIND | C57: 1116.6 | D57: 1111.82 | E57: 1071.63 | F57: 1026.67 | G57: 986.48 | H57: 1156.78 | I57: 1196.97 | J57: 1241.93 | K57: 1152 | L57: 1066.85 | M57: 10.32435
A58: 48 | B58: BALMLAWRIE | C58: 101.95 | D58: 101.82 | E58: 100.13 | F58: 98.32 | G58: 96.63 | H58: 103.63 | I58: 105.32 | J58: 107.13 | K58: 103.5 | L58: 100 | M58: 0.72688
A59: 49 | B59: BALRAMCHIN | C59: 142.85 | D59: 143.83 | E59: 140.17 | F59: 137.48 | G59: 133.82 | H59: 146.52 | I59: 150.18 | J59: 152.87 | K59: 147.5 | L59: 141.15 | M59: 6.886
A60: 50 | B60: BANDHANBNK | C60: 400.8 | D60: 402.23 | E60: 393.77 | F60: 386.73 | G60: 378.27 | H60: 409.27 | I60: 417.73 | J60: 424.77 | K60: 410.7 | L60: 395.2 | M60: 45.42669
A61: 51 | B61: BANKBARODA | C61: 72.9 | D61: 72.43 | E61: 71.47 | F61: 70.03 | G61: 69.07 | H61: 73.87 | I61: 74.83 | J61: 76.27 | K61: 73.4 | L61: 71 | M61: 233.48154
A62: 52 | B62: BANKINDIA | C62: 49.35 | D62: 49.78 | E62: 48.57 | F62: 47.78 | G62: 46.57 | H62: 50.57 | I62: 51.78 | J62: 52.57 | K62: 51 | L62: 49 | M62: 16.22792
A63: 53 | B63: BASF | C63: 1015.25 | D63: 1026.45 | E63: 994.80 | F63: 974.35 | G63: 942.70 | H63: 1046.90 | I63: 1078.55 | J63: 1099.00 | K63: 1058.1 | L63: 1006 | M63: 1.10987
A64: 54 | B64: BATAINDIA | C64: 1618.6 | D64: 1624.57 | E64: 1589.18 | F64: 1559.77 | G64: 1524.38 | H64: 1653.98 | I64: 1689.37 | J64: 1718.78 | K64: 1659.95 | L64: 1595.15 | M64: 8.02303
A65: 55 | B65: BAYERCROP | C65: 4366.45 | D65: 4335.85 | E65: 4231.70 | F65: 4096.95 | G65: 3992.80 | H65: 4470.60 | I65: 4574.75 | J65: 4709.50 | K65: 4440 | L65: 4201.1 | M65: 1.20228
A66: 56 | B66: BBTC | C66: 1102.45 | D66: 1105.82 | E66: 1081.63 | F66: 1060.82 | G66: 1036.63 | H66: 1126.63 | I66: 1150.82 | J66: 1171.63 | K66: 1130 | L66: 1085 | M66: 0.4563
A67: 57 | B67: BDL | C67: 267.05 | D67: 267.43 | E67: 260.62 | F67: 254.18 | G67: 247.37 | H67: 273.87 | I67: 280.68 | J67: 287.12 | K67: 274.25 | L67: 261 | M67: 1.7844
A68: 58 | B68: BEL | C68: 74.5 | D68: 73.97 | E68: 72.78 | F68: 71.07 | G68: 69.88 | H68: 75.68 | I68: 76.87 | J68: 78.58 | K68: 75.15 | L68: 72.25 | M68: 192.87777
A69: 59 | B69: BEML | C69: 697.45 | D69: 707.20 | E69: 682.25 | F69: 667.05 | G69: 642.10 | H69: 722.40 | I69: 747.35 | J69: 762.55 | K69: 732.15 | L69: 692 | M69: 3.51575
A70: 60 | B70: BERGEPAINT | C70: 541.65 | D70: 547.93 | E70: 532.87 | F70: 524.08 | G70: 509.02 | H70: 556.72 | I70: 571.78 | J70: 580.57 | K70: 563 | L70: 539.15 | M70: 15.63205
A71: 61 | B71: BHARATFORG | C71: 443.85 | D71: 446.93 | E71: 432.67 | F71: 421.48 | G71: 407.22 | H71: 458.12 | I71: 472.38 | J71: 483.57 | K71: 461.2 | L71: 435.75 | M71: 26.83562
A72: 62 | B72: BHARTIARTL | C72: 520.8 | D72: 522.77 | E72: 512.18 | F72: 503.57 | G72: 492.98 | H72: 531.38 | I72: 541.97 | J72: 550.58 | K72: 533.35 | L72: 514.15 | M72: 103.68929
A73: 63 | B73: BHEL | C73: 31 | D73: 30.73 | E73: 30.12 | F73: 29.23 | G73: 28.62 | H73: 31.62 | I73: 32.23 | J73: 33.12 | K73: 31.35 | L73: 29.85 | M73: 205.95361
A74: 64 | B74: BIOCON | C74: 304 | D74: 298.77 | E74: 290.53 | F74: 277.07 | G74: 268.83 | H74: 312.23 | I74: 320.47 | J74: 333.93 | K74: 307 | L74: 285.3 | M74: 59.4968
A75: 65 | B75: BIRLACORPN | C75: 705.55 | D75: 708.43 | E75: 690.12 | F75: 674.68 | G75: 656.37 | H75: 723.87 | I75: 742.18 | J75: 757.62 | K75: 726.75 | L75: 693 | M75: 2.84136
A76: 66 | B76: BLISSGVS | C76: 110.3 | D76: 108.65 | E76: 103.65 | F76: 97.00 | G76: 92.00 | H76: 115.30 | I76: 120.30 | J76: 126.95 | K76: 113.65 | L76: 102 | M76: 7.05233
A77: 67 | B77: BLUEDART | C77: 2949.95 | D77: 2900.38 | E77: 2802.77 | F77: 2655.58 | G77: 2557.97 | H77: 3047.57 | I77: 3145.18 | J77: 3292.37 | K77: 2998 | L77: 2753.2 | M77: 0.0721
A78: 68 | B78: BLUESTARCO | C78: 801.05 | D78: 805.93 | E78: 787.12 | F78: 773.18 | G78: 754.37 | H78: 819.87 | I78: 838.68 | J78: 852.62 | K78: 824.75 | L78: 792 | M78: 1.99686
A79: 69 | B79: BOMDYEING | C79: 72.8 | D79: 72.42 | E79: 70.93 | F79: 69.07 | G79: 67.58 | H79: 74.28 | I79: 75.77 | J79: 77.63 | K79: 73.9 | L79: 70.55 | M79: 35.18611
A80: 70 | B80: BOSCHLTD | C80: 13155.6 | D80: 13022.65 | E80: 12752.95 | F80: 12350.30 | G80: 12080.60 | H80: 13425.30 | I80: 13695.00 | J80: 14097.65 | K80: 13292.35 | L80: 12620 | M80: 0.37746
A81: 71 | B81: BPCL | C81: 425 | D81: 421.88 | E81: 416.62 | F81: 408.23 | G81: 402.97 | H81: 430.27 | I81: 435.53 | J81: 443.92 | K81: 427.15 | L81: 413.5 | M81: 57.07796
A82: 72 | B82: BRIGADE | C82: 223.15 | D82: 222.00 | E82: 219.00 | F82: 214.85 | G82: 211.85 | H82: 226.15 | I82: 229.15 | J82: 233.30 | K82: 225 | L82: 217.85 | M82: 0.45657
A83: 73 | B83: BRITANNIA | C83: 3026.5 | D83: 3012.33 | E83: 2979.17 | F83: 2931.83 | G83: 2898.67 | H83: 3059.67 | I83: 3092.83 | J83: 3140.17 | K83: 3045.5 | L83: 2965 | M83: 3.9977
A84: 74 | B84: BSE | C84: 455.55 | D84: 456.33 | E84: 451.47 | F84: 447.38 | G84: 442.52 | H84: 460.42 | I84: 465.28 | J84: 469.37 | K84: 461.2 | L84: 452.25 | M84: 1.20729
A85: 75 | B85: BSOFT | C85: 91.3 | D85: 90.83 | E85: 88.77 | F85: 86.23 | G85: 84.17 | H85: 93.37 | I85: 95.43 | J85: 97.97 | K85: 92.9 | L85: 88.3 | M85: 12.82882
A86: 76 | B86: CADILAHC | C86: 260.35 | D86: 254.77 | E86: 246.08 | F86: 231.82 | G86: 223.13 | H86: 269.03 | I86: 277.72 | J86: 291.98 | K86: 263.45 | L86: 240.5 | M86: 24.47513
A87: 77 | B87: CANBK | C87: 141.75 | D87: 141.02 | E87: 138.53 | F87: 135.32 | G87: 132.83 | H87: 144.23 | I87: 146.72 | J87: 149.93 | K87: 143.5 | L87: 137.8 | M87: 128.66011
A88: 78 | B88: CANFINHOME | C88: 485.3 | D88: 489.27 | E88: 476.53 | F88: 467.77 | G88: 455.03 | H88: 498.03 | I88: 510.77 | J88: 519.53 | K88: 502 | L88: 480.5 | M88: 3.15822
A89: 79 | B89: CAPLIPOINT | C89: 292.2 | D89: 298.07 | E89: 279.13 | F89: 266.07 | G89: 247.13 | H89: 311.13 | I89: 330.07 | J89: 343.13 | K89: 317 | L89: 285 | M89: 1.35976
A90: 80 | B90: CARBORUNIV | C90: 327.05 | D90: 326.23 | E90: 323.02 | F90: 318.98 | G90: 315.77 | H90: 330.27 | I90: 333.48 | J90: 337.52 | K90: 329.45 | L90: 322.2 | M90: 0.2822
A91: 81 | B91: CARERATING | C91: 470.75 | D91: 468.18 | E91: 458.37 | F91: 445.98 | G91: 436.17 | H91: 480.57 | I91: 490.38 | J91: 502.77 | K91: 478 | L91: 455.8 | M91: 1.54098
A92: 82 | B92: CASTROLIND | C92: 146.85 | D92: 148.12 | E92: 142.73 | F92: 138.62 | G92: 133.23 | H92: 152.23 | I92: 157.62 | J92: 161.73 | K92: 153.5 | L92: 144 | M92: 27.76589
A93: 83 | B93: CCL | C93: 229.55 | D93: 227.95 | E93: 223.30 | F93: 217.05 | G93: 212.40 | H93: 234.20 | I93: 238.85 | J93: 245.10 | K93: 232.6 | L93: 221.7 | M93: 2.06911
A94: 84 | B94: CDSL | C94: 253 | D94: 255.00 | E94: 247.00 | F94: 241.00 | G94: 233.00 | H94: 261.00 | I94: 269.00 | J94: 275.00 | K94: 263 | L94: 249 | M94: 7.38781
A95: 85 | B95: CEATLTD | C95: 1009.55 | D95: 1006.50 | E95: 990.10 | F95: 970.65 | G95: 954.25 | H95: 1025.95 | I95: 1042.35 | J95: 1061.80 | K95: 1022.9 | L95: 987.05 | M95: 0.64172
A96: 86 | B96: CENTRALBK | C96: 15.2 | D96: 15.40 | E96: 14.80 | F96: 14.40 | G96: 13.80 | H96: 15.80 | I96: 16.40 | J96: 16.80 | K96: 16 | L96: 15 | M96: 4.58923
A97: 87 | B97: CENTURYPLY | C97: 159.35 | D97: 158.38 | E97: 155.52 | F97: 151.68 | G97: 148.82 | H97: 162.22 | I97: 165.08 | J97: 168.92 | K97: 161.25 | L97: 154.55 | M97: 1.57638
A98: 88 | B98: CERA | C98: 2500.2 | D98: 2490.07 | E98: 2460.13 | F98: 2420.07 | G98: 2390.13 | H98: 2530.13 | I98: 2560.07 | J98: 2600.13 | K98: 2520 | L98: 2450 | M98: 2.355
A99: 89 | B99: CESC | C99: 631.4 | D99: 635.93 | E99: 620.82 | F99: 610.23 | G99: 595.12 | H99: 646.52 | I99: 661.63 | J99: 672.22 | K99: 651.05 | L99: 625.35 | M99: 6.89555
A100: 90 | B100: CGCL | C100: 215.4 | D100: 215.30 | E100: 212.10 | F100: 208.80 | G100: 205.60 | H100: 218.60 | I100: 221.80 | J100: 225.10 | K100: 218.5 | L100: 212 | M100: 3.25361
A101: 91 | B101: CHALET | C101: 330.85 | D101: 333.78 | E101: 317.62 | F101: 304.38 | G101: 288.22 | H101: 347.02 | I101: 363.18 | J101: 376.42 | K101: 349.95 | L101: 320.55 | M101: 0.03795
A102: 92 | B102: CHAMBLFERT | C102: 139.75 | D102: 139.65 | E102: 138.50 | F102: 137.25 | G102: 136.10 | H102: 140.90 | I102: 142.05 | J102: 143.30 | K102: 140.8 | L102: 138.4 | M102: 1.25281
A103: 93 | B103: CHENNPETRO | C103: 102.25 | D103: 103.60 | E103: 99.65 | F103: 97.05 | G103: 93.10 | H103: 106.20 | I103: 110.15 | J103: 112.75 | K103: 107.55 | L103: 101 | M103: 1.66581
A104: 94 | B104: CHOLAFIN | C104: 306.2 | D104: 305.02 | E104: 300.08 | F104: 293.97 | G104: 289.03 | H104: 311.13 | I104: 316.07 | J104: 322.18 | K104: 309.95 | L104: 298.9 | M104: 19.57857
A105: 95 | B105: CHOLAHLDNG | C105: 514.5 | D105: 515.83 | E105: 501.72 | F105: 488.93 | G105: 474.82 | H105: 528.62 | I105: 542.73 | J105: 555.52 | K105: 529.95 | L105: 503.05 | M105: 0.90125
A106: 96 | B106: CIPLA | C106: 425.3 | D106: 418.83 | E106: 408.47 | F106: 391.63 | G106: 381.27 | H106: 435.67 | I106: 446.03 | J106: 462.87 | K106: 429.2 | L106: 402 | M106: 54.76676
A107: 97 | B107: COALINDIA | C107: 178.2 | D107: 176.25 | E107: 172.85 | F107: 167.50 | G107: 164.10 | H107: 181.60 | I107: 185.00 | J107: 190.35 | K107: 179.65 | L107: 170.9 | M107: 170.15816
A108: 98 | B108: COCHINSHIP | C108: 330.8 | D108: 331.38 | E108: 325.77 | F108: 320.73 | G108: 315.12 | H108: 336.42 | I108: 342.03 | J108: 347.07 | K108: 337 | L108: 326.35 | M108: 5.50334
A109: 99 | B109: COLPAL | C109: 1319.85 | D109: 1314.95 | E109: 1300.95 | F109: 1282.05 | G109: 1268.05 | H109: 1333.85 | I109: 1347.85 | J109: 1366.75 | K109: 1328.95 | L109: 1296.05 | M109: 4.63353
A110: 100 | B110: CONCOR | C110: 489.55 | D110: 494.97 | E110: 479.58 | F110: 469.62 | G110: 454.23 | H110: 504.93 | I110: 520.32 | J110: 530.28 | K110: 510.35 | L110: 485 | M110: 13.37625
A111: 101 | B111: COROMANDEL | C111: 619.25 | D111: 618.45 | E111: 604.05 | F111: 588.85 | G111: 574.45 | H111: 633.65 | I111: 648.05 | J111: 663.25 | K111: 632.85 | L111: 603.25 | M111: 1.62529
A112: 102 | B112: CREDITACC | C112: 864.25 | D112: 857.45 | E112: 831.85 | F112: 799.45 | G112: 773.85 | H112: 889.85 | I112: 915.45 | J112: 947.85 | K112: 883.05 | L112: 825.05 | M112: 0.6809
A113: 103 | B113: CRISIL | C113: 1530.05 | D113: 1537.23 | E113: 1505.47 | F113: 1480.88 | G113: 1449.12 | H113: 1561.82 | I113: 1593.58 | J113: 1618.17 | K113: 1569 | L113: 1512.65 | M113: 0.19819
A114: 104 | B114: CROMPTON | C114: 277.85 | D114: 278.02 | E114: 273.03 | F114: 268.22 | G114: 263.23 | H114: 282.83 | I114: 287.82 | J114: 292.63 | K114: 283 | L114: 273.2 | M114: 8.71807
A115: 105 | B115: CUB | C115: 217.15 | D115: 215.77 | E115: 213.53 | F115: 209.92 | G115: 207.68 | H115: 219.38 | I115: 221.62 | J115: 225.23 | K115: 218 | L115: 212.15 | M115: 4.12743
A116: 106 | B116: CUMMINSIND | C116: 506.25 | D116: 518.92 | E116: 487.43 | F116: 468.62 | G116: 437.13 | H116: 537.73 | I116: 569.22 | J116: 588.03 | K116: 550.4 | L116: 500.1 | M116: 5.79484
A117: 107 | B117: CYIENT | C117: 420.05 | D117: 422.60 | E117: 411.40 | F117: 402.75 | G117: 391.55 | H117: 431.25 | I117: 442.45 | J117: 451.10 | K117: 433.8 | L117: 413.95 | M117: 0.52175
A118: 108 | B118: DABUR | C118: 506.6 | D118: 506.63 | E118: 500.27 | F118: 493.93 | G118: 487.57 | H118: 512.97 | I118: 519.33 | J118: 525.67 | K118: 513 | L118: 500.3 | M118: 35.79242
A119: 109 | B119: DALBHARAT | C119: 750.7 | D119: 756.53 | E119: 734.47 | F119: 718.23 | G119: 696.17 | H119: 772.77 | I119: 794.83 | J119: 811.07 | K119: 778.6 | L119: 740.3 | M119: 1.17185
A120: 110 | B120: DBCORP | C120: 113.85 | D120: 113.20 | E120: 111.60 | F120: 109.35 | G120: 107.75 | H120: 115.45 | I120: 117.05 | J120: 119.30 | K120: 114.8 | L120: 110.95 | M120: 0.33328
A121: 111 | B121: DBL | C121: 307.15 | D121: 305.72 | E121: 299.58 | F121: 292.02 | G121: 285.88 | H121: 313.28 | I121: 319.42 | J121: 326.98 | K121: 311.85 | L121: 298.15 | M121: 1.68372
A122: 112 | B122: DCAL | C122: 74.25 | D122: 74.82 | E122: 71.63 | F122: 69.02 | G122: 65.83 | H122: 77.43 | I122: 80.62 | J122: 83.23 | K122: 78 | L122: 72.2 | M122: 2.40615
A123: 113 | B123: DCBBANK | C123: 158.8 | D123: 160.38 | E123: 155.47 | F123: 152.13 | G123: 147.22 | H123: 163.72 | I123: 168.63 | J123: 171.97 | K123: 165.3 | L123: 157.05 | M123: 4.71152
A124: 114 | B124: DCMSHRIRAM | C124: 332 | D124: 332.92 | E124: 325.88 | F124: 319.77 | G124: 312.73 | H124: 339.03 | I124: 346.07 | J124: 352.18 | K124: 339.95 | L124: 326.8 | M124: 0.39455
A125: 115 | B125: DEEPAKNTR | C125: 532.95 | D125: 527.00 | E125: 516.15 | F125: 499.35 | G125: 488.50 | H125: 543.80 | I125: 554.65 | J125: 571.45 | K125: 537.85 | L125: 510.2 | M125: 22.31123
A126: 116 | B126: DELTACORP | C126: 132.05 | D126: 129.37 | E126: 125.23 | F126: 118.42 | G126: 114.28 | H126: 136.18 | I126: 140.32 | J126: 147.13 | K126: 133.5 | L126: 122.55 | M126: 13.15871
A127: 117 | B127: DHFL | C127: 15.6 | D127: 15.60 | E127: 15.60 | F127: 15.60 | G127: 15.60 | H127: 15.60 | I127: 15.60 | J127: 15.60 | K127: 15.6 | L127: 15.6 | M127: 5.1289
A128: 118 | B128: DISHTV | C128: 7.95 | D128: 8.02 | E128: 7.73 | F128: 7.52 | G128: 7.23 | H128: 8.23 | I128: 8.52 | J128: 8.73 | K128: 8.3 | L128: 7.8 | M128: 63.48127
A129: 119 | B129: DIVISLAB | C129: 2183.1 | D129: 2152.22 | E129: 2094.43 | F129: 2005.77 | G129: 1947.98 | H129: 2240.88 | I129: 2298.67 | J129: 2387.33 | K129: 2210 | L129: 2063.55 | M129: 13.99046
A130: 120 | B130: DIXON | C130: 4034.95 | D130: 3997.18 | E130: 3912.42 | F130: 3789.88 | G130: 3705.12 | H130: 4119.72 | I130: 4204.48 | J130: 4327.02 | K130: 4081.95 | L130: 3874.65 | M130: 0.50507
A131: 121 | B131: DLF | C131: 206.8 | D131: 207.42 | E131: 202.78 | F131: 198.77 | G131: 194.13 | H131: 211.43 | I131: 216.07 | J131: 220.08 | K131: 212.05 | L131: 203.4 | M131: 110.84288
A132: 122 | B132: DMART | C132: 2233.05 | D132: 2226.67 | E132: 2179.33 | F132: 2125.62 | G132: 2078.28 | H132: 2280.38 | I132: 2327.72 | J132: 2381.43 | K132: 2274 | L132: 2172.95 | M132: 12.52459
A133: 123 | B133: DRREDDY | C133: 3043.7 | D133: 3017.65 | E133: 2957.30 | F133: 2870.90 | G133: 2810.55 | H133: 3104.05 | I133: 3164.40 | J133: 3250.80 | K133: 3078 | L133: 2931.25 | M133: 10.5608
A134: 124 | B134: ECLERX | C134: 540.25 | D134: 536.98 | E134: 523.97 | F134: 507.68 | G134: 494.67 | H134: 553.27 | I134: 566.28 | J134: 582.57 | K134: 550 | L134: 520.7 | M134: 1.90857
A135: 125 | B135: EDELWEISS | C135: 86.8 | D135: 87.57 | E135: 85.63 | F135: 84.47 | G135: 82.53 | H135: 88.73 | I135: 90.67 | J135: 91.83 | K135: 89.5 | L135: 86.4 | M135: 6.73823
A136: 126 | B136: EICHERMOT | C136: 17888.45 | D136: 17776.48 | E136: 17511.97 | F136: 17135.48 | G136: 16870.97 | H136: 18152.97 | I136: 18417.48 | J136: 18793.97 | K136: 18041 | L136: 17400 | M136: 2.7474
A137: 127 | B137: EIDPARRY | C137: 186.8 | D137: 186.57 | E137: 181.98 | F137: 177.17 | G137: 172.58 | H137: 191.38 | I137: 195.97 | J137: 200.78 | K137: 191.15 | L137: 181.75 | M137: 1.01187
A138: 128 | B138: EIHOTEL | C138: 128.05 | D138: 126.37 | E138: 122.78 | F138: 117.52 | G138: 113.93 | H138: 131.63 | I138: 135.22 | J138: 140.48 | K138: 129.95 | L138: 121.1 | M138: 0.54174
A139: 129 | B139: ELGIEQUIP | C139: 198 | D139: 199.20 | E139: 195.05 | F139: 192.10 | G139: 187.95 | H139: 202.15 | I139: 206.30 | J139: 209.25 | K139: 203.35 | L139: 196.25 | M139: 46.80599
A140: 130 | B140: EMAMILTD | C140: 257 | D140: 258.45 | E140: 253.90 | F140: 250.80 | G140: 246.25 | H140: 261.55 | I140: 266.10 | J140: 269.20 | K140: 263 | L140: 255.35 | M140: 4.93583
A141: 131 | B141: ENDURANCE | C141: 975.5 | D141: 979.78 | E141: 951.57 | F141: 927.63 | G141: 899.42 | H141: 1003.72 | I141: 1031.93 | J141: 1055.87 | K141: 1008 | L141: 955.85 | M141: 0.26551
A142: 132 | B142: ENGINERSIN | C142: 75.7 | D142: 74.73 | E142: 73.47 | F142: 71.23 | G142: 69.97 | H142: 76.97 | I142: 78.23 | J142: 80.47 | K142: 76 | L142: 72.5 | M142: 16.76172
A143: 133 | B143: EQUITAS | C143: 105.25 | D143: 105.17 | E143: 101.28 | F143: 97.32 | G143: 93.43 | H143: 109.13 | I143: 113.02 | J143: 116.98 | K143: 109.05 | L143: 101.2 | M143: 119.9553
A144: 134 | B144: ERIS | C144: 437.85 | D144: 437.60 | E144: 427.50 | F144: 417.15 | G144: 407.05 | H144: 447.95 | I144: 458.05 | J144: 468.40 | K144: 447.7 | L144: 427.25 | M144: 0.76277
A145: 135 | B145: ESCORTS | C145: 853 | D145: 854.00 | E145: 833.00 | F145: 813.00 | G145: 792.00 | H145: 874.00 | I145: 895.00 | J145: 915.00 | K145: 875 | L145: 834 | M145: 46.29904
A146: 136 | B146: ESSELPACK | C146: 160.4 | D146: 161.00 | E146: 156.40 | F146: 152.40 | G146: 147.80 | H146: 165.00 | I146: 169.60 | J146: 173.60 | K146: 165.6 | L146: 157 | M146: 1.93579
A147: 137 | B147: EXIDEIND | C147: 161.7 | D147: 161.30 | E147: 158.85 | F147: 156.00 | G147: 153.55 | H147: 164.15 | I147: 166.60 | J147: 169.45 | K147: 163.75 | L147: 158.45 | M147: 30.56334
A148: 138 | B148: FCONSUMER | C148: 13.9 | D148: 13.57 | E148: 13.23 | F148: 12.57 | G148: 12.23 | H148: 14.23 | I148: 14.57 | J148: 15.23 | K148: 13.9 | L148: 12.9 | M148: 26.05565
A149: 139 | B149: FDC | C149: 229.85 | D149: 230.37 | E149: 225.78 | F149: 221.72 | G149: 217.13 | H149: 234.43 | I149: 239.02 | J149: 243.08 | K149: 234.95 | L149: 226.3 | M149: 0.67913
A150: 140 | B150: FEDERALBNK | C150: 84.5 | D150: 84.17 | E150: 82.83 | F150: 81.17 | G150: 79.83 | H150: 85.83 | I150: 87.17 | J150: 88.83 | K150: 85.5 | L150: 82.5 | M150: 86.78728
A151: 141 | B151: FINCABLES | C151: 329 | D151: 326.93 | E151: 322.07 | F151: 315.13 | G151: 310.27 | H151: 333.87 | I151: 338.73 | J151: 345.67 | K151: 331.8 | L151: 320 | M151: 1.00481
A152: 142 | B152: FINEORG | C152: 2119.55 | D152: 2115.52 | E152: 2064.03 | F152: 2008.52 | G152: 1957.03 | H152: 2171.03 | I152: 2222.52 | J152: 2278.03 | K152: 2167 | L152: 2060 | M152: 0.0908
A153: 143 | B153: FINPIPE | C153: 550.55 | D153: 549.35 | E153: 543.70 | F153: 536.85 | G153: 531.20 | H153: 556.20 | I153: 561.85 | J153: 568.70 | K153: 555 | L153: 542.5 | M153: 0.24311
A154: 144 | B154: FLFL | C154: 331.25 | D154: 328.73 | E154: 302.32 | F154: 273.38 | G154: 246.97 | H154: 357.67 | I154: 384.08 | J154: 413.02 | K154: 355.15 | L154: 299.8 | M154: 1.06754
A155: 145 | B155: FMGOETZE | C155: 513.4 | D155: 521.47 | E155: 503.03 | F155: 492.67 | G155: 474.23 | H155: 531.83 | I155: 550.27 | J155: 560.63 | K155: 539.9 | L155: 511.1 | M155: 0.01168
A156: 146 | B156: FORTIS | C156: 153.8 | D156: 153.63 | E156: 151.17 | F156: 148.53 | G156: 146.07 | H156: 156.27 | I156: 158.73 | J156: 161.37 | K156: 156.1 | L156: 151 | M156: 12.62588
A157: 147 | B157: FRETAIL | C157: 304.5 | D157: 303.68 | E157: 293.62 | F157: 282.73 | G157: 272.67 | H157: 314.57 | I157: 324.63 | J157: 335.52 | K157: 313.75 | L157: 292.8 | M157: 5.0515
A158: 148 | B158: FSL | C158: 42.2 | D158: 42.02 | E158: 41.33 | F158: 40.47 | G158: 39.78 | H158: 42.88 | I158: 43.57 | J158: 44.43 | K158: 42.7 | L158: 41.15 | M158: 11.73611
A159: 149 | B159: GAIL | C159: 103.2 | D159: 102.17 | E159: 100.53 | F159: 97.87 | G159: 96.23 | H159: 104.83 | I159: 106.47 | J159: 109.13 | K159: 103.8 | L159: 99.5 | M159: 158.40274
A160: 150 | B160: GALAXYSURF | C160: 1591.2 | D160: 1599.73 | E160: 1562.47 | F160: 1533.73 | G160: 1496.47 | H160: 1628.47 | I160: 1665.73 | J160: 1694.47 | K160: 1637 | L160: 1571 | M160: 0.08431
A161: 151 | B161: GARFIBRES | C161: 1472.25 | D161: 1492.13 | E161: 1412.92 | F161: 1353.58 | G161: 1274.37 | H161: 1551.47 | I161: 1630.68 | J161: 1690.02 | K161: 1571.35 | L161: 1432.8 | M161: 0.19131
A162: 152 | B162: GAYAPROJ | C162: 19.65 | D162: 19.65 | E162: 19.65 | F162: 19.65 | G162: 19.65 | H162: 19.65 | I162: 19.65 | J162: 19.65 | K162: 19.65 | L162: 19.65 | M162: 0.37681
A163: 153 | B163: GEPIL | C163: 718.25 | D163: 716.65 | E163: 698.25 | F163: 678.25 | G163: 659.85 | H163: 736.65 | I163: 755.05 | J163: 775.05 | K163: 735.05 | L163: 696.65 | M163: 0.31979
A164: 154 | B164: GESHIP | C164: 248.95 | D164: 246.52 | E164: 242.73 | F164: 236.52 | G164: 232.73 | H164: 252.73 | I164: 256.52 | J164: 262.73 | K164: 250.3 | L164: 240.3 | M164: 0.50258
A165: 155 | B165: GET&D | C165: 125.5 | D165: 127.23 | E165: 122.42 | F165: 119.33 | G165: 114.52 | H165: 130.32 | I165: 135.13 | J165: 138.22 | K165: 132.05 | L165: 124.15 | M165: 0.20361
A166: 156 | B166: GHCL | C166: 164.75 | D166: 165.08 | E166: 161.77 | F166: 158.78 | G166: 155.47 | H166: 168.07 | I166: 171.38 | J166: 174.37 | K166: 168.4 | L166: 162.1 | M166: 1.43291
A167: 157 | B167: GICRE | C167: 166.75 | D167: 167.15 | E167: 164.35 | F167: 161.95 | G167: 159.15 | H167: 169.55 | I167: 172.35 | J167: 174.75 | K167: 169.95 | L167: 164.75 | M167: 2.10691
A168: 158 | B168: GILLETTE | C168: 5873 | D168: 5864.33 | E168: 5778.67 | F168: 5684.33 | G168: 5598.67 | H168: 5958.67 | I168: 6044.33 | J168: 6138.67 | K168: 5950 | L168: 5770 | M168: 0.04261
A169: 159 | B169: GLAXO | C169: 1312.75 | D169: 1311.82 | E169: 1290.93 | F169: 1269.12 | G169: 1248.23 | H169: 1333.63 | I169: 1354.52 | J169: 1376.33 | K169: 1332.7 | L169: 1290 | M169: 0.39855
A170: 160 | B170: GLENMARK | C170: 282.3 | D170: 280.78 | E170: 274.97 | F170: 267.63 | G170: 261.82 | H170: 288.12 | I170: 293.93 | J170: 301.27 | K170: 286.6 | L170: 273.45 | M170: 17.57918
A171: 161 | B171: GMDCLTD | C171: 49.15 | D171: 49.28 | E171: 47.77 | F171: 46.38 | G171: 44.87 | H171: 50.67 | I171: 52.18 | J171: 53.57 | K171: 50.8 | L171: 47.9 | M171: 1.76039
A172: 162 | B172: GMRINFRA | C172: 20.2 | D172: 20.25 | E172: 19.70 | F172: 19.20 | G172: 18.65 | H172: 20.75 | I172: 21.30 | J172: 21.80 | K172: 20.8 | L172: 19.75 | M172: 225.58297
A173: 163 | B173: GNFC | C173: 161.85 | D173: 162.02 | E173: 159.83 | F173: 157.82 | G173: 155.63 | H173: 164.03 | I173: 166.22 | J173: 168.23 | K173: 164.2 | L173: 160 | M173: 1.66374
A174: 164 | B174: GODFRYPHLP | C174: 1173.35 | D174: 1164.15 | E174: 1139.30 | F174: 1105.25 | G174: 1080.40 | H174: 1198.20 | I174: 1223.05 | J174: 1257.10 | K174: 1189 | L174: 1130.1 | M174: 1.44837
A175: 165 | B175: GODREJAGRO | C175: 465.45 | D175: 460.18 | E175: 450.37 | F175: 435.28 | G175: 425.47 | H175: 475.27 | I175: 485.08 | J175: 500.17 | K175: 470 | L175: 445.1 | M175: 0.45548
A176: 166 | B176: GODREJCP | C176: 618.7 | D176: 612.68 | E176: 599.62 | F176: 580.53 | G176: 567.47 | H176: 631.77 | I176: 644.83 | J176: 663.92 | K176: 625.75 | L176: 593.6 | M176: 23.25261
A177: 167 | B177: GODREJIND | C177: 414.95 | D177: 411.02 | E177: 394.03 | F177: 373.12 | G177: 356.13 | H177: 431.93 | I177: 448.92 | J177: 469.83 | K177: 428 | L177: 390.1 | M177: 2.31953
A178: 168 | B178: GODREJPROP | C178: 1000.05 | D178: 1005.17 | E178: 975.38 | F178: 950.72 | G178: 920.93 | H178: 1029.83 | I178: 1059.62 | J178: 1084.28 | K178: 1034.95 | L178: 980.5 | M178: 1.72285
A179: 169 | B179: GPPL | C179: 73.95 | D179: 74.13 | E179: 72.37 | F179: 70.78 | G179: 69.02 | H179: 75.72 | I179: 77.48 | J179: 79.07 | K179: 75.9 | L179: 72.55 | M179: 3.07202
A180: 170 | B180: GRANULES | C180: 165.4 | D180: 162.28 | E180: 156.67 | F180: 147.93 | G180: 142.32 | H180: 171.02 | I180: 176.63 | J180: 185.37 | K180: 167.9 | L180: 153.55 | M180: 31.00598
A181: 171 | B181: GRAPHITE | C181: 236.05 | D181: 234.17 | E181: 228.43 | F181: 220.82 | G181: 215.08 | H181: 241.78 | I181: 247.52 | J181: 255.13 | K181: 239.9 | L181: 226.55 | M181: 11.83554
A182: 172 | B182: GRASIM | C182: 700.05 | D182: 691.88 | E182: 679.17 | F182: 658.28 | G182: 645.57 | H182: 712.77 | I182: 725.48 | J182: 746.37 | K182: 704.6 | L182: 671 | M182: 33.50249
A183: 173 | B183: GREAVESCOT | C183: 130 | D183: 129.78 | E183: 128.22 | F183: 126.43 | G183: 124.87 | H183: 131.57 | I183: 133.13 | J183: 134.92 | K183: 131.35 | L183: 128 | M183: 1.16237
A184: 174 | B184: GRINDWELL | C184: 583.95 | D184: 580.12 | E184: 574.33 | F184: 564.72 | G184: 558.93 | H184: 589.73 | I184: 595.52 | J184: 605.13 | K184: 585.9 | L184: 570.5 | M184: 0.98609
A185: 175 | B185: GSFC | C185: 59.65 | D185: 59.95 | E185: 57.75 | F185: 55.85 | G185: 53.65 | H185: 61.85 | I185: 64.05 | J185: 65.95 | K185: 62.15 | L185: 58.05 | M185: 5.78196
A186: 176 | B186: GSPL | C186: 235.75 | D186: 233.38 | E186: 228.87 | F186: 221.98 | G186: 217.47 | H186: 240.27 | I186: 244.78 | J186: 251.67 | K186: 237.9 | L186: 226.5 | M186: 6.50357
A187: 177 | B187: GUJALKALI | C187: 323.95 | D187: 326.63 | E187: 317.32 | F187: 310.68 | G187: 301.37 | H187: 333.27 | I187: 342.58 | J187: 349.22 | K187: 335.95 | L187: 320 | M187: 0.42892
A188: 178 | B188: GUJGASLTD | C188: 289.35 | D188: 286.30 | E188: 281.30 | F188: 273.25 | G188: 268.25 | H188: 294.35 | I188: 299.35 | J188: 307.40 | K188: 291.3 | L188: 278.25 | M188: 8.61926
A189: 179 | B189: GULFOILLUB | C189: 731.7 | D189: 738.05 | E189: 717.65 | F189: 703.60 | G189: 683.20 | H189: 752.10 | I189: 772.50 | J189: 786.55 | K189: 758.45 | L189: 724 | M189: 0.05199
A190: 180 | B190: HAL | C190: 671.9 | D190: 673.95 | E190: 662.95 | F190: 654.00 | G190: 643.00 | H190: 682.90 | I190: 693.90 | J190: 702.85 | K190: 684.95 | L190: 665 | M190: 0.22909
A191: 181 | B191: HATSUN | C191: 687.75 | D191: 689.83 | E191: 679.67 | F191: 671.58 | G191: 661.42 | H191: 697.92 | I191: 708.08 | J191: 716.17 | K191: 700 | L191: 681.75 | M191: 0.23453
A192: 182 | B192: HAVELLS | C192: 638.55 | D192: 633.85 | E192: 622.70 | F192: 606.85 | G192: 595.70 | H192: 649.70 | I192: 660.85 | J192: 676.70 | K192: 645 | L192: 618 | M192: 15.20126
A193: 183 | B193: HCLTECH | C193: 565.05 | D193: 562.93 | E193: 557.12 | F193: 549.18 | G193: 543.37 | H193: 570.87 | I193: 576.68 | J193: 584.62 | K193: 568.75 | L193: 555 | M193: 46.82284
A194: 184 | B194: HDFC | C194: 2191.4 | D194: 2197.20 | E194: 2167.50 | F194: 2143.60 | G194: 2113.90 | H194: 2221.10 | I194: 2250.80 | J194: 2274.70 | K194: 2226.9 | L194: 2173.3 | M194: 42.2907
A195: 185 | B195: HDFCAMC | C195: 3062.1 | D195: 3063.65 | E195: 3025.30 | F195: 2988.50 | G195: 2950.15 | H195: 3100.45 | I195: 3138.80 | J195: 3175.60 | K195: 3102 | L195: 3026.85 | M195: 2.85682
A196: 186 | B196: HDFCBANK | C196: 1181.8 | D196: 1178.38 | E196: 1171.42 | F196: 1161.03 | G196: 1154.07 | H196: 1188.77 | I196: 1195.73 | J196: 1206.12 | K196: 1185.35 | L196: 1168 | M196: 111.84775
A197: 187 | B197: HDFCLIFE | C197: 563.5 | D197: 565.38 | E197: 557.77 | F197: 552.03 | G197: 544.42 | H197: 571.12 | I197: 578.73 | J197: 584.47 | K197: 573 | L197: 559.65 | M197: 28.44292
A198: 188 | B198: HEG | C198: 952.3 | D198: 943.23 | E198: 920.57 | F198: 888.83 | G198: 866.17 | H198: 974.97 | I198: 997.63 | J198: 1029.37 | K198: 965.9 | L198: 911.5 | M198: 3.46358
A199: 189 | B199: HEIDELBERG | C199: 197.2 | D199: 199.67 | E199: 192.33 | F199: 187.47 | G199: 180.13 | H199: 204.53 | I199: 211.87 | J199: 216.73 | K199: 207 | L199: 194.8 | M199: 3.34092
A200: 190 | B200: HERITGFOOD | C200: 340.4 | D200: 341.73 | E200: 335.77 | F200: 331.13 | G200: 325.17 | H200: 346.37 | I200: 352.33 | J200: 356.97 | K200: 347.7 | L200: 337.1 | M200: 0.26882
A201: 191 | B201: HEROMOTOCO | C201: 2054.85 | D201: 2031.57 | E201: 1999.28 | F201: 1943.72 | G201: 1911.43 | H201: 2087.13 | I201: 2119.42 | J201: 2174.98 | K201: 2063.85 | L201: 1976 | M201: 16.89926
A202: 192 | B202: HEXAWARE | C202: 365.8 | D202: 365.43 | E202: 358.97 | F202: 352.13 | G202: 345.67 | H202: 372.27 | I202: 378.73 | J202: 385.57 | K202: 371.9 | L202: 358.6 | M202: 1.5358
A203: 193 | B203: HFCL | C203: 12.65 | D203: 12.55 | E203: 11.90 | F203: 11.15 | G203: 10.50 | H203: 13.30 | I203: 13.95 | J203: 14.70 | K203: 13.2 | L203: 11.8 | M203: 31.45635
A204: 194 | B204: HIMATSEIDE | C204: 97.1 | D204: 97.78 | E204: 95.97 | F204: 94.83 | G204: 93.02 | H204: 98.92 | I204: 100.73 | J204: 101.87 | K204: 99.6 | L204: 96.65 | M204: 0.60503
A205: 195 | B205: HINDALCO | C205: 159.3 | D205: 156.85 | E205: 153.25 | F205: 147.20 | G205: 143.60 | H205: 162.90 | I205: 166.50 | J205: 172.55 | K205: 160.45 | L205: 150.8 | M205: 218.36942
A206: 196 | B206: HINDCOPPER | C206: 30.7 | D206: 30.47 | E206: 29.98 | F206: 29.27 | G206: 28.78 | H206: 31.18 | I206: 31.67 | J206: 32.38 | K206: 30.95 | L206: 29.75 | M206: 6.6493
... 321 more rows

Sheet Bulk Deals
E6: Back To Main Page
A7: Subject : | B7: BULK DEAL | D7: =Main!B10 -> 2020-03-04
A9: Date | B9: Scrip code | C9: Scrip Name | D9: Client Name | E9: Buy / Sell | F9: Quantity Traded | G9: Trade Price / Wt.Avg.trade price | H9: Exchange
A10: 2020-03-03 | B10: 539660 | C10: BESTAGRO | D10: NAND KISHORE GARG | E10: SELL | F10: 75,000 | G10: 240 | H10: BSE
A11: 2020-03-03 | B11: 539660 | C11: BESTAGRO | D11: SEEMA GARG | E11: SELL | F11: 75,000 | G11: 240 | H11: BSE
A12: 2020-03-03 | B12: 539660 | C12: BESTAGRO | D12: RESONANCE OPPORTUNITIES FUND | E12: BUY | F12: 150,000 | G12: 240 | H12: BSE
A13: 2020-03-03 | B13: 522251 | C13: CENLUB | D13: COUNTER CYCLICAL INVESTMENTS PRIVATE LIMITED | E13: BUY | F13: 28,836 | G13: 36.8 | H13: BSE
A14: 2020-03-03 | B14: 522251 | C14: CENLUB | D14: RAJIV GARG | E14: SELL | F14: 25,985 | G14: 36.8 | H14: BSE
A15: 2020-03-03 | B15: 532443 | C15: CERA | D15: NALANDA INDIA EQUITY FUND LIMITED | E15: BUY | F15: 106,800 | G15: 2499.9 | H15: BSE
A16: 2020-03-03 | B16: 511696 | C16: CHRTEDCA | D16: MOHIB NOMANBHAI KHERICHA | E16: BUY | F16: 18,188 | G16: 55.12 | H16: BSE
A17: 2020-03-03 | B17: 511696 | C17: CHRTEDCA | D17: LALITKUMAR G GANDHI | E17: SELL | F17: 18,188 | G17: 55.12 | H17: BSE
A18: 2020-03-03 | B18: 538765 | C18: JSHL | D18: SARLA ARYA | E18: BUY | F18: 35,000 | G18: 15.5 | H18: BSE
A19: 2020-03-03 | B19: 538765 | C19: JSHL | D19: VIVEK DWIVEDI | E19: BUY | F19: 15,000 | G19: 19.08 | H19: BSE
A20: 2020-03-03 | B20: 538765 | C20: JSHL | D20: VIVEK DWIVEDI | E20: SELL | F20: 45,000 | G20: 16.42 | H20: BSE
A21: 2020-03-03 | B21: 539393 | C21: KCL | D21: COALSALE COMPANY LIMITED | E21: BUY | F21: 40,000 | G21: 18.25 | H21: BSE
A22: 2020-03-03 | B22: 539393 | C22: KCL | D22: KABRA STEEL PRODUCTS LIMITED | E22: SELL | F22: 39,300 | G22: 18.25 | H22: BSE
A23: 2020-03-03 | B23: 540080 | C23: NARAYANI | D23: RIKHAV SECURITIES LIMITED | E23: BUY | F23: 60,000 | G23: 36.53 | H23: BSE
A24: 2020-03-03 | B24: 500143 | C24: PHCAP | D24: KAISER DEVELOPERS PRIVATE LIMITED | E24: BUY | F24: 32,000 | G24: 23.75 | H24: BSE
A25: 2020-03-03 | B25: 519439 | C25: PIONAGR | D25: OSCAR RETAILERS LIMITED | E25: SELL | F25: 50,000 | G25: 8.75 | H25: BSE
A26: 2020-03-03 | B26: 519439 | C26: PIONAGR | D26: SAMRAAT FINLEASE PRIVATE LIMITED | E26: BUY | F26: 45,000 | G26: 8.75 | H26: BSE
A27: 2020-03-03 | B27: 531172 | C27: PRANAVSP | D27: BINDAL FINVEST PRIVATE LIMITED | E27: BUY | F27: 100,000 | G27: 17.1 | H27: BSE
A28: 2020-03-03 | B28: 531172 | C28: PRANAVSP | D28: SARITA SARAF | E28: SELL | F28: 100,000 | G28: 17.1 | H28: BSE
A29: 2020-03-03 | B29: 542725 | C29: SBC | D29: VRIDHI KUJUR | E29: BUY | F29: 78,000 | G29: 29.02 | H29: BSE
A30: 2020-03-03 | B30: 542725 | C30: SBC | D30: VRIDHI KUJUR | E30: SELL | F30: 60,000 | G30: 29.03 | H30: BSE
A31: 2020-03-03 | B31: 542725 | C31: SBC | D31: RAMASHREE COMMODITIES PVT LTD | E31: BUY | F31: 120,000 | G31: 29.03 | H31: BSE
A32: 2020-03-03 | B32: 542725 | C32: SBC | D32: LAKSHMISHREE REALESTATE & LANDSCAPER PRIVATE LTD | E32: SELL | F32: 120,000 | G32: 29.03 | H32: BSE
A33: 2020-03-03 | B33: 542725 | C33: SBC | D33: SANDEEP KUMAR SRIVASTAVA | E33: BUY | F33: 60,000 | G33: 29.03 | H33: BSE
A34: 2020-03-03 | B34: 542725 | C34: SBC | D34: SANDEEP KUMAR SRIVASTAVA | E34: SELL | F34: 60,000 | G34: 29.03 | H34: BSE
A35: 2020-03-03 | B35: 542765 | C35: TRANSPACT | D35: SAJANKUMAR RAMESHWARLAL BAJAJ | E35: BUY | F35: 5,000 | G35: 135 | H35: BSE
A36: 2020-03-03 | B36: ASIANHOTNR | C36: Asian Hotels (North) Ltd | D36: BHATTER KAVITA | E36: BUY | F36: 100,000 | G36: 69.51 | H36: NSE
A37: 2020-03-03 | B37: CERA | C37: Cera Sanitaryware Limited | D37: NALANDA INDIA EQUITY FUND LIMITED | E37: BUY | F37: 206,400 | G37: 2498.79 | H37: NSE
A38: 2020-03-03 | B38: ELGIEQUIP | C38: Elgi Equipments Ltd | D38: SBI MUTUAL FUND | E38: BUY | F38: 4,664,801 | G38: 198 | H38: NSE
A39: 2020-03-03 | B39: IBULHSGFIN | C39: Indiabulls Hsg Fin Ltd | D39: TOWER RESEARCH CAPITAL MARKETS INDIA PRIVATE LIMITED | E39: BUY | F39: 2,696,306 | G39: 293.44 | H39: NSE
A40: 2020-03-03 | B40: INNOVATIVE | C40: Innovative Tyres & Tubes | D40: SHAH AMAR MUKESHBHAI | E40: BUY | F40: 108,000 | G40: 7.6 | H40: NSE
A41: 2020-03-03 | B41: NCC | C41: NCC Limited | D41: TOWER RESEARCH CAPITAL MARKETS INDIA PRIVATE LIMITED | E41: BUY | F41: 3,533,528 | G41: 36.33 | H41: NSE
A42: 2020-03-03 | B42: SHOPERSTOP | C42: Shoppers Stop Limited | D42: CASA MARIA PROPERTIES LLP | E42: BUY | F42: 1,779,117 | G42: 379 | H42: NSE
A43: 2020-03-03 | B43: YESBANK | C43: Yes Bank Limited | D43: TOWER RESEARCH CAPITAL MARKETS INDIA PRIVATE LIMITED | E43: BUY | F43: 13,271,777 | G43: 31.95 | H43: NSE
A44: 2020-03-03 | B44: ASIANHOTNR | C44: Asian Hotels (North) Ltd | D44: SKS FINCAP PVT. LTD | E44: SELL | F44: 100,000 | G44: 69.5 | H44: NSE
A45: 2020-03-03 | B45: CERA | C45: Cera Sanitaryware Limited | D45: RAHUL RAMKUMAR RATHI | E45: SELL | F45: 79,958 | G45: 2500.01 | H45: NSE
A46: 2020-03-03 | B46: ELGIEQUIP | C46: Elgi Equipments Ltd | D46: SBI MUTUAL FUND | E46: SELL | F46: 4,664,785 | G46: 198 | H46: NSE
A47: 2020-03-03 | B47: IBULHSGFIN | C47: Indiabulls Hsg Fin Ltd | D47: TOWER RESEARCH CAPITAL MARKETS INDIA PRIVATE LIMITED | E47: SELL | F47: 2,660,678 | G47: 293.5 | H47: NSE
A48: 2020-03-03 | B48: INNOVATIVE | C48: Innovative Tyres & Tubes | D48: PKMG KNOWLEDGE CENTER PVT LTD | E48: SELL | F48: 168,000 | G48: 7.6 | H48: NSE
A49: 2020-03-03 | B49: KSERASERA | C49: KSS Limited | D49: SECURITIES AND EXCHANGE BOARD OF INDIA CERTIFICATE NO 1998 OF 2019 BASMATI SECURITIES PVT LTD | E49: SELL | F49: 11,828,220 | G49: 0.05 | H49: NSE
A50: 2020-03-03 | B50: NCC | C50: NCC Limited | D50: TOWER RESEARCH CAPITAL MARKETS INDIA PRIVATE LIMITED | E50: SELL | F50: 3,698,735 | G50: 36.39 | H50: NSE
A51: 2020-03-03 | B51: NH | C51: Narayana Hrudayalaya Ltd. | D51: CDC INDIA OPPORTUNITIES LIMITED | E51: SELL | F51: 4,360,804 | G51: 320.29 | H51: NSE
A52: 2020-03-03 | B52: NH | C52: Narayana Hrudayalaya Ltd. | D52: CDC GROUP PLC | E52: SELL | F52: 2,890,614 | G52: 320.04 | H52: NSE
A53: 2020-03-03 | B53: SHOPERSTOP | C53: Shoppers Stop Limited | D53: PALM SHELTER ESTATE DEVELOPMENT LLP | E53: SELL | F53: 1,779,117 | G53: 379 | H53: NSE
A54: 2020-03-03 | B54: YESBANK | C54: Yes Bank Limited | D54: TOWER RESEARCH CAPITAL MARKETS INDIA PRIVATE LIMITED | E54: SELL | F54: 12,686,663 | G54: 31.94 | H54: NSE

Sheet Call Tracker (Equity & F&O)
M5: Back To Main Page
A6: Retail Research Technical Calls & Fundamental Performance Report for the month of March-2020
M7: =Main!B10 -> 2020-03-04
B8: Positional Call
A9: Sr.no | B9: Date | D9: Company | E9: Rec | F9: Rec Price | G9: Stop Loss*** | H9: Call Closed At | I9: Target | J9: Remark | K9: Profit / Loss per Share | L9: Gain / Loss % | M9: Status | N9: Closed Date | O9: NSE Closed Price
A10: 1 | B10: 2020-02-04 | D10: MARICO | E10: Buy | F10: 306-308 | G10: 287.8 | I10: 335-345 | J10: Open | O10: =VLOOKUP(D10,Sheet2!A2:H1667,6,0) -> 296.1 | R10: R
A11: 2 | B11: 2020-02-05 | D11: FINPIPE | E11: Buy | F11: 552 | G11: 518 | H11: 568.5 | I11: 600-630 | J11: Part Profit of Rs.16.5/- | K11: =H11-F11 -> 16.5 | L11: =K11/F11 -> 2.99% | M11: Successful | N11: 2020-02-24 | O11: =VLOOKUP(D11,Sheet2!A5:H1670,6,0) -> 550.55 | R11: H
A12: 3 | B12: 2020-02-05 | D12: IOC | E12: Buy | F12: 114 | G12: 107 | H12: 118 | I12: 124-128 | J12: Part Profit of Rs.4/- | K12: =H12-F12 -> 4 | L12: =K12/F12 -> 3.51% | M12: Successful | N12: 2020-02-10 | O12: =VLOOKUP(D12,Sheet2!A6:H1671,6,0) -> 106.65 | R12: H
A13: 4 | B13: 2020-02-26 | D13: TITAN | E13: Buy | F13: 1255-1265 | G13: 1189 | I13: 1350-1400 | J13: Open | O13: =VLOOKUP(D13,Sheet2!A15:H1680,6,0) -> 1247 | R13: H
A14: 5 | B14: 2020-02-26 | D14: WHIRLPOOL | E14: Buy | F14: 2240-2250 | G14: 2145 | I14: 2430-2450 | J14: Open | O14: =VLOOKUP(D14,Sheet2!A19:H1684,6,0) -> 2222.95 | R14: R
A15: 6 | B15: 2020-02-27 | D15: MARUTI | E15: Buy | F15: 6300 | G15: 6100 | H15: 6305 | I15: 6700 | J15: Profit of Rs.5/- | K15: =H15-F15 -> 5 | L15: =K15/F15 -> 0.08% | M15: Neutral | N15: 2020-03-02 | R15: A
A16: 7 | B16: 2020-02-27 | D16: JKPAPER | E16: Buy | F16: 120-122 | G16: 113 | I16: 132-135 | J16: Open | O16: =VLOOKUP(D16,Sheet2!A21:H1686,6,0) -> 115.25 | R16: N
A17: 8 | B17: 2020-02-27 | D17: SUNPHARMA | E17: Buy | F17: 390 | G17: 370 | H17: 369 | I17: 430 | J17: Loss of Rs.21/- | K17: =H17-F17 -> -21 | L17: =K17/F17 -> -5.38% | M17: Unsuccessful | N17: 2020-03-02 | R17: A
A18: 9 | B18: 2020-02-27 | D18: HDFCLIFE | E18: Buy | F18: 565-567 | G18: 535 | I18: 625 | J18: Open | O18: =VLOOKUP(D18,Sheet2!A23:H1688,6,0) -> 563.5 | R18: N
A19: 10 | B19: 2020-02-28 | D19: NTPC | E19: Buy | F19: 108-110 | G19: 102 | I19: 125 | J19: Open | O19: =VLOOKUP(D19,Sheet2!A24:H1689,6,0) -> 108.9 | R19: R
A20: 11 | B20: 2020-03-02 | D20: M&M | E20: Buy | F20: 447.5 | G20: 420 | H20: 468 | I20: 490-500 | J20: Profit of Rs.20.50/- | K20: =H20-F20 -> 20.5 | L20: =K20/F20 -> 4.58% | M20: Successful | N20: 2020-03-02 | R20: N
A21: 12 | B21: 2020-03-02 | D21: MCDOWELL-N | E21: Buy | F21: 674-678 | G21: 645 | I21: 730-750 | J21: Open | O21: =VLOOKUP(D21,Sheet2!A26:H1691,6,0) -> 667.45 | R21: H
A22: 13 | B22: 2020-03-03 | D22: ACC | E22: Buy | F22: 1305-1315 | G22: 1260 | I22: 1400-1420 | J22: Open
A23: 14 | B23: 2020-03-03 | D23: FEDERALBNK | E23: Buy | F23: 84-84.40 | G23: 79.7 | I23: 91-93 | J23: Open | O23: =VLOOKUP(D23,Sheet2!A28:H1693,6,0) -> 84.5
A24: 15 | B24: 2020-03-03 | D24: ULTRACEMCO | E24: Buy | F24: 4165 | G24: 3930 | H24: 4305 | I24: 4600-4800 | J24: Part Profit of Rs.140/- | K24: =H24-F24 -> 140 | L24: =K24/F24 -> 3.36% | M24: Successful | N24: 2020-03-03 | O24: =VLOOKUP(D24,Sheet2!A18:H1683,6,0) -> 4299.9
A25: 16
A29: CLBS = Closing Basis ***
A30: Dividend adjusted <> | F30: Reinitiated $
A31: Part book {} | F31: Revised stoploss #
B33: Momentum Call
A34: Sr.no | B34: Date | D34: Company | E34: Rec | F34: Rec Price | G34: Stop Loss | H34: Call Closed At | I34: Target | J34: Remark | K34: Profit / Loss per Share/Lot | L34: Gain / Loss % | M34: Gain / Loss per Lot | N34: Lot | O34: Status | P34: Closed Date
A35: 1 | B35: 2020-02-28 | D35: HDFCBANK | E35: Buy | F35: 1172.5 | G35: 1140 | H35: 1200 | I35: 1210-1230 | J35: Profit of Rs.27.5/- | K35: =H35-F35 -> 27.5 | L35: =K35/F35 -> 2.35% | O35: Successful | P35: 2020-03-02 | R35: H
A36: 2 | B36: 2020-02-28 | D36: SBIN | E36: Buy | F36: 311.5 | G36: 299 | H36: 301.5 | I36: 325-330 | J36: Loss of Rs.10/- | K36: =H36-F36 -> -10 | L36: -3.21% | O36: Unsuccessful | P36: 2020-03-02 | R36: H
A37: 3 | B37: 2020-03-02 | D37: HEROMOTOCO | E37: Sell | F37: 2095 | G37: 2167 | H37: 2065.5 | I37: 2000-1970 | J37: Profit of Rs.29.50/- | K37: =F37-H37 -> 29.5 | L37: =K37/F37 -> 1.41% | O37: Successful | P37: 2020-03-02 | R37: H
A38: 4 | B38: 2020-03-02 | D38: APOLLOHOSP MAR FUT | E38: Buy | F38: 1740 | G38: 1715 | H38: 1754 | I38: 1780-1790 | J38: Profit of Rs.14/- | K38: =H38-F38 -> 14 | M38: =N38*K38 -> 7000 | N38: 500 | O38: Successful | P38: 2020-03-02 | R38: N
A39: 5 | B39: 2020-03-02 | D39: HDFCBANK | E39: Buy | F39: 1178 | G39: 1145 | H39: 1190 | I39: 1220-1240 | J39: Profit of Rs.12/- | K39: 12 | L39: =K39/F39 -> 1.02% | O39: Successful | P39: 2020-03-02 | R39: H
A40: 6 | B40: 2020-03-02 | D40: IGL | E40: Buy | F40: 442-446 | G40: 429 | I40: 465-470 | J40: Open | R40: H
A41: 7 | B41: 2020-03-02 | D41: AXISBANK | E41: Buy | F41: 690 | G41: 670 | H41: 700.5 | I41: 730 | J41: Profit of Rs.10.5/- | K41: =H41-F41 -> 10.5 | L41: =K41/F41 -> 1.52% | O41: Successful | P41: 2020-03-02 | R41: N
A42: 8 | B42: 2020-03-03 | D42: ASIANPAINT MAR FUT | E42: Buy | F42: 1811.5 | G42: 1790 | H42: 1791.5 | I42: 1840-1850 | J42: Loss of Rs.20/- | K42: -20 | M42: =N42*K42 -> -12000 | N42: 600 | O42: Unsuccessful | P42: 2020-03-03
A43: 9 | B43: 2020-03-03 | D43: HDFCBANK | E43: Buy | F43: 1172-1178 | G43: 1138 | I43: 1220-1230
A44: 10 | B44: 2020-03-03 | D44: AXISBANK | E44: Buy | F44: 689-692 | G44: 670 | I44: 730 | J44: Open
A45: 11 | B45: 2020-03-03 | D45: VEDL MAR FUT | E45: Sell | F45: 113.7 | G45: 117.3 | H45: 117.25 | I45: 108 | J45: Loss of Rs.3.55/- | K45: =F45-H45 -> -3.55 | M45: =N45*K45 -> -12425 | N45: 3500 | O45: Unsuccessful | P45: 2020-03-03
A46: 12 | B46: 2020-03-03 | D46: NIITTECH | E46: Sell | F46: 1885-1890 | G46: 1933.3 | I46: 1780-1760 | J46: Open
A47: 13
A48: 14
A56: 78
A57: CLBS = Closing Basis ***
A58: Dividend adjusted <> | F58: Reinitiated $
F59: Revised stoploss #
A61: Master Trade High Risk
A62: Sr.no | B62: Date | D62: Company | E62: Rec | F62: Rec Price | G62: Stop Loss | H62: Call Closed At | I62: Target | J62: Remark | K62: Profit / Loss per share | L62: Gain / Loss per Lot | M62: Lot | N62: Status | O62: Closed Date
A63: 1 | B63: 2020-03-02 | D63: NIFTY MAR FUT | E63: Buy | F63: 11315 | G63: 11170 | H63: 11170 | I63: 11600 | J63: Loss of Rs.120/- | K63: =H63-F63 -> -145 | L63: =+-120*75 -> -9000 | M63: 75 | N63: Unsuccessful | O63: 2020-03-02 | R63: H
D64: NIFTY 26 MARCH 11500 CE | E64: Sell | F64: 152.50 | H64: 127.5 | K64: =F64-H64 -> 25 | R64: H
A72: Master Trade Medium Risk
A73: Sr.no | B73: Date | D73: Company | E73: Rec | F73: Rec Price | G73: Stop Loss | H73: Call Closed At | I73: Target | J73: Remark | K73: Profit/ Loss per lot | L73: Gain / Loss per Lot | M73: Lot | N73: Status | O73: Closed Date
A74: 1 | B74: 2020-03-03 | D74: BANKNIFTY 29200 05-MAR CE | E74: Buy | F74: 200 | H74: 245 | I74: 400-450 | J74: Profit of Rs.45/- | K74: =H74-F74 -> 45 | L74: =M74*K74 -> 900 | M74: 20 | N74: Successful | O74: 2020-03-03
A75: 2 | B75: 2020-03-03 | D75: BANKNIFTY 29100 05-MAR CE | E75: Buy | F75: 230 | H75: 275 | I75: 400-450 | J75: Profit of Rs.45/- | K75: =H75-F75 -> 45 | L75: =M75*K75 -> 900 | M75: 20 | N75: Successful | O75: 2020-03-03
A76: 3 | B76: 2020-03-03 | D76: POWERGRID MAR 190 CE | E76: Buy | F76: 2.00-2.40 | G76: 0.9 | I76: 3.50-4.00 | J76: Open
A83: Techno -Funda (positional)
A84: Sr.no | B84: Date | D84: Company | E84: Rec | F84: Rec Price | G84: Stop Loss*** | H84: Call Closed At | I84: Target | J84: Remark | K84: Profit / Loss per Share | L84: Gain / Loss % | M84: Status | N84: Closed Date | O84: NSE Closed Price
A87: CLBS = Closing Basis *** | F87: Reinitiated $
A88: Dividend adjusted <> | F88: Revised stoploss #
B93: Investment Idea
A94: Sr.no | B94: Date | D94: Company | E94: Rec | F94: Rec Price | G94: Point of Review | H94: Close Rate | I94: Target | J94: Remark | K94: Profit / Loss per Share | L94: Gain / Loss % | M94: Status | N94: Closed Date
A95: 1 | B95: 2013-11-01 | D95: L&T Finance Holding | E95: Accu | F95: 82.00 | G95: - | H95: 100 | I95: 100.00 | J95: Target Achieved | K95: =H95-F95 -> 18.00 | L95: =K95/F95 -> 21.95% | M95: Successful | N95: 2016-10-14
A96: 2 | B96: 2014-06-04 | D96: Finolex Inds | E96: Buy | F96: 257.00 | G96: - | H96: 300 | I96: 300.00 | J96: Target Achieved | K96: 43.00 | L96: 16.73% | M96: Successful | N96: 2014-07-02
A97: 3 | B97: 2014-07-08 | D97: JK Cement | E97: Buy | F97: 393.00 | G97: - | H97: 468 | I97: 468.00 | J97: Target Achieved | K97: 75.00 | L97: 19.08% | M97: Successful | N97: 2014-08-12
A98: 4 | B98: 2014-08-06 | D98: Finolex Cables | E98: Buy | F98: 205.00 | G98: - | H98: 275 | I98: 250.00 | J98: Target Achieved | K98: 70.00 | L98: 34.15% | M98: Successful | N98: 2014-11-19
A99: 5 | B99: 2014-09-04 | D99: Exide Inds | E99: Buy | F99: 162.00 | G99: - | H99: 190 | I99: 190.00 | J99: Target Achieved | K99: 28.00 | L99: 17.28% | M99: Successful | N99: 2015-01-02
A100: 6 | B100: 2014-09-04 | D100: Deepak Nitrite | E100: Buy | F100: 75.00 | G100: - | H100: 91.5 | I100: 95-100 | J100: Profit of Rs.16.50/- | K100: 16.50 | L100: 22.00% | M100: Successful | N100: 2014-11-11
A101: 7 | B101: 2014-10-01 | D101: Mercks | E101: Buy | F101: 850.00 | G101: - | H101: 982.5 | I101: 1050.00 | J101: Profit of Rs.132.50/- | K101: 132.50 | L101: 15.59% | M101: Successful | N101: 2015-02-04
A102: 8 | B102: 2014-10-01 | D102: Grindwell Norton | E102: Buy | F102: 475.00 | G102: - | H102: 515 | I102: 600.00 | J102: Profit of Rs.40/- | K102: 40.00 | L102: 8.42% | M102: Successful | N102: 2014-10-27
A103: 9 | B103: 2014-10-01 | D103: Snowman Logistics | E103: Buy | F103: 86.00 | G103: - | H103: 99 | I103: 140.00 | J103: Profit of Rs.13.00/- | K103: 13.00 | L103: 15.12% | M103: Successful | N103: 2014-10-27
A104: 10 | B104: 2014-10-14 | D104: Birla Corp | E104: Buy | F104: 496.60 | G104: - | H104: 621 | I104: 580.00 | J104: Target Achieved | K104: 124.40 | L104: 25.05% | M104: Successful | N104: 2016-08-23
A105: 11 | B105: 2014-10-14 | D105: Ultratech Cem | E105: Buy | F105: 2481.90 | G105: - | H105: 2840 | I105: 2870.00 | J105: Profit of Rs.358.10/- | K105: 358.10 | L105: 14.43% | M105: Successful | N105: 2015-01-13
A106: 12 | B106: 2014-10-16 | D106: Sintex Inds | E106: Buy | F106: 84.50 | G106: - | H106: 93 | I106: 110.00 | J106: Profit of Rs.8.50/- | K106: 8.50 | L106: 10.06% | M106: Successful | N106: 2014-10-27
A107: 13 | B107: 2014-10-16 | D107: HSIL | E107: Buy | F107: 401.00 | G107: - | H107: 428 | I107: 450.00 | J107: Profit of Rs.27.00/- | K107: 27.00 | L107: 6.73% | M107: Successful | N107: 2015-01-16
A108: 14 | B108: 2014-10-16 | D108: Eveready Inds | E108: Buy | F108: 101.00 | G108: - | H108: 112 | I108: 120.00 | J108: Profit of Rs.11.00/- | K108: 11.00 | L108: 10.89% | M108: Successful | N108: 2014-10-27
A109: 15 | B109: 2014-11-11 | D109: Pennar Inds | E109: Buy | F109: 59.00 | G109: - | H109: 76 | I109: 76.00 | J109: Target Achieved | K109: 17.00 | L109: 28.81% | M109: Successful | N109: 2017-10-24
A110: 16 | B110: 2014-11-11 | D110: Snowman Logistics | E110: Buy | F110: 99.00 | G110: - | H110: 120 | I110: 120.00 | J110: Profit of Rs.21/- | K110: 21.00 | L110: 21.21% | M110: Successful | N110: 2014-11-17
A111: 17 | B111: 2014-11-13 | D111: Dharamsi Morarji Chem | E111: Buy | F111: 22.00 | G111: - | H111: 33.55 | I111: 32.00 | J111: Profit of Rs 11.55/- | K111: 11.55 | L111: 52.50% | M111: Successful | N111: 2015-07-03
A112: 18 | B112: 2014-12-03 | D112: Tatachem | E112: Buy | F112: 440.00 | G112: - | H112: 520 | I112: 520.00 | J112: Profit of Rs 80.00/- | K112: 80.00 | L112: 18.18% | M112: Successful | N112: 2015-07-23
A113: 19 | B113: 2014-12-03 | D113: Advanta | E113: Buy | F113: 360.00 | G113: - | H113: 427 | I113: 425.00 | J113: Profit of Rs.67.00/- | K113: 67.00 | L113: 18.61% | M113: Successful | N113: 2015-02-23
A114: 20 | B114: 2015-01-08 | D114: GDL | E114: Buy | F114: 360.00 | G114: - | H114: 455 | I114: 420.00 | J114: Profit of Rs.95.00/- | K114: 95.00 | L114: 26.39% | M114: Successful | N114: 2015-01-20
A115: 21 | B115: 2015-01-08 | D115: NRB Bearing | E115: Buy | F115: 130.00 | H115: 175.5 | I115: 165.00 | J115: Profit of Rs 45.50/- | K115: 45.50 | L115: 35.00% | M115: Successful | N115: 2017-12-19
A116: 22 | B116: 2015-02-05 | D116: GSFC | E116: Accu | F116: 98.00 | H116: 120 | I116: 120.00 | J116: Target Achieved | K116: 22.00 | L116: 22.45% | M116: Successful | N116: 2017-01-18
A117: 23 | B117: 2015-02-05 | D117: Sundrmfast | E117: Accu | F117: 196.00 | H117: 262 | I117: 255.00 | J117: Target Achieved | K117: 66.00 | L117: 33.67% | M117: Successful | N117: 2016-08-17
A118: 24 | B118: 2015-03-04 | D118: GPPL | E118: Accu | F118: 235 | H118: 77.00 | I118: 280-285 | J118: Loss of Rs.158/- | K118: -158.00 | L118: -67.23% | M118: Unsuccessful | N118: 2019-02-26
A119: 25 | B119: 2015-03-04 | D119: ORIENTCEM | E119: Accu | F119: 185.00 | H119: 224 | I119: 220-225 | J119: Target Achieved | K119: 39.00 | L119: 21.08% | M119: Successful | N119: 2016-10-04
A120: 26 | B120: 2015-03-27 | D120: PFS | E120: Accu | F120: 49.5 | H120: 15.85 | I120: 67.00 | J120: Loss of Rs.33.65/- | K120: -33.65 | L120: -68% | M120: Unsuccessful | N120: 2019-06-11
A121: 27 | B121: 2015-03-30 | D121: Walchandnagar Ind Ltd | E121: Accu | F121: 183.50 | H121: 219 | I121: 218.00 | J121: Profit of Rs.35.50/- | K121: 35.50 | L121: 19.35% | M121: Successful | N121: 2015-04-09
A122: 28 | B122: 2015-04-20 | D122: Kalpataru Power Transmission Ltd | E122: Accu | F122: =(227+237)/2 -> 232.00 | H122: 298 | I122: 298.00 | J122: Target Achieved | K122: 66.00 | L122: 28.45% | M122: Successful | N122: 2017-03-29
A123: 29 | B123: 2015-05-04 | D123: Mastek Ltd | E123: Buy | F123: 385.00 | H123: =212.5+331 -> 543.5 | I123: 510.00 | J123: Profit of Rs 158.50/- | K123: 158.50 | L123: 41.17% | M123: Successful | N123: 2015-08-19
A124: 30 | B124: 2015-05-04 | D124: Suprajit Eng | E124: Buy | F124: 115.50 | H124: 146 | I124: 142.00 | J124: Profit of Rs 30.50/- | K124: 30.50 | L124: 26.41% | M124: Successful | N124: 2015-07-17
A125: 31 | B125: 2015-05-27 | D125: TCI | E125: Buy | F125: 237.50 | H125: 279.5 | I125: 278.00 | J125: Target Achieved | K125: 42.00 | L125: 17.68% | M125: Successful | N125: 2015-08-06
A126: 32 | B126: 2015-06-19 | D126: HSIL | E126: Accu | F126: 340.00 | H126: 448 | I126: 448.00 | J126: Target Achieved | K126: 108.00 | L126: 31.76% | M126: Successful | N126: 2017-10-10
A127: 33 | B127: 2015-07-06 | D127: Capital First | E127: Accu | F127: 390.00 | H127: 460 | I127: 460.00 | J127: Target Achieved | K127: =H127-F127 -> 70.00 | L127: =K127/F127 -> 17.95% | M127: Successful | N127: 2016-04-18
A128: 34 | B128: 2015-07-10 | D128: Dolphin OffShore | E128: Accu | F128: 122.5 | H128: 61.00 | I128: 172.00 | J128: Loss of Rs.61.50/- | K128: -61.50 | L128: -50.20% | M128: Unsuccessful | N128: 2018-08-21
A129: 35 | B129: 2015-08-03 | D129: Allcargo logistics | E129: Accu | F129: 297.50 | H129: 350 | I129: 360.00 | J129: Profit of Rs 52.50/- | K129: 52.50 | L129: 17.65% | M129: Successful | N129: 2015-08-16
A130: 36 | B130: 2015-08-03 | D130: Camline Fine | E130: Accu | F130: 115.50 | H130: 149 | I130: 140.00 | J130: Profit of Rs 33.50/- | K130: 33.50 | L130: 29.00% | M130: Successful | N130: 2017-01-05
A131: 37 | B131: 2015-09-04 | D131: TCI | E131: Accu | F131: 226.00 | H131: 292 | I131: 292.00 | J131: Target Achieved | K131: 66.00 | L131: 29.20% | M131: Successful | N131: 2015-10-09
A132: 38 | B132: 2015-09-07 | D132: Kalpataru Power Transmission Ltd | E132: Accu | F132: 232.50 | H132: 312.5 | I132: 310.00 | J132: Target Achieved | K132: 80.00 | L132: 34.41% | M132: Successful | N132: 2017-03-29
A133: 39 | B133: 2015-09-21 | D133: LLOYD ELECTRIC & ENG LTD | E133: Accu | F133: 196.50 | H133: 238 | I133: 238.00 | J133: Target Achieved | K133: 41.50 | L133: 21.12% | M133: Successful | N133: 2015-10-14
A134: 40 | B134: 2015-09-24 | D134: L&T Finance Holding | E134: Accu | F134: 65.00 | H134: 82 | I134: 82.00 | J134: Target Achieved | K134: 17.00 | L134: 26.15% | M134: Successful | N134: 2016-07-27
A135: 41 | B135: 2015-10-14 | D135: KEC International ltd | E135: Accu | F135: 144.00 | H135: 182.5 | I135: 181.00 | J135: Target Achieved | K135: 38.50 | L135: 26.74% | M135: Successful | N135: 2017-03-23
A136: 42 | B136: 2015-10-14 | D136: Gruh Finance | E136: Accu | F136: 264.00 | H136: 311 | I136: 311.00 | J136: Target Achieved | K136: 47.00 | L136: 17.80% | M136: Successful | N136: 2016-08-22
A137: 43 | B137: 2015-11-10 | D137: Pidilitind | E137: Buy | F137: 549.50 | H137: 630 | I137: 630.00 | J137: Target Achieved | K137: 80.50 | L137: 14.65% | M137: Successful | N137: 2016-02-19
A138: 44 | B138: 2015-12-04 | D138: Zensar Technology | E138: Accu | F138: 1027.50 | H138: 1315 | I138: 1250.00 | J138: Target Achieved | K138: 287.50 | L138: 27.98% | M138: Successful | N138: 2018-05-24
A139: 45 | B139: 2015-12-29 | D139: Vinati Organics Ltd | E139: Accu | F139: 465.00 | H139: 540 | I139: 540.00 | J139: Target Achieved | K139: 75.00 | L139: 16.13% | M139: Successful | N139: 2016-06-09
A140: 46 | B140: 2016-01-11 | D140: GSFC | E140: Buy | F140: 81.00 | H140: 110 | I140: 110.00 | J140: Target Achieved | K140: 29.00 | L140: 35.80% | M140: Successful | N140: 2017-01-10
A141: 47 | B141: 2016-01-13 | D141: SSWL | E141: Buy | F141: 417.50 | H141: 547 | I141: 535.00 | J141: Target Achieved | K141: 129.50 | L141: 31.02% | M141: Successful | N141: 2016-07-27
A142: 48 | B142: 2016-02-08 | D142: Persistent System Ltd | E142: Accu | F142: 650.00 | H142: 800 | I142: 800.00 | J142: Target Achieved | K142: 150.00 | L142: 23.08% | M142: Successful | N142: 2018-02-23
A143: 49 | B143: 2016-03-04 | D143: UPL | E143: Accu | F143: 437.50 | H143: 504.5 | I143: 522.00 | J143: Profit of Rs.67/- | K143: 67.00 | L143: 15.31% | M143: Successful | N143: 2016-04-20
A144: 50 | B144: 2016-03-09 | D144: Ashoka Buildcon Ltd | E144: Accu | F144: 189.50 | H144: 218 | I144: 218.00 | J144: Target Achieved | K144: 28.50 | L144: 15.04% | M144: Successful | N144: 2017-10-26
A145: 51 | B145: 2016-04-11 | D145: PTC INDIA FIN SERV LTD | E145: Accu | F145: 36.5 | H145: 15.85 | I145: 60.00 | J145: Loss of Rs.20.65/- | K145: -20.65 | L145: -56.58% | M145: Unsuccessful | N145: 2019-06-11
A146: 52 | B146: 2016-04-12 | D146: CAMLINFINE $ | E146: Accu | F146: 93.00 | H146: 149 | I146: 140.00 | J146: Profit of Rs 56/- | K146: 56.00 | L146: 60.22% | M146: Successful | N146: 2017-01-05
A147: 53 | B147: 2016-04-12 | D147: Greaves Cotton Ltd. | E147: Accu | F147: 130.00 | H147: 150 | I147: 150-155 | J147: Target Achieved | K147: 20.00 | L147: 15.38% | M147: Successful | N147: 2016-07-13
A148: 54 | B148: 2016-04-13 | D148: DHFL | E148: Accu | F148: 196.00 | H148: 299 | I148: 299.00 | J148: Target Achieved | K148: 103.00 | L148: 52.55% | M148: Successful | N148: 2016-09-07
A149: 55 | B149: 2016-04-13 | D149: Magma | E149: Accu | F149: 88.00 | H149: 103 | I149: 103.00 | J149: Target Achieved | K149: 15.00 | L149: 17.05% | M149: Successful | N149: 2016-06-09
A150: 56 | B150: 2016-05-02 | D150: KEC International ltd $ | E150: Accu | F150: 127.50 | H150: 148 | I150: 148-150 | J150: Target Achieved | K150: =H150-F150 -> 20.50 | L150: =K150/F150 -> 16.08% | M150: Successful | N150: 2016-07-13
A151: 57 | B151: 2016-05-03 | D151: Mindtree | E151: Accu | F151: 675.00 | H151: 815 | I151: 790-800 | J151: Target Achieved | K151: =H151-F151 -> 140.00 | L151: =K151/F151 -> 20.74% | M151: Successful | N151: 2018-02-23
A152: 58 | B152: 2016-06-01 | D152: Atulauto | E152: Accu | F152: 500 | H152: 232.50 | I152: 565-570 | J152: Loss of Rs.267.50 /- | K152: =H152-F152 -> -267.50 | L152: =K152/F152 -> -53.50% | M152: Unsuccessful | N152: 2019-09-27
A153: 59 | B153: 2016-06-06 | D153: TRITURBINE | E153: Accu | F153: 110.00 | H153: 126.5 | I153: 125.00 | J153: Profit of Rs.16.50/- | K153: =H153-F153 -> 16.50 | L153: =K153/F153 -> 15.00% | M153: Successful | N153: 2016-07-01
A154: 60 | B154: 2016-06-17 | D154: Pennar Industries Ltd | E154: Accu | F154: 44.00 | H154: 69.5 | I154: 69.50 | J154: Profit of Rs.25.50/- | K154: =H154-F154 -> 25.50 | L154: =K154/F154 -> 57.95% | M154: Successful | N154: 2017-08-30
A155: 61 | B155: 2016-06-28 | D155: EVEREADY | E155: Accu | F155: 262.50 | H155: 340 | I155: 333.00 | J155: Profit of Rs.77.50/- | K155: 77.50 | L155: 29.52% | M155: Successful | N155: 2017-10-09
A156: 62 | B156: 2016-06-28 | D156: FIEMIND | E156: Accu | F156: 840.00 | H156: 1230 | I156: 1230.00 | J156: Target Achieved | K156: 390.00 | L156: 46.43% | M156: Successful | N156: 2016-10-06
A157: 63 | B157: 2016-07-05 | D157: Bajaj Corp Ltd | E157: Accu | F157: 395 | H157: =(468.5+342.5)/2 -> 405.50 | I157: 510.00 | J157: Profit of Rs.10.50/- | K157: =H157-F157 -> 10.50 | L157: =K157/F157 -> 3% | M157: Neutral | N157: 2019-05-21
A158: 64 | B158: 2016-08-02 | D158: GPPL $ | E158: Buy | F158: =169.5-12.8 -> 156.7 | H158: 77.00 | I158: 198-200 | J158: Loss of Rs.79.7/- | K158: -79.70 | L158: -50.86% | M158: Unsuccessful | N158: 2019-02-26
A159: 65 | B159: 2016-08-04 | D159: WONDERLA HOLIDAYS LTD | E159: Accu | F159: 400 | H159: 305.00 | I159: 475.00 | J159: Loss of Rs.95/- | K159: -95.00 | L159: -23.75% | M159: Unsuccessful | N159: 2019-05-21
A160: 66 | B160: 2016-08-11 | D160: CAMLINFINE | E160: Accu | F160: 86.50 | H160: 130 | I160: 130.00 | J160: Profit of Rs.43.50/- | K160: 43.50 | L160: 50.29% | M160: Successful | N160: 2017-12-22
A161: 67 | B161: 2016-08-18 | D161: GRANULES | E161: Accu | F161: 133.5 | H161: 126.50 | I161: 178.00 | J161: Exit | K161: -7.00 | L161: -5.24% | M161: Unsuccessful | N161: 2016-09-02
A162: 68 | B162: 2016-08-31 | D162: VA TECH WABAG | E162: Accu | F162: 560.00 | H162: 725 | I162: 725.00 | J162: Target Achieved | K162: 165.00 | L162: 29.46% | M162: Successful | N162: 2016-03-27
A163: 69 | B163: 2016-09-01 | D163: SKIPPER LIMITED | E163: Accu | F163: 160.50 | H163: 210 | I163: 210.00 | J163: Target Achieved | K163: 49.50 | L163: 30.84% | M163: Successful | N163: 2017-05-16
A164: 70 | B164: 2016-10-03 | D164: IFBIND | E164: Accu | F164: 430.00 | H164: 596 | I164: 575.00 | J164: Profit of Rs.166/- | K164: 166.00 | L164: 38.60% | M164: Successful | N164: 2017-02-03
A165: 71 | B165: 2016-10-14 | D165: ASIANTILES | E165: Accu | F165: 280.00 | H165: 345 | I165: 345.00 | J165: Target Achieved | K165: =H165-F165 -> 65.00 | L165: =K165/F165 -> 23.21% | M165: Successful | N165: 2017-03-20
A166: 72 | B166: 2016-10-14 | D166: DEEPIND | E166: Accu | F166: 245.00 | H166: 325.5 | I166: 330.00 | J166: Profit of Rs.80.5/- | K166: 80.50 | L166: =K166/F166 -> 32.86% | M166: Successful | N166: 2017-02-03
A167: 73 | B167: 2016-10-17 | D167: DCBBANK | E167: Accu | F167: 125.00 | H167: 160 | I167: 160.00 | J167: Target Achieved | K167: 35.00 | L167: 28.00% | M167: Successful | N167: 2017-03-09
A168: 74 | B168: 2016-10-17 | D168: ORIENTREF | E168: Accu | F168: 114.00 | H168: 145 | I168: 145.00 | J168: Target Achieved | K168: 31.00 | L168: =K168/F168 -> 27.19% | M168: Successful | N168: 2017-05-04
A169: 75 | B169: 2016-10-17 | D169: GANECOS | E169: Accu | F169: 212.00 | H169: 280 | I169: 276.00 | J169: Profit of Rs.68/- | K169: 68.00 | L169: =K169/F169 -> 32.08% | M169: Successful | N169: 2017-05-03
A170: 76 | B170: 2016-11-04 | D170: NBCC | E170: Accu | F170: 155.00 | H170: 210 | I170: 210.00 | J170: Profit of Rs.55/- | K170: 55.00 | L170: =K170/F170 -> 35.48% | M170: Successful | N170: 2017-07-28
A171: 77 | B171: 2016-12-06 | D171: PRECAM | E171: Accu | F171: 150.5 | H171: 72.50 | I171: 174.00 | J171: Loss of Rs.78/- | K171: -78.00 | L171: -51.83% | M171: Unsuccessful | N171: 2018-08-21
A172: 78 | B172: 2016-12-08 | D172: INFRATEL | E172: Accu | F172: 380.00 | H172: 478 | I172: 468.00 | J172: Target Achieved | K172: =H172-F172 -> 98.00 | L172: =K172/F172 -> 25.79% | M172: Successful | N172: 2017-10-17
A173: 79 | B173: 2016-12-30 | D173: GODREJPROP | E173: Accu | F173: 305.00 | H173: 375 | I173: 375.00 | J173: Target Achieved | K173: =H173-F173 -> 70.00 | L173: =K173/F173 -> 22.95% | M173: Successful | N173: 2017-02-02
A174: 80 | B174: 2017-01-04 | D174: DEEPAKNTR | E174: Accu | F174: 99.50 | H174: 158 | I174: 158.00 | J174: Target Achieved | K174: =H174-F174 -> 58.50 | L174: =K174/F174 -> 58.79% | M174: Successful | N174: 2017-06-12
A175: 81 | B175: 2017-01-04 | D175: DEEPAKNTR | E175: Accu | F175: 99.50 | H175: 158 | I175: 158.00 | J175: Target Achieved | K175: 58.50 | L175: 58.79% | M175: Successful | N175: 2017-06-12
A176: 82 | B176: 2017-02-20 | D176: RECLTD | E176: Accu | F176: 140.50 | H176: 220 | I176: 220.00 | J176: Target Achieved | K176: =H176-F176 -> 79.50 | L176: =K176/F176 -> 56.58% | M176: Successful | N176: 2017-05-09
A177: 83 | B177: 2017-02-20 | D177: SUBROS | E177: Accu | F177: 202.50 | H177: 234 | I177: 234.00 | J177: Target Achieved | K177: 31.50 | L177: 15.56% | M177: Successful | N177: 2017-04-11
A178: 84 | B178: 2017-03-24 | D178: VRLLOG | E178: Accu | F178: 300.50 | H178: 417.5 | I178: 420.00 | J178: Profit of Rs.117/- | K178: =H178-F178 -> 117.00 | L178: =K178/F178 -> 38.94% | M178: Successful | N178: 2017-12-01
A179: 85 | B179: 2017-03-24 | D179: FIEMIND | E179: Accu | F179: 850.00 | H179: 1042.5 | I179: 1023.00 | J179: Profit of Rs 192.50/- | K179: 192.50 | L179: 22.65% | M179: Successful | N179: 2017-04-05
A180: 86 | B180: 2017-04-05 | D180: RATNAMANI | E180: Accu | F180: 785.00 | H180: 930 | I180: 920.00 | J180: Profit of Rs.145/- | K180: =H180-F180 -> 145.00 | L180: =K180/F180 -> 18.47% | M180: Successful | N180: 2017-08-29
A181: 87 | B181: 2017-04-06 | D181: ZEEMEDIA | E181: Accu | F181: 40 | H181: 13.10 | I181: 60.00 | J181: Loss of Rs.26.9/- | K181: -26.90 | L181: -67.25% | M181: Unsuccessful | N181: 2018-02-07
A182: 88 | B182: 2017-04-12 | D182: DABUR | E182: Accu | F182: 289.50 | H182: 354 | I182: 360.00 | J182: Profit of Rs.64.5/- | K182: =H182-F182 -> 64.50 | L182: =K182/F182 -> 22.28% | M182: Successful | N182: 2017-11-01
A183: 89 | B183: 2017-04-20 | D183: KPRMILL | E183: Accu | F183: 700.00 | H183: 840 | I183: 840.00 | J183: Profit of Rs.140/- | K183: 140.00 | L183: 20.00% | M183: Successful | N183: 2017-06-07
A184: 90 | B184: 2017-06-01 | D184: ESSELPACK | E184: Accu | F184: 130.00 | H184: 144.25 | I184: 170.00 | J184: Profit of Rs.14.25/- | K184: 14.25 | L184: 10.96% | M184: Successful | N184: 2019-07-29
A185: 91 | B185: 2017-06-15 | D185: KEI | E185: Accu | F185: 214.50 | H185: 262 | I185: 262.00 | J185: Profit of Rs.47.5/- | K185: 47.50 | L185: 22.14% | M185: Successful | N185: 2017-08-30
A186: 92 | B186: 2017-07-17 | D186: MAYURUNIQ | E186: Accu | F186: 370.00 | H186: 447.5 | I186: 450.00 | J186: Target Achieved | K186: 77.50 | L186: 20.95% | M186: Successful | N186: 2017-10-27
A187: 93 | B187: 2017-07-27 | D187: RAMCOCEM | E187: Accu | F187: 657.50 | H187: 825 | I187: 820.00 | J187: Target Achieved | K187: 167.50 | L187: 25.48% | M187: Successful | N187: 2017-12-21
A188: 94 | B188: 2017-08-17 | D188: FINPIPE | E188: Accu | F188: 605.00 | H188: 750 | I188: 750.00 | J188: Profit of Rs.145/- | K188: 145.00 | L188: 23.97% | M188: Successful | N188: 2017-10-19
A189: 95 | B189: 2017-09-01 | D189: SHK | E189: Accu | F189: 255 | H189: 217.25 | I189: 320.00 | J189: Loss of Rs.37.75/- | K189: -37.75 | L189: -15% | M189: Unsuccessful | N189: 2019-07-15
A190: 96 | B190: 2017-09-19 | D190: SKIPPER | E190: Accu | F190: 215.00 | H190: 258 | I190: 258.00 | J190: Target Achieved | K190: 43.00 | L190: 20.00% | M190: Successful | N190: 2017-11-01
A191: 97 | B191: 2017-09-19 | D191: SKIPPER | E191: Accu | F191: 215.00 | H191: 258 | I191: 258.00 | J191: Target Achieved | K191: 43.00 | L191: 20.00% | M191: Successful | N191: 2017-11-01
A192: 98 | B192: 2017-09-20 | D192: CAMLINFINE$ | E192: Accu | F192: 75.00 | H192: 90 | I192: 90.00 | J192: Profit of Rs.15.00/- | K192: =H192-F192 -> 15.00 | L192: =K192/F192 -> 20.00% | M192: Successful | N192: 2017-10-11
A193: 99 | B193: 2017-10-03 | D193: GNA | E193: Accu | F193: 315.00 | H193: 392 | I193: 384.00 | J193: Profit of Rs.77/- | K193: 77.00 | L193: 24.44% | M193: Successful | N193: 2017-10-09
A194: 100 | B194: 2017-10-05 | D194: NOCIL | E194: Accu | F194: 145.00 | H194: 179 | I194: 180.00 | J194: Profit of Rs.34/- | K194: 34.00 | L194: 23.45% | M194: Successful | N194: 2017-10-17
A195: 101 | B195: 2017-10-06 | D195: CENTURYPLY | E195: Accu | F195: 256.00 | H195: 323 | I195: 320.00 | J195: Target Achieved | K195: 67.00 | L195: 26.17% | M195: Successful | N195: 2017-11-28
A196: 102 | B196: 2017-10-09 | D196: EIHOTEL | E196: Accu | F196: 137.50 | H196: 184 | I196: 183.00 | J196: Profit of Rs.46.5/- | K196: 46.50 | L196: 33.82% | M196: Successful | N196: 2018-01-08
A197: 103 | B197: 2017-10-10 | D197: NRBBEARING | E197: Accu | F197: 125.50 | H197: 158 | I197: 155.00 | J197: Profit of Rs.32.5/- | K197: 32.50 | L197: 25.90% | M197: Successful | N197: 2017-11-28
A198: 104 | B198: 2017-10-10 | D198: BOROSIL | E198: Accu | F198: 895.00 | H198: 1122.5 | I198: 1078.00 | J198: Profit of Rs.227.5/- | K198: 227.50 | L198: 25.42% | M198: Successful | N198: 2018-01-17
A199: 105 | B199: 2017-10-12 | D199: CYIENT | E199: Accu | F199: 525.00 | H199: 629 | I199: 629.00 | J199: Target Achieved | K199: 104.00 | L199: 19.81% | M199: Successful | N199: 2018-01-19
A200: 106 | B200: 2017-11-07 | D200: HATSUN | E200: Accu | F200: 740.00 | H200: 892.5 | I200: 900.00 | J200: Profit of Rs.152.5/- | K200: =H200-F200 -> 152.50 | L200: =K200/F200 -> 20.61% | M200: Successful | N200: 2017-11-13
A201: 107 | B201: 2017-12-04 | D201: SANGHIIND | E201: Accu | F201: 118.50 | H201: 143.5 | I201: 145.00 | J201: Profit of Rs.25/- | K201: =H201-F201 -> 25.00 | L201: =K201/F201 -> 21.10% | M201: Successful | N201: 2017-12-28
A202: 108 | B202: 2017-12-21 | D202: KAJARIACER | E202: Accu | F202: 715 | H202: 500.00 | I202: 872.00 | J202: Loss of Rs.215/- | K202: =H202-F202 -> -215.00 | L202: =K202/F202 -> -30.07% | M202: Unsuccessful | N202: 2019-07-24
A203: 109 | B203: 2017-12-29 | D203: GNA | E203: Accu | F203: 435.00 | H203: 542.5 | I203: 539.00 | J203: Target Achieved | K203: 107.50 | L203: 24.71% | M203: Successful | N203: 2018-04-16
A204: 110 | B204: 2017-12-29 | D204: ZENSARTECH | E204: Accu | F204: 885.00 | H204: 1090 | I204: 1084.00 | J204: Target Achieved | K204: 205.00 | L204: 23.16% | M204: Successful | N204: 2018-04-23
A205: 111 | B205: 2018-04-02 | D205: EVERESTIND | E205: Accu | F205: 478.50 | H205: 442 | I205: 613.00 | J205: Loss of Rs.36.50 /- | K205: =H205-F205 -> -36.50 | L205: =K205/F205 -> -7.63% | M205: Unsuccessful | N205: 2019-10-24
A206: 112 | B206: 2018-04-04 | D206: GPPL$ | E206: Accu | F206: =141.5-7.3 -> 134.2 | H206: 77.00 | I206: 180.00 | J206: Loss of Rs.57.2/- | K206: =H206-F206 -> -57.20 | L206: =K206/F206 -> -42.62% | M206: Unsuccessful | N206: 2019-02-26
A207: 113 | B207: 2018-04-19 | D207: MANPASAND | E207: Accu | F207: 430 | H207: 220.00 | I207: 537.00 | J207: Loss of Rs.210/- | K207: =H207-F207 -> -210.00 | L207: =K207/F207 -> -48.84% | M207: Unsuccessful | N207: 2018-06-01
A208: 114 | B208: 2018-04-30 | D208: HEIDELBERG | E208: Accu | F208: 156 | H208: 196.00 | I208: 196.00 | J208: Profit of Rs.40/- | K208: =H208-F208 -> 40.00 | L208: =K208/F208 -> 26% | M208: Successful | N208: 2019-05-20
A209: 115 | B209: 2018-07-25 | D209: ZEEMEDIA | E209: Accu | F209: 27.5 | H209: 13.10 | I209: 60.00 | J209: Loss of Rs.14.40/- | K209: -14.40 | L209: -52.36% | M209: Unsuccessful | N209: 2018-02-07
A210: 116 | B210: 2018-08-06 | D210: GABRIEL | E210: Accu | F210: 150.00 | H210: 102 | I210: 182.00 | J210: Loss of Rs.48 /- | K210: =H210-F210 -> -48.00 | L210: =K210/F210 -> -32.00% | M210: Unsuccessful | N210: 2019-07-15
A211: 117 | B211: 2018-08-23 | D211: INDIANHUME | E211: Accu | F211: 285.00 | H211: 355 | I211: 364.00 | J211: Profit of Rs.70/- | K211: 70.00 | L211: 24.56% | M211: Successful | N211: 2018-12-21
A212: 118 | B212: 2018-08-29 | D212: GRINDWELL | E212: Accu | F212: 525.00 | H212: 585 | I212: 635.00 | J212: Profit of Rs.60- | K212: =H212-F212 -> 60.00 | L212: =K212/F212 -> 11.43% | M212: Successful | N212: 2019-07-16
A213: 119 | B213: 2018-10-22 | D213: FINPIPE | E213: Accu | F213: 475.00 | H213: 574 | I213: 570.00 | J213: Target Achieved | K213: 99.00 | L213: 20.84% | M213: Successful | N213: 2018-10-30
A214: 120 | B214: 2018-10-24 | D214: GULFOILLUB | E214: Accu | F214: 707.50 | H214: 872 | I214: 872.00 | J214: Target Achieved | K214: 164.50 | L214: 23.25% | M214: Successful | N214: 2019-01-17
A215: 121 | B215: 2018-10-25 | D215: DBCORP | E215: Accu | F215: 164.00 | H215: 204 | I215: 209.00 | J215: Profit of Rs.40/- | K215: 40.00 | L215: 24.39% | M215: Successful | N215: 2019-03-15
A216: 122 | B216: 2018-10-26 | D216: RITES | E216: Accu | F216: 240.00 | H216: 297 | I216: 297.00 | J216: Target Achieved | K216: 57.00 | L216: 23.75% | M216: Successful | N216: 2018-11-13
A217: 123 | B217: 2018-12-05 | D217: BRIGADE | E217: Accu | F217: 202.50 | H217: 255 | I217: 252.00 | J217: Target Achieved | K217: 52.50 | L217: 25.93% | M217: Successful | N217: 2019-03-18
A218: 124 | B218: 2018-12-31 | D218: JKCEMENT | E218: Accu | F218: 710.00 | H218: 866 | I218: 866.00 | J218: Target Achieved | K218: 156.00 | L218: 21.97% | M218: Successful | N218: 2019-03-29
A219: 125 | B219: 2019-02-26 | D219: MARICO | E219: Accu | F219: 340.00 | H219: 398.5 | I219: 411.00 | J219: Profit of Rs.58.50/- | K219: 58.50 | L219: 17.21% | M219: Successful | N219: 2019-10-22
A220: 126 | B220: 2019-04-04 | D220: ITDCEM | E220: Accu | F220: 130.00 | H220: 65 | I220: 158.00 | J220: Loss of Rs.65 /- | K220: -65.00 | L220: -50.00% | M220: Unsuccessful | N220: 2019-09-18
A221: 127 | B221: 2017-10-09 | D221: RECLTD | E221: Accu | F221: 141.5 | H221: 183.50 | I221: 210.00 | J221: Part Profit of Rs.42/- | K221: 42.00 | L221: 30% | M221: Successful | N221: 2017-11-03 | R221: V
A222: 128 | B222: 2017-12-05 | D222: ALLCARGO | E222: Accu | F222: 172.00 | H222: 155.25 | I222: 230.00 | J222: Loss of Rs.16.75/- | K222: =H222-F222 -> -16.75 | L222: =K222/F222 -> -9.74% | M222: Unsuccessful | N222: 2019-11-18 | R222: V
A223: 129 | B223: 2018-10-25 | D223: GODREJCP | E223: Accu | F223: 707.5 | H223: 850.00 | I223: 890.00 | J223: Part Profit of Rs.142.5/- | K223: 142.50 | L223: 20% | M223: Successful | N223: 2018-12-19 | R223: V
A224: 130 | B224: 2017-05-22 | D224: GREAVESCOT | E224: Accu | F224: 127.6 | H224: 138.00 | I224: 190.00 | J224: Profit of Rs.10.40 | K224: 10.40 | L224: 8% | M224: Successful | N224: 2019-11-05 | R224: K
A225: 131 | B225: 2018-02-27 | D225: MOLDTKPAC | E225: Accu | F225: 317.00 | I225: 398.00 | M225: Open | R225: K
A226: 132 | B226: 2018-03-05 | D226: LICHSGFIN | E226: Accu | F226: =510-14.4 -> 495.60 | H226: 350 | I226: 672.00 | J226: Loss of Rs.145.60/- | K226: =H226-F226 -> -145.60 | L226: =K226/F226 -> -29.38% | M226: Unsuccessful | N226: 2020-02-26 | R226: K
A227: 133 | B227: 2018-05-17 | D227: PHILIPCARB | E227: Accu | F227: 230.30 | I227: 348.00 | M227: Open | R227: V
A228: 134 | B228: 2018-06-07 | D228: KEC | E228: Accu | F228: =342.5-5.1 -> 337.40 | I228: 439.00 | M228: Open | R228: K
A229: 135 | B229: 2018-07-04 | D229: ASHOKLEY | E229: Accu | F229: =127.5-5.53 -> 121.97 | I229: 170.00 | M229: Open | R229: K
A230: 136 | B230: 2018-07-13 | D230: FCONSUMER | E230: Accu | F230: 46.50 | H230: 17 | I230: 59.00 | J230: Loss of Rs.29.50/- | K230: =H230-F230 -> -29.50 | L230: =K230/F230 -> -63.44% | M230: Unsuccessful | N230: 2020-02-26 | R230: V
A231: 137 | B231: 2018-10-23 | D231: JKPAPER | E231: Accu | F231: 156.50 | I231: 191.00 | M231: Open | R231: V
A232: 138 | B232: 2018-12-05 | D232: CCL | E232: Accu | F232: 259.50 | I232: 321.00 | M232: Open | R232: K
A233: 139 | B233: 2018-12-05 | D233: VARROC | E233: Accu | F233: 715.00 | H233: 445 | I233: 840.00 | J233: Loss of Rs.270/- | K233: =H233-F233 -> -270.00 | L233: =K233/F233 -> -37.76% | M233: Unsuccessful | N233: 2019-12-01 | R233: V
A234: 140 | B234: 2019-01-04 | D234: MGL | E234: Accu | F234: 895.00 | H234: 1165 | I234: 1185.00 | J234: Profit of Rs.270/- | K234: 270.00 | L234: 30.17% | M234: Successful | N234: 2020-01-17 | R234: V
A235: 141 | B235: 2019-04-04 | D235: COCHINSHIP | E235: Accu | F235: 387.00 | H235: 490 | I235: 490.00 | J235: Target Achieved | K235: 103.00 | L235: 26.61% | M235: Successful | N235: 2020-01-20 | R235: V
... 12 more rows

Sheet Sheet2 (hidden)
A1: SYMBOL | B1: SERIES | C1: OPEN | D1: HIGH | E1: LOW | F1: CLOSE | G1: LAST | H1: PREVCLOSE | I1: TOTTRDQTY | J1: TOTTRDVAL | K1: TIMESTAMP | L1: TOTALTRADES | M1: ISIN | N1: ISIN
A2: 20MICRONS | B2: EQ | C2: 31.2 | D2: 32.25 | E2: 30.85 | F2: 31.1 | G2: 31.1 | H2: 31.15 | I2: 13324 | J2: 417402.95 | K2: 2020-03-03 | L2: 180 | M2: INE144J01027
A3: 21STCENMGM | B3: EQ | C3: 11.9 | D3: 12.3 | E3: 11.9 | F3: 12.3 | G3: 12.3 | H3: 12.1 | I3: 64 | J3: 781.6 | K3: 2020-03-03 | L3: 5 | M3: INE253B01015
A4: 3IINFOTECH | B4: EQ | C4: 1.95 | D4: 1.95 | E4: 1.8 | F4: 1.95 | G4: 1.95 | H4: 1.9 | I4: 1984345 | J4: 3734318.3 | K4: 2020-03-03 | L4: 880 | M4: INE748C01020
A5: 3MINDIA | B5: EQ | C5: 20470 | D5: 20995 | E5: 20312 | F5: 20632.95 | G5: 20636 | H5: 20131.65 | I5: 7108 | J5: 146876184.1 | K5: 2020-03-03 | L5: 2360 | M5: INE470A01017
A6: 3PLAND | B6: EQ | C6: 4.5 | D6: 4.5 | E6: 4.5 | F6: 4.5 | G6: 4.5 | H6: 4.5 | I6: 110 | J6: 495 | K6: 2020-03-03 | L6: 3 | M6: INE105C01023
A7: 5PAISA | B7: EQ | C7: 165 | D7: 165 | E7: 157.1 | F7: 158.35 | G7: 160 | H7: 162.1 | I7: 9134 | J7: 1462268.4 | K7: 2020-03-03 | L7: 306 | M7: INE618L01018
A8: 63MOONS | B8: EQ | C8: 88.45 | D8: 91.25 | E8: 88 | F8: 90.4 | G8: 90.15 | H8: 87.95 | I8: 67249 | J8: 6018122.45 | K8: 2020-03-03 | L8: 1648 | M8: INE111B01023
A9: A2ZINFRA | B9: EQ | C9: 4.6 | D9: 4.6 | E9: 3.55 | F9: 4 | G9: 4 | H9: 4.4 | I9: 1078630 | J9: 4233487.6 | K9: 2020-03-03 | L9: 1012 | M9: INE619I01012
A10: AARTIDRUGS | B10: EQ | C10: 680 | D10: 687 | E10: 641.1 | F10: 651 | G10: 655.9 | H10: 668.3 | I10: 73215 | J10: 48265467.15 | K10: 2020-03-03 | L10: 4277 | M10: INE767A01016
A11: AARTIIND | B11: EQ | C11: 995 | D11: 995 | E11: 966.3 | F11: 983.45 | G11: 982.5 | H11: 971 | I11: 225422 | J11: 221607352.8 | K11: 2020-03-03 | L11: 18360 | M11: INE769A01020
A12: AARVEEDEN | B12: EQ | C12: 11.6 | D12: 12.6 | E12: 11.6 | F12: 12.55 | G12: 12.55 | H12: 11.8 | I12: 3543 | J12: 42961.4 | K12: 2020-03-03 | L12: 42 | M12: INE273D01019
A13: AAVAS | B13: EQ | C13: 1858.3 | D13: 1945 | E13: 1858.3 | F13: 1918.2 | G13: 1920 | H13: 1858.4 | I13: 31876 | J13: 60504436.3 | K13: 2020-03-03 | L13: 3611 | M13: INE216P01012
A14: ABAN | B14: EQ | C14: 21.95 | D14: 21.95 | E14: 19.9 | F14: 20.1 | G14: 20 | H14: 20.15 | I14: 54743 | J14: 1105917.75 | K14: 2020-03-03 | L14: 660 | M14: INE421A01028
A15: ABB | B15: EQ | C15: 1199 | D15: 1204.85 | E15: 1154 | F15: 1161 | G15: 1162 | H15: 1190.2 | I15: 45482 | J15: 53034020.8 | K15: 2020-03-03 | L15: 3437 | M15: INE117A01022
A16: ABBOTINDIA | B16: EQ | C16: 15407 | D16: 15780 | E16: 15301 | F16: 15427.65 | G16: 15440 | H16: 15393.6 | I16: 18862 | J16: 292401477.4 | K16: 2020-03-03 | L16: 4187 | M16: INE358A01014
A17: ABCAPITAL | B17: EQ | C17: 77.25 | D17: 78.85 | E17: 76.8 | F17: 77.85 | G17: 78 | H17: 76.7 | I17: 1304622 | J17: 101290512.9 | K17: 2020-03-03 | L17: 14283 | M17: INE674K01013
A18: ABFRL | B18: EQ | C18: 243.9 | D18: 260 | E18: 239 | F18: 254.25 | G18: 259.05 | H18: 238 | I18: 1112115 | J18: 280628235.3 | K18: 2020-03-03 | L18: 34062 | M18: INE647O01011
A19: ABSLBANETF | B19: EQ | C19: 290 | D19: 290 | E19: 286.58 | F19: 289.87 | G19: 289.87 | H19: 292.49 | I19: 4 | J19: 1155.15 | K19: 2020-03-03 | L19: 4 | M19: INF209KB1O58
A20: ABSLNN50ET | B20: EQ | C20: 272.42 | D20: 272.42 | E20: 271.67 | F20: 271.67 | G20: 271.67 | H20: 270 | I20: 10 | J20: 2722.7 | K20: 2020-03-03 | L20: 4 | M20: INF209KB1B87
A21: ACC | B21: EQ | C21: 1288 | D21: 1342 | E21: 1288 | F21: 1335.25 | G21: 1334.6 | H21: 1284.2 | I21: 701334 | J21: 923628578.1 | K21: 2020-03-03 | L21: 28590 | M21: INE012A01025
A22: ACCELYA | B22: EQ | C22: 1039.05 | D22: 1055 | E22: 1016.1 | F22: 1045.3 | G22: 1053.25 | H22: 1039.05 | I22: 2577 | J22: 2667642.65 | K22: 2020-03-03 | L22: 170 | M22: INE793A01012
A23: ACE | B23: EQ | C23: 69 | D23: 70 | E23: 67.8 | F23: 68.2 | G23: 68.35 | H23: 68.1 | I23: 63356 | J23: 4346740.4 | K23: 2020-03-03 | L23: 1341 | M23: INE731H01025
A24: ADANIENT | B24: EQ | C24: 221 | D24: 228.65 | E24: 219.25 | F24: 225.75 | G24: 224.95 | H24: 218.6 | I24: 2992170 | J24: 669357788.5 | K24: 2020-03-03 | L24: 17147 | M24: INE423A01024
A25: ADANIGAS | B25: EQ | C25: 136.1 | D25: 139 | E25: 130.8 | F25: 134.25 | G25: 134.3 | H25: 133.7 | I25: 3640772 | J25: 490520418.1 | K25: 2020-03-03 | L25: 31712 | M25: INE399L01023
A26: ADANIGREEN | B26: EQ | C26: 162.9 | D26: 163 | E26: 157 | F26: 159.5 | G26: 159.2 | H26: 156.05 | I26: 534459 | J26: 85015692.2 | K26: 2020-03-03 | L26: 7648 | M26: INE364U01010
A27: ADANIPORTS | B27: EQ | C27: 344 | D27: 349.05 | E27: 342 | F27: 347.3 | G27: 347.9 | H27: 340.65 | I27: 3671071 | J27: 1270666107 | K27: 2020-03-03 | L27: 63872 | M27: INE742F01042
A28: ADANIPOWER | B28: EQ | C28: 48.05 | D28: 49.65 | E28: 47.75 | F28: 48.9 | G28: 48.6 | H28: 47.05 | I28: 7774434 | J28: 378023529.1 | K28: 2020-03-03 | L28: 13967 | M28: INE814H01011
A29: ADANITRANS | B29: EQ | C29: 262.5 | D29: 262.5 | E29: 252.8 | F29: 256.4 | G29: 257.5 | H29: 254.4 | I29: 191427 | J29: 49051660.1 | K29: 2020-03-03 | L29: 4057 | M29: INE931S01010
A30: ADFFOODS | B30: EQ | C30: 264 | D30: 264 | E30: 252.95 | F30: 257.3 | G30: 256 | H30: 259 | I30: 62645 | J30: 16177437.85 | K30: 2020-03-03 | L30: 945 | M30: INE982B01019
A31: ADHUNIKIND | B31: EQ | C31: 31.05 | D31: 32.4 | E31: 30.75 | F31: 31.35 | G31: 30.75 | H31: 32.35 | I31: 8921 | J31: 276069.85 | K31: 2020-03-03 | L31: 80 | M31: INE452L01012
A32: ADLABS | B32: BE | C32: 3.8 | D32: 3.85 | E32: 3.6 | F32: 3.65 | G32: 3.65 | H32: 3.75 | I32: 53554 | J32: 196141.9 | K32: 2020-03-03 | L32: 110 | M32: INE172N01012
A33: ADORWELD | B33: EQ | C33: 297.05 | D33: 301.95 | E33: 294.7 | F33: 295.75 | G33: 297.9 | H33: 293.45 | I33: 1616 | J33: 478700 | K33: 2020-03-03 | L33: 125 | M33: INE045A01017
A34: ADROITINFO | B34: BE | C34: 6.3 | D34: 6.3 | E34: 6.3 | F34: 6.3 | G34: 6.3 | H34: 6.6 | I34: 1001 | J34: 6306.3 | K34: 2020-03-03 | L34: 2 | M34: INE737B01033
A35: ADSL | B35: BE | C35: 19.45 | D35: 19.45 | E35: 17.8 | F35: 17.95 | G35: 18 | H35: 18.6 | I35: 19786 | J35: 356666.15 | K35: 2020-03-03 | L35: 86 | M35: INE102I01027
A36: ADVANIHOTR | B36: EQ | C36: 52.1 | D36: 52.55 | E36: 51.35 | F36: 51.6 | G36: 51.6 | H36: 51.45 | I36: 6671 | J36: 344429.35 | K36: 2020-03-03 | L36: 71 | M36: INE199C01026
A37: ADVENZYMES | B37: EQ | C37: 148.2 | D37: 153.8 | E37: 148.2 | F37: 152.85 | G37: 153.7 | H37: 147.05 | I37: 52968 | J37: 7990627.3 | K37: 2020-03-03 | L37: 3964 | M37: INE837H01020
A38: AEGISCHEM | B38: EQ | C38: 217 | D38: 222.3 | E38: 207.05 | F38: 214.95 | G38: 214.6 | H38: 214.55 | I38: 302441 | J38: 64650409.65 | K38: 2020-03-03 | L38: 15068 | M38: INE208C01025
A39: AFFLE | B39: EQ | C39: 1858 | D39: 1899 | E39: 1781.2 | F39: 1817.15 | G39: 1818 | H39: 1802.25 | I39: 133522 | J39: 245500874.9 | K39: 2020-03-03 | L39: 12587 | M39: INE00WC01019
A40: AGARIND | B40: EQ | C40: 70.85 | D40: 75.75 | E40: 70.2 | F40: 74.35 | G40: 75 | H40: 70.8 | I40: 2246 | J40: 165287.45 | K40: 2020-03-03 | L40: 89 | M40: INE204E01012
A41: AGCNET | B41: EQ | C41: 415 | D41: 422.95 | E41: 390.95 | F41: 390.95 | G41: 390.95 | H41: 411.5 | I41: 17393 | J41: 6902232.75 | K41: 2020-03-03 | L41: 550 | M41: INE676A01019
A42: AGRITECH | B42: EQ | C42: 40.15 | D42: 40.45 | E42: 37.25 | F42: 38.5 | G42: 38.9 | H42: 39 | I42: 9870 | J42: 382767.1 | K42: 2020-03-03 | L42: 167 | M42: INE449G01018
A43: AGROPHOS | B43: EQ | C43: 13.5 | D43: 13.9 | E43: 13.25 | F43: 13.35 | G43: 13.6 | H43: 13.9 | I43: 65229 | J43: 872514.3 | K43: 2020-03-03 | L43: 505 | M43: INE740V01019
A44: AHLEAST | B44: EQ | C44: 222 | D44: 222 | E44: 183.05 | F44: 186.45 | G44: 186.45 | H44: 190.05 | I44: 1954 | J44: 371271.6 | K44: 2020-03-03 | L44: 61 | M44: INE926K01017
A45: AHLUCONT | B45: EQ | C45: 346.85 | D45: 357 | E45: 333.15 | F45: 337.55 | G45: 335 | H45: 350.05 | I45: 281308 | J45: 98309859.55 | K45: 2020-03-03 | L45: 2698 | M45: INE758C01029
A46: AHLWEST | B46: EQ | C46: 319.95 | D46: 319.95 | E46: 299.9 | F46: 310.55 | G46: 310 | H46: 300.15 | I46: 5524 | J46: 1677606.35 | K46: 2020-03-03 | L46: 112 | M46: INE915K01010
A47: AIAENG | B47: EQ | C47: 1737.05 | D47: 1850 | E47: 1731 | F47: 1790.8 | G47: 1790 | H47: 1737.05 | I47: 91970 | J47: 164421525.3 | K47: 2020-03-03 | L47: 11571 | M47: INE212H01026
A48: AIONJSW | B48: EQ | C48: 12.5 | D48: 13.2 | E48: 12.5 | F48: 12.95 | G48: 12.95 | H48: 12.8 | I48: 74024 | J48: 958733.7 | K48: 2020-03-03 | L48: 181 | M48: INE743C01021
A49: AIRAN | B49: EQ | C49: 12.15 | D49: 12.5 | E49: 11.85 | F49: 12 | G49: 12 | H49: 11.8 | I49: 10718 | J49: 128116.9 | K49: 2020-03-03 | L49: 29 | M49: INE645W01026
A50: AJANTPHARM | B50: EQ | C50: 1420 | D50: 1531 | E50: 1395.3 | F50: 1477.5 | G50: 1500 | H50: 1394.7 | I50: 189534 | J50: 273306983.8 | K50: 2020-03-03 | L50: 15788 | M50: INE031B01049
A51: AJMERA | B51: EQ | C51: 97.4 | D51: 99.3 | E51: 95.55 | F51: 96.3 | G51: 96.25 | H51: 95.95 | I51: 18744 | J51: 1812096.6 | K51: 2020-03-03 | L51: 631 | M51: INE298G01027
A52: AKASH | B52: BE | C52: 96 | D52: 100 | E52: 95.9 | F52: 95.9 | G52: 95.9 | H52: 96 | I52: 221 | J52: 21613.9 | K52: 2020-03-03 | L52: 6 | M52: INE737W01013
A53: AKSHARCHEM | B53: EQ | C53: 270 | D53: 275 | E53: 251.4 | F53: 256.45 | G53: 256 | H53: 261.6 | I53: 9234 | J53: 2395463 | K53: 2020-03-03 | L53: 384 | M53: INE542B01011
A54: AKSHOPTFBR | B54: EQ | C54: 5.75 | D54: 5.85 | E54: 5.55 | F54: 5.55 | G54: 5.55 | H54: 5.8 | I54: 163700 | J54: 917068.45 | K54: 2020-03-03 | L54: 308 | M54: INE523B01011
A55: AKZOINDIA | B55: EQ | C55: 2405 | D55: 2458.95 | E55: 2355 | F55: 2402 | G55: 2426 | H55: 2403.85 | I55: 21149 | J55: 50758918.35 | K55: 2020-03-03 | L55: 3506 | M55: INE133A01011
A56: ALANKIT | B56: EQ | C56: 15.05 | D56: 15.4 | E56: 14.15 | F56: 14.45 | G56: 14.15 | H56: 15 | I56: 166491 | J56: 2443661.85 | K56: 2020-03-03 | L56: 462 | M56: INE914E01040
A57: ALBERTDAVD | B57: EQ | C57: 404.6 | D57: 416.7 | E57: 398.1 | F57: 411.35 | G57: 410 | H57: 400.95 | I57: 9250 | J57: 3759953.5 | K57: 2020-03-03 | L57: 488 | M57: INE155C01010
A58: ALBK | B58: EQ | C58: 11.35 | D58: 11.55 | E58: 11.2 | F58: 11.45 | G58: 11.5 | H58: 11.35 | I58: 1057058 | J58: 12018469.35 | K58: 2020-03-03 | L58: 2393 | M58: INE428A01015
A59: ALCHEM | B59: BE | C59: 0.75 | D59: 0.8 | E59: 0.7 | F59: 0.8 | G59: 0.8 | H59: 0.75 | I59: 5872 | J59: 4603.95 | K59: 2020-03-03 | L59: 12 | M59: INE964B01033
A60: ALEMBICLTD | B60: EQ | C60: 47.45 | D60: 48.4 | E60: 46.8 | F60: 47.95 | G60: 48.25 | H60: 46.5 | I60: 122074 | J60: 5824459.95 | K60: 2020-03-03 | L60: 1408 | M60: INE426A01027
A61: ALICON | B61: EQ | C61: 291.8 | D61: 299.6 | E61: 281 | F61: 289.6 | G61: 290.9 | H61: 289.1 | I61: 2448 | J61: 703789.7 | K61: 2020-03-03 | L61: 112 | M61: INE062D01024
A62: ALKALI | B62: EQ | C62: 44 | D62: 44.6 | E62: 42.2 | F62: 43.25 | G62: 44 | H62: 43 | I62: 5398 | J62: 234100.45 | K62: 2020-03-03 | L62: 143 | M62: INE773I01017
A63: ALKEM | B63: EQ | C63: 2629 | D63: 2670 | E63: 2610 | F63: 2642.35 | G63: 2650 | H63: 2600.2 | I63: 55170 | J63: 145610097 | K63: 2020-03-03 | L63: 9860 | M63: INE540L01014
A64: ALKYLAMINE | B64: EQ | C64: 1530 | D64: 1550 | E64: 1475.65 | F64: 1525.95 | G64: 1545 | H64: 1519.1 | I64: 44761 | J64: 68232746.35 | K64: 2020-03-03 | L64: 4271 | M64: INE150B01021
A65: ALLCARGO | B65: EQ | C65: 109 | D65: 111.9 | E65: 107.8 | F65: 109.9 | G65: 110.6 | H65: 109.05 | I65: 205304 | J65: 22522090.9 | K65: 2020-03-03 | L65: 2094 | M65: INE418H01029
A66: ALLSEC | B66: EQ | C66: 255.2 | D66: 259.9 | E66: 251 | F66: 256.25 | G66: 255.15 | H66: 252.9 | I66: 1335 | J66: 336336.55 | K66: 2020-03-03 | L66: 49 | M66: INE835G01018
A67: ALMONDZ | B67: EQ | C67: 16.5 | D67: 16.7 | E67: 16.25 | F67: 16.7 | G67: 16.7 | H67: 16.05 | I67: 887 | J67: 14543.25 | K67: 2020-03-03 | L67: 4 | M67: INE326B01027
A68: ALOKINDS | B68: BE | C68: 11.35 | D68: 11.35 | E68: 11.35 | F68: 11.35 | G68: 11.35 | H68: 11.9 | I68: 187926 | J68: 2132960.1 | K68: 2020-03-03 | L68: 526 | M68: INE270A01029
A69: ALPA | B69: EQ | C69: 16.5 | D69: 16.9 | E69: 15.65 | F69: 15.85 | G69: 16.1 | H69: 16.35 | I69: 5069 | J69: 82798.55 | K69: 2020-03-03 | L69: 64 | M69: INE385I01010
A70: ALPHAGEO | B70: EQ | C70: 185 | D70: 202.7 | E70: 185 | F70: 196.2 | G70: 197 | H70: 195.55 | I70: 42194 | J70: 8224278.35 | K70: 2020-03-03 | L70: 1718 | M70: INE137C01018
A71: ALPSINDUS | B71: BE | C71: 0.8 | D71: 0.8 | E71: 0.8 | F71: 0.8 | G71: 0.8 | H71: 0.8 | I71: 150 | J71: 120 | K71: 2020-03-03 | L71: 1 | M71: INE093B01015
A72: AMARAJABAT | B72: EQ | C72: 627.5 | D72: 648.9 | E72: 623.7 | F72: 644.75 | G72: 644.35 | H72: 624.45 | I72: 827545 | J72: 525137450.9 | K72: 2020-03-03 | L72: 17859 | M72: INE885A01032
A73: AMBER | B73: EQ | C73: 1380 | D73: 1430 | E73: 1375.15 | F73: 1418.85 | G73: 1428.3 | H73: 1375.2 | I73: 32195 | J73: 45118153.05 | K73: 2020-03-03 | L73: 3226 | M73: INE371P01015
A74: AMBIKCO | B74: EQ | C74: 771.7 | D74: 800.95 | E74: 753.8 | F74: 790.2 | G74: 796 | H74: 771.65 | I74: 5493 | J74: 4262926 | K74: 2020-03-03 | L74: 932 | M74: INE540G01014
A75: AMBUJACEM | B75: EQ | C75: 203.9 | D75: 212.2 | E75: 203.65 | F75: 211.15 | G75: 211.35 | H75: 202.25 | I75: 4549626 | J75: 949719900.5 | K75: 2020-03-03 | L75: 98294 | M75: INE079A01024
A76: AMDIND | B76: EQ | C76: 14.2 | D76: 15.9 | E76: 14.2 | F76: 15 | G76: 15 | H76: 15.3 | I76: 1294 | J76: 19304.6 | K76: 2020-03-03 | L76: 34 | M76: INE005I01014
A77: AMJLAND | B77: EQ | C77: 18.45 | D77: 19.3 | E77: 18.45 | F77: 19 | G77: 19.1 | H77: 18.75 | I77: 1704 | J77: 32138.9 | K77: 2020-03-03 | L77: 22 | M77: INE606A01024
A78: AMRUTANJAN | B78: EQ | C78: 464.7 | D78: 495 | E78: 464.7 | F78: 470.5 | G78: 469.8 | H78: 451.2 | I78: 146393 | J78: 69830874.1 | K78: 2020-03-03 | L78: 5382 | M78: INE098F01031
A79: ANANTRAJ | B79: EQ | C79: 28.2 | D79: 29.6 | E79: 26.85 | F79: 28 | G79: 29.6 | H79: 27.2 | I79: 167174 | J79: 4612822.2 | K79: 2020-03-03 | L79: 2679 | M79: INE242C01024
A80: ANDHRABANK | B80: EQ | C80: 13.5 | D80: 13.65 | E80: 13 | F80: 13.15 | G80: 13.25 | H80: 13.35 | I80: 609611 | J80: 8110238.8 | K80: 2020-03-03 | L80: 1998 | M80: INE434A01013
A81: ANDHRACEMT | B81: EQ | C81: 1.85 | D81: 2 | E81: 1.85 | F81: 1.85 | G81: 1.85 | H81: 1.9 | I81: 33623 | J81: 64227.15 | K81: 2020-03-03 | L81: 73 | M81: INE666E01012
A82: ANDHRSUGAR | B82: EQ | C82: 252.8 | D82: 258 | E82: 251.25 | F82: 254.05 | G82: 253.6 | H82: 256.6 | I82: 19979 | J82: 5087741.95 | K82: 2020-03-03 | L82: 872 | M82: INE715B01013
A83: ANDPAPER | B83: EQ | C83: 250 | D83: 255.1 | E83: 235.05 | F83: 240.1 | G83: 244.5 | H83: 249.5 | I83: 8104 | J83: 1947835.7 | K83: 2020-03-03 | L83: 340 | M83: INE435A01028
A84: ANIKINDS | B84: BE | C84: 7.1 | D84: 7.7 | E84: 7.1 | F84: 7.35 | G84: 7.35 | H84: 7.45 | I84: 1388 | J84: 10189.85 | K84: 2020-03-03 | L84: 11 | M84: INE087B01017
A85: ANKITMETAL | B85: BE | C85: 0.4 | D85: 0.5 | E85: 0.4 | F85: 0.5 | G85: 0.5 | H85: 0.45 | I85: 36719 | J85: 17201 | K85: 2020-03-03 | L85: 23 | M85: INE106I01010
A86: ANSALAPI | B86: EQ | C86: 5.55 | D86: 5.9 | E86: 5.45 | F86: 5.75 | G86: 5.65 | H86: 5.7 | I86: 78057 | J86: 435065.8 | K86: 2020-03-03 | L86: 140 | M86: INE436A01026
A87: ANSALHSG | B87: BE | C87: 4.35 | D87: 4.35 | E87: 4.15 | F87: 4.25 | G87: 4.15 | H87: 4.35 | I87: 8943 | J87: 37401.05 | K87: 2020-03-03 | L87: 30 | M87: INE880B01015
A88: ANTGRAPHIC | B88: BE | C88: 0.6 | D88: 0.65 | E88: 0.6 | F88: 0.65 | G88: 0.65 | H88: 0.65 | I88: 32166 | J88: 19787.05 | K88: 2020-03-03 | L88: 9 | M88: INE414B01021
A89: ANUP | B89: EQ | C89: 505.8 | D89: 535 | E89: 504.95 | F89: 527.3 | G89: 528 | H89: 505.4 | I89: 12579 | J89: 6563819.3 | K89: 2020-03-03 | L89: 759 | M89: INE294Z01018
A90: APARINDS | B90: EQ | C90: 380 | D90: 380.5 | E90: 375 | F90: 380.1 | G90: 380.5 | H90: 374.35 | I90: 16824 | J90: 6345822.95 | K90: 2020-03-03 | L90: 1287 | M90: INE372A01015
A91: APCL | B91: EQ | C91: 144.4 | D91: 144.4 | E91: 135.3 | F91: 137.25 | G91: 135.6 | H91: 138.75 | I91: 1665 | J91: 229403.4 | K91: 2020-03-03 | L91: 96 | M91: INE071F01012
A92: APCOTEXIND | B92: EQ | C92: 106.55 | D92: 108 | E92: 103.65 | F92: 104.45 | G92: 105.15 | H92: 105.95 | I92: 26367 | J92: 2775194.75 | K92: 2020-03-03 | L92: 565 | M92: INE116A01032
A93: APEX | B93: EQ | C93: 270 | D93: 274.05 | E93: 254.25 | F93: 262.15 | G93: 262.3 | H93: 267.2 | I93: 228635 | J93: 59925586.7 | K93: 2020-03-03 | L93: 6217 | M93: INE346W01013
A94: APLAPOLLO | B94: EQ | C94: 1821.1 | D94: 1930 | E94: 1819.85 | F94: 1907.5 | G94: 1927 | H94: 1812.1 | I94: 70258 | J94: 132024499.5 | K94: 2020-03-03 | L94: 5157 | M94: INE702C01019
A95: APLLTD | B95: EQ | C95: 656.1 | D95: 676.9 | E95: 640 | F95: 661.2 | G95: 669.9 | H95: 656.25 | I95: 191933 | J95: 126507863.7 | K95: 2020-03-03 | L95: 19892 | M95: INE901L01018
A96: APOLLO | B96: EQ | C96: 71.2 | D96: 73.6 | E96: 69.45 | F96: 70.8 | G96: 72.25 | H96: 71.5 | I96: 41415 | J96: 2949317.85 | K96: 2020-03-03 | L96: 1035 | M96: INE713T01010
A97: APOLLOHOSP | B97: EQ | C97: 1738.9 | D97: 1753.2 | E97: 1695 | F97: 1725.7 | G97: 1726.8 | H97: 1728.55 | I97: 672514 | J97: 1156180899 | K97: 2020-03-03 | L97: 33264 | M97: INE437A01024
A98: APOLLOPIPE | B98: EQ | C98: 440 | D98: 440 | E98: 410.25 | F98: 413.6 | G98: 411 | H98: 418.1 | I98: 6809 | J98: 2863712.8 | K98: 2020-03-03 | L98: 387 | M98: INE126J01016
A99: APOLLOTYRE | B99: EQ | C99: 138 | D99: 142.9 | E99: 136.55 | F99: 141.75 | G99: 141.3 | H99: 136.3 | I99: 4006039 | J99: 559483863.5 | K99: 2020-03-03 | L99: 31272 | M99: INE438A01022
A100: APOLSINHOT | B100: EQ | C100: 530 | D100: 530 | E100: 505.15 | F100: 509.55 | G100: 510 | H100: 503.55 | I100: 1079 | J100: 550650.85 | K100: 2020-03-03 | L100: 150 | M100: INE451F01024
A101: APTECHT | B101: EQ | C101: 117.1 | D101: 119.25 | E101: 113.75 | F101: 116.85 | G101: 116.8 | H101: 116.25 | I101: 96801 | J101: 11314555.75 | K101: 2020-03-03 | L101: 2554 | M101: INE266F01018
A102: ARCHIDPLY | B102: EQ | C102: 20 | D102: 21.45 | E102: 19.7 | F102: 20.8 | G102: 21 | H102: 19.65 | I102: 4760 | J102: 96805.95 | K102: 2020-03-03 | L102: 53 | M102: INE877I01016
A103: ARCHIES | B103: EQ | C103: 13.3 | D103: 13.9 | E103: 13.15 | F103: 13.5 | G103: 13.75 | H103: 13.35 | I103: 23563 | J103: 318740.15 | K103: 2020-03-03 | L103: 108 | M103: INE731A01020
A104: ARCOTECH | B104: BE | C104: 1.25 | D104: 1.25 | E104: 1.2 | F104: 1.2 | G104: 1.2 | H104: 1.25 | I104: 12988 | J104: 15885.75 | K104: 2020-03-03 | L104: 17 | M104: INE574I01035
A105: ARENTERP | B105: EQ | C105: 17.95 | D105: 18.8 | E105: 17.1 | F105: 17.95 | G105: 17.9 | H105: 17.95 | I105: 25661 | J105: 469382.2 | K105: 2020-03-03 | L105: 119 | M105: INE610C01014
A106: ARIES | B106: EQ | C106: 53.85 | D106: 55 | E106: 53.4 | F106: 54.65 | G106: 55 | H106: 53 | I106: 6126 | J106: 332255.15 | K106: 2020-03-03 | L106: 177 | M106: INE298I01015
A107: ARIHANT | B107: EQ | C107: 18.5 | D107: 18.5 | E107: 18.5 | F107: 18.5 | G107: 18.5 | H107: 18.5 | I107: 55 | J107: 1017.5 | K107: 2020-03-03 | L107: 1 | M107: INE413D01011
A108: ARIHANTSUP | B108: EQ | C108: 24.95 | D108: 24.95 | E108: 24.95 | F108: 24.95 | G108: 24.95 | H108: 25.3 | I108: 100 | J108: 2495 | K108: 2020-03-03 | L108: 1 | M108: INE643K01018
A109: ARMANFIN | B109: EQ | C109: 964.95 | D109: 964.95 | E109: 901 | F109: 914.6 | G109: 913 | H109: 912.4 | I109: 20513 | J109: 18797880.15 | K109: 2020-03-03 | L109: 1624 | M109: INE109C01017
A110: AROGRANITE | B110: EQ | C110: 29 | D110: 31 | E110: 28.25 | F110: 28.95 | G110: 29 | H110: 28.45 | I110: 3785 | J110: 108729.6 | K110: 2020-03-03 | L110: 69 | M110: INE210C01013
A111: ARROWGREEN | B111: BE | C111: 37 | D111: 39 | E111: 37 | F111: 37.55 | G111: 38 | H111: 38.65 | I111: 5062 | J111: 190258.5 | K111: 2020-03-03 | L111: 59 | M111: INE570D01018
A112: ARSHIYA | B112: EQ | C112: 14.05 | D112: 15.85 | E112: 13.85 | F112: 14 | G112: 14.15 | H112: 15.5 | I112: 141341 | J112: 2034419.8 | K112: 2020-03-03 | L112: 424 | M112: INE968D01022
A113: ARSSINFRA | B113: EQ | C113: 13.25 | D113: 16 | E113: 13.25 | F113: 15.25 | G113: 15.6 | H113: 14.65 | I113: 33169 | J113: 513962.1 | K113: 2020-03-03 | L113: 163 | M113: INE267I01010
A114: ARTEMISMED | B114: EQ | C114: 220 | D114: 220 | E114: 200.05 | F114: 208.65 | G114: 212 | H114: 200.2 | I114: 1428 | J114: 288745 | K114: 2020-03-03 | L114: 26 | M114: INE025R01013
A115: ARVIND | B115: EQ | C115: 38.6 | D115: 39 | E115: 37.6 | F115: 37.9 | G115: 37.8 | H115: 38.6 | I115: 541278 | J115: 20659651.3 | K115: 2020-03-03 | L115: 4389 | M115: INE034A01011
A116: ARVINDFASN | B116: EQ | C116: 358.75 | D116: 358.75 | E116: 349 | F116: 354.3 | G116: 352.55 | H116: 348.85 | I116: 11130 | J116: 3925392.05 | K116: 2020-03-03 | L116: 551 | M116: INE955V01021
A117: ARVSMART | B117: EQ | C117: 86 | D117: 86 | E117: 82.7 | F117: 84.85 | G117: 84.95 | H117: 84.7 | I117: 26191 | J117: 2204459.6 | K117: 2020-03-03 | L117: 429 | M117: INE034S01021
A118: ASAHIINDIA | B118: EQ | C118: 236.95 | D118: 245 | E118: 229.15 | F118: 243 | G118: 242.25 | H118: 235.95 | I118: 26991 | J118: 6410108.95 | K118: 2020-03-03 | L118: 1299 | M118: INE439A01020
A119: ASAHISONG | B119: EQ | C119: 132.05 | D119: 133.8 | E119: 125.5 | F119: 130.45 | G119: 129.15 | H119: 131.25 | I119: 7531 | J119: 969815.2 | K119: 2020-03-03 | L119: 320 | M119: INE228I01012
A120: ASAL | B120: EQ | C120: 18.65 | D120: 18.75 | E120: 17.6 | F120: 18.25 | G120: 18.4 | H120: 18.5 | I120: 11537 | J120: 210106.35 | K120: 2020-03-03 | L120: 220 | M120: INE900C01027
A121: ASALCBR | B121: EQ | C121: 215.1 | D121: 229.95 | E121: 199.8 | F121: 204.9 | G121: 205 | H121: 213.65 | I121: 23245 | J121: 4858147.5 | K121: 2020-03-03 | L121: 967 | M121: INE073G01016
A122: ASHAPURMIN | B122: EQ | C122: 33.8 | D122: 34.35 | E122: 31.55 | F122: 33.5 | G122: 33.2 | H122: 33 | I122: 81980 | J122: 2685750.95 | K122: 2020-03-03 | L122: 471 | M122: INE348A01023
A123: ASHIANA | B123: EQ | C123: 101.85 | D123: 101.85 | E123: 97.05 | F123: 97.9 | G123: 97.7 | H123: 100 | I123: 70249 | J123: 6965590.35 | K123: 2020-03-03 | L123: 1051 | M123: INE365D01021
A124: ASHIMASYN | B124: EQ | C124: 5.65 | D124: 5.85 | E124: 5.15 | F124: 5.35 | G124: 5.4 | H124: 5.85 | I124: 23053 | J124: 125786.25 | K124: 2020-03-03 | L124: 228 | M124: INE440A01010
A125: ASHOKA | B125: EQ | C125: 88.2 | D125: 89.7 | E125: 85.5 | F125: 87.8 | G125: 87.55 | H125: 87.1 | I125: 161707 | J125: 14189846.6 | K125: 2020-03-03 | L125: 2485 | M125: INE442H01029
A126: ASHOKLEY | B126: EQ | C126: 74.1 | D126: 77 | E126: 72.65 | F126: 75.45 | G126: 75.75 | H126: 73.9 | I126: 23998122 | J126: 1776313623 | K126: 2020-03-03 | L126: 56741 | M126: INE208A01029
A127: ASIANHOTNR | B127: EQ | C127: 67.55 | D127: 74.95 | E127: 67.25 | F127: 72.95 | G127: 71.4 | H127: 70 | I127: 108294 | J127: 7553616.6 | K127: 2020-03-03 | L127: 82 | M127: INE363A01022
A128: ASIANPAINT | B128: EQ | C128: 1780.05 | D128: 1818 | E128: 1767 | F128: 1800.55 | G128: 1804.05 | H128: 1786.8 | I128: 1392463 | J128: 2504502818 | K128: 2020-03-03 | L128: 64533 | M128: INE021A01026
A129: ASIANTILES | B129: EQ | C129: 250 | D129: 254 | E129: 241 | F129: 246.85 | G129: 243.1 | H129: 248.7 | I129: 64264 | J129: 15799323.15 | K129: 2020-03-03 | L129: 3656 | M129: INE022I01019
A130: ASPINWALL | B130: EQ | C130: 125.05 | D130: 134.9 | E130: 107.95 | F130: 121 | G130: 119.5 | H130: 125 | I130: 4967 | J130: 584294.25 | K130: 2020-03-03 | L130: 249 | M130: INE991I01015
A131: ASTEC | B131: EQ | C131: 473.4 | D131: 481.4 | E131: 469.95 | F131: 479.6 | G131: 479 | H131: 474.7 | I131: 25468 | J131: 12098112.85 | K131: 2020-03-03 | L131: 528 | M131: INE563J01010
A132: ASTERDM | B132: EQ | C132: 166.8 | D132: 166.8 | E132: 161.55 | F132: 164.85 | G132: 165 | H132: 161.05 | I132: 54429 | J132: 8936158.1 | K132: 2020-03-03 | L132: 1750 | M132: INE914M01019
A133: ASTRAL | B133: EQ | C133: 1150.5 | D133: 1170 | E133: 1123.6 | F133: 1147.4 | G133: 1150 | H133: 1150.1 | I133: 34750 | J133: 39747383.15 | K133: 2020-03-03 | L133: 3677 | M133: INE006I01046
A134: ASTRAMICRO | B134: EQ | C134: 87.85 | D134: 90 | E134: 85.5 | F134: 88.45 | G134: 89 | H134: 84.05 | I134: 203099 | J134: 17712838 | K134: 2020-03-03 | L134: 1711 | M134: INE386C01029
A135: ASTRAZEN | B135: EQ | C135: 2674.8 | D135: 2713.4 | E135: 2606 | F135: 2659.65 | G135: 2672 | H135: 2653.65 | I135: 19440 | J135: 51765027.1 | K135: 2020-03-03 | L135: 2818 | M135: INE203A01020
A136: ASTRON | B136: EQ | C136: 34.6 | D136: 37.2 | E136: 34.6 | F136: 36.5 | G136: 36.5 | H136: 36.55 | I136: 18884 | J136: 684649.6 | K136: 2020-03-03 | L136: 390 | M136: INE646X01014
A137: ATFL | B137: EQ | C137: 648.6 | D137: 650.2 | E137: 610.35 | F137: 631.55 | G137: 624.6 | H137: 639.35 | I137: 8119 | J137: 5078495.9 | K137: 2020-03-03 | L137: 758 | M137: INE209A01019
A138: ATLANTA | B138: EQ | C138: 4.65 | D138: 4.85 | E138: 4.55 | F138: 4.6 | G138: 4.55 | H138: 4.75 | I138: 12244 | J138: 56251.95 | K138: 2020-03-03 | L138: 68 | M138: INE285H01022
A139: ATLASCYCLE | B139: BE | C139: 42.05 | D139: 44.55 | E139: 41.7 | F139: 41.7 | G139: 41.7 | H139: 43.85 | I139: 2910 | J139: 122596.85 | K139: 2020-03-03 | L139: 39 | M139: INE446A01025
A140: ATUL | B140: EQ | C140: 5249 | D140: 5445 | E140: 5202.25 | F140: 5358.75 | G140: 5364 | H140: 5191.45 | I140: 64489 | J140: 344876350.1 | K140: 2020-03-03 | L140: 16632 | M140: INE100A01010
A141: ATULAUTO | B141: EQ | C141: 218.1 | D141: 221.95 | E141: 210.7 | F141: 214.25 | G141: 215.75 | H141: 220.2 | I141: 18340 | J141: 3963858.55 | K141: 2020-03-03 | L141: 828 | M141: INE951D01028
A142: AUBANK | B142: EQ | C142: 1161.95 | D142: 1190 | E142: 1150 | F142: 1174.2 | G142: 1189 | H142: 1155.75 | I142: 505336 | J142: 590243901.5 | K142: 2020-03-03 | L142: 45260 | M142: INE949L01017
A143: AURIONPRO | B143: EQ | C143: 41.85 | D143: 41.85 | E143: 40.05 | F143: 41 | G143: 40.95 | H143: 41.35 | I143: 24777 | J143: 1002789.35 | K143: 2020-03-03 | L143: 244 | M143: INE132H01018
A144: AUROPHARMA | B144: EQ | C144: 498.65 | D144: 515.4 | E144: 498.25 | F144: 511.3 | G144: 512 | H144: 494.65 | I144: 3012316 | J144: 1525835177 | K144: 2020-03-03 | L144: 48668 | M144: INE406A01037
A145: AUSOMENT | B145: BE | C145: 35.15 | D145: 38.25 | E145: 35.15 | F145: 38.25 | G145: 38.25 | H145: 36.75 | I145: 419 | J145: 15347.85 | K145: 2020-03-03 | L145: 7 | M145: INE218C01016
A146: AUTOAXLES | B146: EQ | C146: 691.65 | D146: 693.5 | E146: 656.15 | F146: 661.95 | G146: 665 | H146: 680 | I146: 6303 | J146: 4206046.3 | K146: 2020-03-03 | L146: 564 | M146: INE449A01011
A147: AUTOIND | B147: BE | C147: 18.5 | D147: 18.5 | E147: 17.55 | F147: 18.15 | G147: 18.25 | H147: 18.35 | I147: 3802 | J147: 67976.75 | K147: 2020-03-03 | L147: 36 | M147: INE718H01014
A148: AUTOLITIND | B148: EQ | C148: 17.7 | D148: 19.6 | E148: 17.7 | F148: 18.85 | G148: 18.65 | H148: 17.8 | I148: 6816 | J148: 126748.05 | K148: 2020-03-03 | L148: 142 | M148: INE448A01013
A149: AVADHSUGAR | B149: EQ | C149: 208.1 | D149: 217.5 | E149: 200.25 | F149: 210.85 | G149: 209 | H149: 205.55 | I149: 127289 | J149: 26538396.6 | K149: 2020-03-03 | L149: 3383 | M149: INE349W01017
A150: AVANTIFEED | B150: EQ | C150: 442.8 | D150: 450 | E150: 415.65 | F150: 443.95 | G150: 447 | H150: 430.85 | I150: 1006590 | J150: 436994141.1 | K150: 2020-03-03 | L150: 29183 | M150: INE871C01038
A151: AVTNPL | B151: EQ | C151: 35 | D151: 36 | E151: 34.2 | F151: 35.7 | G151: 35.85 | H151: 34.3 | I151: 154521 | J151: 5467167.8 | K151: 2020-03-03 | L151: 1047 | M151: INE488D01021
A152: AXISBANK | B152: EQ | C152: 689.9 | D152: 695.8 | E152: 675 | F152: 687.15 | G152: 689.8 | H152: 684.2 | I152: 11198145 | J152: 7678190334 | K152: 2020-03-03 | L152: 161760 | M152: INE238A01034
A153: AXISCADES | B153: BE | C153: 52.45 | D153: 52.45 | E153: 48 | F153: 48.9 | G153: 50.75 | H153: 50.45 | I153: 23087 | J153: 1152212.35 | K153: 2020-03-03 | L153: 141 | M153: INE555B01013
A154: AXISGOLD | B154: EQ | C154: 3700 | D154: 3701.5 | E154: 3664.25 | F154: 3693.45 | G154: 3692 | H154: 3683.45 | I154: 708 | J154: 2609590.65 | K154: 2020-03-03 | L154: 98 | M154: INF846K01347
A155: AXISNIFTY | B155: EQ | C155: 1169 | D155: 1174.3 | E155: 1156.34 | F155: 1174.3 | G155: 1174.3 | H155: 1154.59 | I155: 227 | J155: 263600.87 | K155: 2020-03-03 | L155: 24 | M155: INF846K01ZL0
A156: AYMSYNTEX | B156: EQ | C156: 29 | D156: 32.8 | E156: 28.2 | F156: 30.85 | G156: 30.9 | H156: 29.55 | I156: 17710 | J156: 542454.4 | K156: 2020-03-03 | L156: 163 | M156: INE193B01039
A157: BAFNAPH | B157: BE | C157: 4.8 | D157: 4.8 | E157: 4.8 | F157: 4.8 | G157: 4.8 | H157: 4.6 | I157: 572 | J157: 2745.6 | K157: 2020-03-03 | L157: 14 | M157: INE878I01022
A158: BAGFILMS | B158: BE | C158: 1.5 | D158: 1.55 | E158: 1.45 | F158: 1.45 | G158: 1.45 | H158: 1.5 | I158: 52353 | J158: 77157.15 | K158: 2020-03-03 | L158: 60 | M158: INE116D01028
A159: BAJAJ-AUTO | B159: EQ | C159: 2700 | D159: 2730 | E159: 2653 | F159: 2692.25 | G159: 2700 | H159: 2792.2 | I159: 1459848 | J159: 3937350943 | K159: 2020-03-03 | L159: 64846 | M159: INE917I01010
A160: BAJAJCON | B160: EQ | C160: 185 | D160: 190 | E160: 181 | F160: 182.9 | G160: 182.2 | H160: 183.05 | I160: 141426 | J160: 26073212.75 | K160: 2020-03-03 | L160: 3873 | M160: INE933K01021
A161: BAJAJELEC | B161: EQ | C161: 413.1 | D161: 425.9 | E161: 405.55 | F161: 414.55 | G161: 413.05 | H161: 410.55 | I161: 137047 | J161: 56539393.85 | K161: 2020-03-03 | L161: 4449 | M161: INE193E01025
A162: BAJAJFINSV | B162: EQ | C162: 9000 | D162: 9116.65 | E162: 8680 | F162: 8963.65 | G162: 8993 | H162: 8914.5 | I162: 550729 | J162: 4896366229 | K162: 2020-03-03 | L162: 77414 | M162: INE918I01018
A163: BAJAJHIND | B163: EQ | C163: 4.95 | D163: 5 | E163: 4.35 | F163: 4.5 | G163: 4.55 | H163: 4.95 | I163: 3224699 | J163: 14766158.9 | K163: 2020-03-03 | L163: 3232 | M163: INE306A01021
A164: BAJAJHLDNG | B164: EQ | C164: 3410.8 | D164: 3437.9 | E164: 3350 | F164: 3368.3 | G164: 3395.05 | H164: 3393.9 | I164: 17842 | J164: 60248713.45 | K164: 2020-03-03 | L164: 4631 | M164: INE118A01012
A165: BAJFINANCE | B165: EQ | C165: 4400 | D165: 4474.95 | E165: 4320.05 | F165: 4454.1 | G165: 4462.9 | H165: 4360.75 | I165: 2023503 | J165: 8922772697 | K165: 2020-03-03 | L165: 135928 | M165: INE296A01024
A166: BALAJITELE | B166: EQ | C166: 49 | D166: 50.6 | E166: 48.4 | F166: 49.75 | G166: 50.05 | H166: 48.7 | I166: 50337 | J166: 2503303.2 | K166: 2020-03-03 | L166: 832 | M166: INE794B01026
A167: BALAMINES | B167: EQ | C167: 411.1 | D167: 414.85 | E167: 397.15 | F167: 402.75 | G167: 404 | H167: 398.2 | I167: 41156 | J167: 16655561.9 | K167: 2020-03-03 | L167: 1480 | M167: INE050E01027
A168: BALAXI | B168: EQ | C168: 116.9 | D168: 116.9 | E168: 96.25 | F168: 108 | G168: 108 | H168: 106.65 | I168: 708 | J168: 74766.95 | K168: 2020-03-03 | L168: 85 | M168: INE618N01014
A169: BALKRISHNA | B169: EQ | C169: 15.5 | D169: 15.75 | E169: 15 | F169: 15.7 | G169: 15.75 | H169: 15.75 | I169: 2697 | J169: 41356.9 | K169: 2020-03-03 | L169: 38 | M169: INE875R01011
A170: BALKRISIND | B170: EQ | C170: 1092 | D170: 1152 | E170: 1066.85 | F170: 1116.6 | G170: 1113.9 | H170: 1069.6 | I170: 1032435 | J170: 1129828617 | K170: 2020-03-03 | L170: 38900 | M170: INE787D01026
A171: BALLARPUR | B171: BE | C171: 0.45 | D171: 0.5 | E171: 0.4 | F171: 0.5 | G171: 0.5 | H171: 0.45 | I171: 1166624 | J171: 536434.1 | K171: 2020-03-03 | L171: 151 | M171: INE294A01037
A172: BALMLAWRIE | B172: EQ | C172: 102.3 | D172: 103.5 | E172: 100 | F172: 101.95 | G172: 101.9 | H172: 101.85 | I172: 72688 | J172: 7367173.9 | K172: 2020-03-03 | L172: 1507 | M172: INE164A01016
A173: BALPHARMA | B173: EQ | C173: 39.95 | D173: 41.85 | E173: 37.8 | F173: 38.45 | G173: 38.5 | H173: 38.45 | I173: 4945 | J173: 193651.9 | K173: 2020-03-03 | L173: 140 | M173: INE083D01012
A174: BALRAMCHIN | B174: EQ | C174: 146.95 | D174: 147.5 | E174: 141.15 | F174: 142.85 | G174: 142.65 | H174: 142.45 | I174: 688600 | J174: 98637832.6 | K174: 2020-03-03 | L174: 7447 | M174: INE119A01028
A175: BANARBEADS | B175: EQ | C175: 34.25 | D175: 35.9 | E175: 30.15 | F175: 31.7 | G175: 31.5 | H175: 30.9 | I175: 5463 | J175: 173836.5 | K175: 2020-03-03 | L175: 76 | M175: INE655B01011
A176: BANARISUG | B176: EQ | C176: 1284 | D176: 1284 | E176: 1168 | F176: 1202.1 | G176: 1209 | H176: 1214.7 | I176: 602 | J176: 726509.4 | K176: 2020-03-03 | L176: 119 | M176: INE459A01010
A177: BANCOINDIA | B177: EQ | C177: 83.1 | D177: 84.65 | E177: 81.5 | F177: 82.95 | G177: 82.75 | H177: 82.65 | I177: 36583 | J177: 3036768.5 | K177: 2020-03-03 | L177: 645 | M177: INE213C01025
A178: BANDHANBNK | B178: EQ | C178: 398 | D178: 410.7 | E178: 395.2 | F178: 400.8 | G178: 401.5 | H178: 394.05 | I178: 4542669 | J178: 1828188376 | K178: 2020-03-03 | L178: 85039 | M178: INE545U01014
A179: BANG | B179: EQ | C179: 16.65 | D179: 17.6 | E179: 16.15 | F179: 17.25 | G179: 17.5 | H179: 17 | I179: 5995 | J179: 100943.55 | K179: 2020-03-03 | L179: 118 | M179: INE863I01016
A180: BANKBARODA | B180: EQ | C180: 71.25 | D180: 73.4 | E180: 71 | F180: 72.9 | G180: 73.15 | H180: 71.15 | I180: 23348154 | J180: 1686720334 | K180: 2020-03-03 | L180: 52827 | M180: INE028A01039
A181: BANKBEES | B181: EQ | C181: 300.3 | D181: 304 | E181: 293.23 | F181: 298.27 | G181: 299.04 | H181: 294.45 | I181: 609199 | J181: 181330425.5 | K181: 2020-03-03 | L181: 3806 | M181: INF204KB15I9
A182: BANKINDIA | B182: EQ | C182: 50.8 | D182: 51 | E182: 49 | F182: 49.35 | G182: 49.55 | H182: 50.05 | I182: 1622792 | J182: 80378417.85 | K182: 2020-03-03 | L182: 10059 | M182: INE084A01016
A183: BANSWRAS | B183: BE | C183: 123 | D183: 126.95 | E183: 120 | F183: 120.65 | G183: 123 | H183: 121.1 | I183: 7574 | J183: 932568.6 | K183: 2020-03-03 | L183: 54 | M183: INE629D01012
A184: BASF | B184: EQ | C184: 1030 | D184: 1058.1 | E184: 1006 | F184: 1015.25 | G184: 1018 | H184: 1010.6 | I184: 110987 | J184: 113660977.8 | K184: 2020-03-03 | L184: 9298 | M184: INE373A01013
A185: BASML | B185: EQ | C185: 104.85 | D185: 111.75 | E185: 100.05 | F185: 102.25 | G185: 102.1 | H185: 98.8 | I185: 758 | J185: 80161.6 | K185: 2020-03-03 | L185: 45 | M185: INE186H01014
A186: BATAINDIA | B186: EQ | C186: 1636 | D186: 1659.95 | E186: 1595.15 | F186: 1618.6 | G186: 1623 | H186: 1634.45 | I186: 802303 | J186: 1298005642 | K186: 2020-03-03 | L186: 37297 | M186: INE176A01028
A187: BAYERCROP | B187: EQ | C187: 4440 | D187: 4440 | E187: 4201.1 | F187: 4366.45 | G187: 4321.1 | H187: 4338.15 | I187: 120228 | J187: 524393758.9 | K187: 2020-03-03 | L187: 5939 | M187: INE462A01022
A188: BBL | B188: EQ | C188: 762 | D188: 780 | E188: 760 | F188: 775.5 | G188: 771.5 | H188: 762.75 | I188: 6958 | J188: 5387554.3 | K188: 2020-03-03 | L188: 515 | M188: INE464A01028
A189: BBTC | B189: EQ | C189: 1108.1 | D189: 1130 | E189: 1085 | F189: 1102.45 | G189: 1105 | H189: 1092.25 | I189: 45630 | J189: 50397181.95 | K189: 2020-03-03 | L189: 3539 | M189: INE050A01025
A190: BCG | B190: BE | C190: 4.7 | D190: 4.75 | E190: 4.5 | F190: 4.55 | G190: 4.55 | H190: 4.7 | I190: 591217 | J190: 2685833 | K190: 2020-03-03 | L190: 308 | M190: INE425B01027
A191: BCP | B191: BE | C191: 18.2 | D191: 18.2 | E191: 17.35 | F191: 17.35 | G191: 17.9 | H191: 18.25 | I191: 109981 | J191: 1909496.85 | K191: 2020-03-03 | L191: 32 | M191: INE905P01028
A192: BDL | B192: EQ | C192: 267.1 | D192: 274.25 | E192: 261 | F192: 267.05 | G192: 267 | H192: 264.5 | I192: 178440 | J192: 47781597.25 | K192: 2020-03-03 | L192: 6209 | M192: INE171Z01018
A193: BEARDSELL | B193: BE | C193: 6.95 | D193: 6.95 | E193: 6.65 | F193: 6.9 | G193: 6.9 | H193: 6.95 | I193: 3611 | J193: 25063.4 | K193: 2020-03-03 | L193: 3 | M193: INE520H01022
A194: BEDMUTHA | B194: BE | C194: 13.9 | D194: 13.9 | E194: 12.6 | F194: 12.6 | G194: 12.6 | H194: 13.25 | I194: 3426 | J194: 43367.8 | K194: 2020-03-03 | L194: 23 | M194: INE844K01012
A195: BEL | B195: EQ | C195: 73.4 | D195: 75.15 | E195: 72.25 | F195: 74.5 | G195: 74.6 | H195: 72.95 | I195: 19287777 | J195: 1417821120 | K195: 2020-03-03 | L195: 48078 | M195: INE263A01024
A196: BEML | B196: EQ | C196: 723.75 | D196: 732.15 | E196: 692 | F196: 697.45 | G196: 697.05 | H196: 719.35 | I196: 351575 | J196: 248158535.9 | K196: 2020-03-03 | L196: 12046 | M196: INE258A01016
A197: BEPL | B197: EQ | C197: 41.3 | D197: 41.3 | E197: 38.9 | F197: 39.25 | G197: 39.5 | H197: 40.25 | I197: 228505 | J197: 9105545.95 | K197: 2020-03-03 | L197: 3170 | M197: INE922A01025
A198: BERGEPAINT | B198: EQ | C198: 556.9 | D198: 563 | E198: 539.15 | F198: 541.65 | G198: 544.5 | H198: 556.95 | I198: 1563205 | J198: 855735410.1 | K198: 2020-03-03 | L198: 34057 | M198: INE463A01038
A199: BFINVEST | B199: EQ | C199: 293.8 | D199: 317 | E199: 293.05 | F199: 312.85 | G199: 311.7 | H199: 291.15 | I199: 84002 | J199: 25817027.75 | K199: 2020-03-03 | L199: 2511 | M199: INE878K01010
A200: BFUTILITIE | B200: EQ | C200: 268 | D200: 288.8 | E200: 265.65 | F200: 288.8 | G200: 288.8 | H200: 262.55 | I200: 258083 | J200: 72630837.2 | K200: 2020-03-03 | L200: 5198 | M200: INE243D01012
... 1488 more rows

Sheet Sheet1 (hidden)

Sheet Sheet3 (hidden)

Sheet Sheet4 (hidden)

Sheet Sheet5 (hidden)
